{"text_format":"1","workbook":"xlsx","n_sheets":30,"sheets":["Introduction","Fulfillment","Libraries","Printers","Circ Desks","Locations","List Values","Users","VALIDATION","Item Policies","Policies, TOU & Rules","Acquisitions","Resource Management","General","Emails","Primo VE - Configuration","Primo VE - Digital Repository","Data Validity Checks","Booking","Additional ResShare Libraries","Policies, TOU & Rules (book (2","E-Resources","E-Resources_old","Licensing","WorkOrders","Create Controlled Vocabularies","Assign Controlled Vocabularies","Multi-Campus & Networks","Translations","drop down"],"not_rendered":{"charts":0,"images":3,"macros":1,"external_links":14,"defined_names":188,"comments":5,"pivot_tables":0},"unopened":[],"bounds":{"document_bytes":16777216,"sheet_cells":100000,"rows_first":2000,"rows_last":500,"rows_between":2000,"halvings":0,"cell_chars":16384,"cell_head_chars":4096},"cells_cut":0,"cells_raw":0,"read":"whole","date_system":"1900"}

{"sheet":"Introduction","index":0,"n_rows":56,"n_cols":2,"rows_kept":56,"cut":false,"hidden":false,"merged":[]}
[]
[]
[]
[]
[]
[]
[]
[]
[]
[]
[]
[]
[]
[]
[null,"Configuration Form - March 2024 Release"]
[]
[null,"This document is designed for the collection of information necessary"]
[null,"for the configuration of Alma."]
[]
[null,"Fill all fields in all sheets with the required details."]
[]
[null,"For further explanation, see the accompanying guide."]
[]
[null,"Important: "]
[null,"Adhere to the structure given in each tab."]
[null,"Contact your Ex Libris implementation team with any questions."]
[]
[]
[]
[]
[]
[]
[]
[]
[]
[]
[]
[]
[]
[]
[]
[]
[]
[]
[]
[]
[]
[]
[]
[]
[]
[]
[]
[]
[]
[null," "]

{"sheet":"Fulfillment","index":1,"n_rows":119,"n_cols":10,"rows_kept":119,"cut":false,"hidden":false,"merged":[[79,1,79,2],[110,1,110,2]]}
[null,"Fulfillment Tables"]
[null,"Select one of the suggested values from the drop down list or insert a required value manually."]
[null,"Location Types (Fulfilment unit)","On Shelf Request Policy"]
[null,"General","Request for pickup anywhere regardless of availability"]
[null,"Limited","No Requesting from available holding"]
[null,"Short Loan/Reserve","Request for pickup anywhere regardless of availability"]
[null,"Media","Request for pickup in different library only"]
[null,"Closed","Request for pickup in different library only"]
[]
[]
[]
[]
[null,"Patron Types"]
[null,"Faculty"]
[null,"Staff"]
[null,"Graduate Students"]
[null,"Undergraduate Students"]
[null,"Community"]
[null,"b"]
[null,"d"]
[null,"e"]
[]
[null,"Item Exception Types"]
[null,"No Loan"]
[null,"Laptop"]
[]
[]
[]
[]
[]
[null,"Auto Renew Rule 1"]
[null,"Define the libraries and/or users whose loans you would like to automatically renew."]
[null,"Library"]
[null,"Patron Type"]
[]
[null,"Auto Renew Rule 2"]
[null,"Define the libraries and/or users whose loans you would like to automatically renew."]
[null,"Library"]
[null,"Patron Type"]
[]
[null,"Auto Renew Rule 3"]
[null,"Define the libraries and/or users whose loans you would like to automatically renew."]
[null,"Library"]
[null,"Patron Type"]
[]
[null,"Overdue and Lost Loan Rules"]
[null,"Define when you would like a loan to be automatically marked as Overdue or Lost."]
[null,"Name","Active","Overdue or Lost","Number days after due date","Number days after status date","Patron Type","Library","Letter send format","Printer"]
[null,"Visitors 14 Days","N","Lost","14","14","Community , Faculty , Staff","MAIN","Print","CIRCDESK1"]
[null,"Students Notify 30 Days","Y","Overdue","30","30","Graduate Students , Staff , Community","MAIN","Mail"]
[null,"Students Lost 45 Days","N","Lost","45","45","Staff , Graduate Students , Community","MAIN",null,"MLIB_PRNT"]
[]
[]
[]
[]
[]
[]
[null,"Loan Recalls"]
[null,"Indicate if the request should trigger a recall of any loans."]
[null,"Request Type","Recalls Loan"]
[null,"Patron electronic digitization request","Y"]
[null,"General digitization request","Y"]
[null,"General hold request","Y"]
[null,"Library electronic digitization request","Y"]
[null,"Library physical digitization request","Y"]
[null,"Move permanently","Y"]
[null,"Move temporarily","Y"]
[null,"Patron physical item request","Y"]
[null,"Patron digitization request","Y"]
[null,"Ship digitally from electronic","Y"]
[null,"Ship digitally","Y"]
[null,"Ship physically","Y"]
[null,"Restore item","Y"]
[null,"Staff electronic digitization request","Y"]
[null,"Staff digitization request","Y"]
[null,"Transit for reshelving","Y"]
[]
[]
[null,"Block Preferences"]
[null,"Define whether system generated blocks may be overridden manually. Note that the Handler column is not configurable and is relevant only if the selected Action is 'Handle Automatically'. (Not all blocks have automatic handlers). "]
[null,"Block Description","Actions","Handlers","Blocks"]
["END_OF_LOAN_CONFLICTS_WITH_BOOKING_REQUEST","The loan regular due date conflicts with booking request","Override by All","Shorten the due date to the last possible date"]
["END_OF_RENEW_CONFLICTS_WITH_BOOKING_REQUEST","The renew due date conflicts with booking request","Handle Automatically","Shorten the due date to the last possible date"]
["IS_LOANABLE","Item is not loanable","Override By Operator"]
["IS_RENEWABLE","Item is not renewable","Override By Operator"]
["ITEM_LOANABLE_IN_READING_ROOM_ONLY","This item can only be loaned from reading room desk","Override by All"]
["LOAN_AFTER_HOLD","Item is on Hold Shelf for this patron","Handle Automatically","Delete the request and loan the item"]
["LOAN_AFTER_RETURNING_BORROWING","Item is bound to a borrowing request for another patron","Block"]
["LOAN_DURING_HOLD_UNIQUE","Item is requested by another patron","Block","Restart the request, since the item is no longer available"]
["MAX_PERIOD_RENEW","Item renew period exceeded","Override by All"]
["NOT_MY_ITEM_FOR_LOAN","Item cannot be loaned from this circulation desk","Override by All","Loan the item"]
["NOT_MY_ITEM_FOR_RETURN","Item cannot be returned at this circulation desk","Override by All","Return the item"]
["NOT_RENEWABLE_STATUS","The loan cannot be renewed due to the loan status","Override by All"]
["ON_HOLD_SHELF_FOR_OTHER_USER","Item is on hold shelf for another patron","Block","Restart the request, since the item is no longer available"]
["PATRON_CASH_LIMIT_EXCEEDED","Patron cash limits has exceeded","Override By Manager",null,"Both"]
["PATRON_IS_EXPIRED","Patron's card has expired","Override By Operator"]
["PATRON_IS_NOT_ACTIVE","Patron is not active","Override By Operator"]
["PATRON_LOAN_LIMIT_EXCEEDED","Patron loan limit exceeded","Override By Manager"]
["PATRON_OVERDUE_LIMIT_EXCEEDED","Patron overdue limits has exceeded","Override By Manager",null,"Both"]
["PATRON_OVERDUE_RECALLS_LIMIT_EXCEEDED","Patron overdue recalls limit exceeded","Block",null,"Both"]
["RELOAN_LIMIT_PARALLEL_LOAN","Item of the same title is already on loan for this patron. Parallel loan is prohibited","Block"]
["RELOAN_LIMIT_SAME_TITLE_RECENTLY_LOANED","An item of the same title was recently loaned to this patron","Block"]
["RENEWAL_NOT_IN_ALLOWED_TIME_FRAME","Time frame when loan renewal is allowed not reached","Override By Operator"]
["REQUESTED_ITEM_IS_RENEWABLE","Not Renewable – Item has Request(s)","Handle Automatically","Allow renewal when item is requested"]
["RS_RECEIVE_CHECK_IN_LOAN","Item has not been received by a resource\nsharing operator","Handle Automatically"]
["RETURN_DURING_LOAN","Item is currently on loan by another patron","Block","Return the item and loan to the new patron"]
["USER_NOT_PATRON","User does not have a patron role or the role has expired","Override by All"]
[]
[]
[null,"Request Pickup Configuration"]
[null,"Define whether an item will be considered as missing at expiry by request type and whether\nit will be displayed in Pick from Shelf task list."]
[null,"Request Type","Consider as missing when expired","Show in 'Pick From Shelf' list","Expiry time for 'Pick From Shelf' (in days)"]
[null,"Move permanently","Always","Y",7]
[null,"Move temporarily","Always","Y",7]
[null,"Patron digitization request","Always","Y",7]
[null,"Patron physical item request","Always","Y",7]
[null,"Restore item","Always","Y",7]
[null,"Staff digitization request","Always","Y",7]
[null,"Work order request","Always","Y",7]

{"sheet":"Libraries","index":2,"n_rows":166,"n_cols":16,"rows_kept":166,"cut":false,"hidden":false,"merged":[[163,0,163,2],[94,0,94,5],[53,0,53,3],[19,0,19,2],[126,0,126,3],[161,0,161,3],[162,0,162,2],[126,4,126,5],[155,0,155,3]]}
["Libraries"]
[]
["You may insert additional rows into any of these tables if required."]
[]
["Campus Definitions"]
[]
["Code of Campus","Name of Campus","IP Match Criteria"]
["MAINCAMPUS","Main Campus","192.168.1.30-192.168.1.50,192.168.2.39"]
["RIVERCAMPUS","Riverside Campus","192.168.2.20-192.168.2.39"]
["UPCAMPUS","Uptown Campus","192.168.2.43-192.168.2.49"]
[]
[]
[]
[]
[]
[]
[]
[]
[]
["Note that any library address information from your legacy system is migrated to Alma. If you want to add an additional address for a library, you may do so here. Otherwise, leave the address fields blank."]
[]
["1. Libraries"]
["Code of Library","Campus","Name of physical Libraries ","First Line of Address","Second Line of Address","Third Line of Address","City","State/County","Postal Code","Country","Phone","Email","Email address to be used for printed output","IP Match Criteria","Numeric Code for RFID","Allow other libraries to handle personal delivery"]
["MAIN","MAINCAMPUS","Main Library","123 Main Street","2nd Floor",null,"Maintown","NX","97865","USA","123-456-7890","mainlib@university.edu",null,"192.168.1.35-192.168.1.39,192.168.1.41",123456,"No"]
["SCI","MAINCAMPUS","Science Library","456 2nd Ave.",null,null,"Maintown","NX","97865","USA","123-456-7890","scilib@university.edu",null,"192.168.1.40",null,"Yes"]
["MUS","MAINCAMPUS","Music Library","789 Coronet Drive",null,null,"Maintown","NX","97865",null,"223434342","muslib@university.edu",null,"192.168.1.42",null,"Yes"]
["LAW","RIVERCAMPUS","Law Library","2367 Cherry St.",null,null,"Riverside","NX","97833",null,null,"lawlibrary@university.edu",null,"192.168.2.30",null,"No"]
["GRAD","UPCAMPUS","Graduate Library","1500 Amber Road",null,null,"Uptown","NX","97871",null,null,"gradlib@univeristy.edu",null,"192.168.2.45",null,"No"]
[]
[]
[]
[]
[]
[]
[]
[]
[]
[]
[]
[]
[]
[]
[]
[]
[]
[]
[]
[]
[]
[]
[]
[]
[]
["2a. Please enter the standard open hours of your libraries:"]
["Library Code","Open Day","Open Time From (hh:mm)","Open Time To (hh:mm)"]
["MAIN","Sunday","00:00:00","23:59:00"]
["MAIN","Monday","00:00:00","23:59:00"]
["MAIN","Tuesday","00:00:00","23:59:00"]
["MAIN","Wednesday","00:00:00","23:59:00"]
["MAIN","Thursday","00:00:00","23:59:00"]
["MAIN","Friday","00:00:00","23:59:00"]
["MAIN","Saturday","00:00:00","23:59:00"]
["SCI","Sunday","10:00:00","16:00:00"]
["SCI","Monday","08:00:00","19:00:00"]
["SCI","Tuesday","08:00:00","19:00:00"]
["SCI","Wednesday","08:00:00","19:00:00"]
["SCI","Thursday","08:00:00","19:00:00"]
["SCI","Friday","08:00:00","19:00:00"]
["SCI","Saturday","08:00:00","19:00:00"]
["MUS","Sunday","10:00:00","16:00:00"]
["MUS","Monday","09:00:00","17:00:00"]
["MUS","Tuesday","09:00:00","17:00:00"]
["MUS","Wednesday","09:00:00","17:00:00"]
["MUS","Thursday","09:00:00","17:00:00"]
["MUS","Friday","09:00:00","17:00:00"]
["MUS","Saturday","09:00:00","17:00:00"]
["LAW","Sunday","10:00:00","20:00:00"]
["LAW","Monday","09:00:00","22:00:00"]
["LAW","Tuesday","09:00:00","22:00:00"]
["LAW","Wednesday","09:00:00","22:00:00"]
["LAW","Thursday","09:00:00","22:00:00"]
["LAW","Friday","09:00:00","22:00:00"]
["LAW","Saturday","10:00:00","23:59:00"]
["GRAD","Monday","08:00:00","20:00:00"]
["GRAD","Tuesday","08:00:00","20:00:00"]
["GRAD","Wednesday","08:00:00","20:00:00"]
["GRAD","Thursday","08:00:00","20:00:00"]
["GRAD","Friday","08:00:00","20:00:00"]
["GRAD","Saturday","08:00:00","16:00:00"]
["RES_SHARE","Monday","09:00:00","17:00:00"]
["RES_SHARE","Tuesday","09:00:00","17:00:00"]
["RES_SHARE","Wednesday","09:00:00","17:00:00"]
["RES_SHARE","Thursday","09:00:00","17:00:00"]
["RES_SHARE","Friday","09:00:00","17:00:00"]
["2b. Please enter any exceptional open dates and times for your libraries (for single date exceptions, repeat the same From and To date):"]
["Library Code","Open Date From (yyyy-mm-dd)","Open Date To (yyyy-mm-dd)","Open Time From (hh:mm)","Open Time To (hh:mm)","Description for exceptional open hours"]
[]
[]
[]
[]
[]
[]
[]
[]
[]
[]
[]
[]
[]
[]
[]
[]
[]
[]
[]
[]
[]
[]
[]
[]
[]
[]
[]
[]
[]
[]
["2c. Please enter any exceptional closed days for your libraries (for single date exceptions, repeat the same From and To date):"]
["Library Code\n(Enter ***** for All libraries)","Closed Date From (yyyy-mm-dd)","Closed Date To (yyyy-mm-dd)","Closed Time From (hh:mm)","Closed Time To (hh:mm)","Description of exceptional closure"]
["*****","2020-11-27","2020-11-27","13:00:00","19:00:00","Thanksgiving Day"]
["*****","2020-12-25","2020-12-25","13:00:00","19:00:00","Christmans Day"]
["*****","2021-01-01","2021-01-01","13:00:00","19:00:00","New Year's Day"]
[]
[]
[]
[]
[]
[]
[]
[]
[]
[]
[]
[]
[]
[]
[]
[]
[]
[]
[]
[]
[]
[]
[]
[]
["2d. Fixed Term Due Dates (Used by Due date circulation/fulfillment policy)"]
["Fixed Due Dates:","Date (yyyy-mm-dd)"]
["End of Term","2020-12-20"]
["End of Year","2020-06-13"]
["End of Summer","2020-08-22"]
[]
["3. Circulation relationships between libraries"]
["By Default all libraries can circulate for and deliver to all other libraries, i.e. transit of items is allowed."]
["Is there any library where transit does not occur i.e. items belonging there can only be loaned and returned there?"]
["Library Code"]
["MAIN"]

{"sheet":"Printers","index":3,"n_rows":11,"n_cols":4,"rows_kept":11,"cut":false,"hidden":false,"merged":[]}
["Printers"]
["Enter details of your printers. Printers defined here will populate the dropdown menu in the 'Printer' column of the Circ Desks tab. To create a printer for use in a library, select the library code from the dropdown list in column A. To create a printer for use in an institution-level work order department, enter the code of your institution in column A."]
[]
["Organizational Unit Code","Printer Code","Printer Name","Description"]
["MAIN","MLIB_PRNT","Main Library Printer","Epson, located near the Circ Desk"]
["MAIN","BLDG9PRNT","Building 9 Printer","Located at the Remote Storage Facility"]
["SCI","CIRCDESK1","Main Circ Desk","Inside"]
["SCI","TECHSERV","BioTech","a"]
["MUS","PRNT_MUS","Shelley","a"]
["LAW","LAW_LIB_P","Law Library Printer","Located next to the Circulation Desk"]
["GRAD","GRAD_PRNT","Grad Library Printer","a"]

{"sheet":"Circ Desks","index":4,"n_rows":55,"n_cols":28,"rows_kept":55,"cut":false,"hidden":false,"merged":[[5,24,5,25],[5,21,5,22],[5,0,5,6],[1,0,3,6],[5,7,5,9],[5,10,5,14],[5,15,5,16],[5,17,5,20]]}
["Circulation Desks"]
["A given Circulation Desk can serve locations in a given library only, although it may serve multiple locations within that library. Alma is pre-configured with a default circulation desk for each library, to which all locations in that library are attached. Enter information below only if you want to modify the default circulation desks, or if you want to add a new circulation desk. If there is only one circ desk per library, the circ desk code should remain the \"DEFAULT_CIRC_DESK\". Circulation Desks configured here will populate the dropdown menu in the 'Circulation Desk' column of the Locations tab. If you want to automatically print your pick slips to a different printer, complete the Automatic (Pick Slip) Printing Rules table, below."]
[]
[]
[]
["General Details",null,null,null,null,null,null,"Printing Information",null,null,"Hold Shelf Information",null,null,null,null,"Digitization",null,"Payment Information",null,null,null,"Self Check Information",null,"Personal Delivery","Work Orders",null,"New users","Return date"]
["Library Code","Circ Desk Code","Circ Desk Name","Primary","Pick from shelf","Reading room desk","Description","Printer Code","Create return receipt","Create loan receipt","Has hold shelf","Hold shelf sorting","Notify Patron of canceling expired hold","Max time on hold shelf (Days)","Has hold shelf processing","Supports Digitization","Work Time (days)","Credit Card","Cash","Print Receipt","Receipt copy Email","Integration Profile","Terminal Password","Supports personal delivery","Work Order Type","Work order time (days)","Supports registering new users","Supports overiding return date"]
["MAIN","DEFAULT_CIRC_DESK","Main Library Circulation","Y","Y","N",null,"MLIB_PRNT","User preferred email","User preferred email","Y","Requester Name","Y",5,"N","Y",2,"Y","Y","Y",null,null,null,"Y","TechServ",1,"Y","Y"]
["MAIN","CIRC_DESK","Building 9","Y","Y","N","Reshelves for remote storage facility. CheckIn and CheckOut handled by Main Library Circulation.","BLDG9PRNT",null,null,"Y","Requester Name","N",7,"N","N",1,"N","N","N",null,null,null,"N",null,null,"Y","Y"]
["MAIN","RARE","Rare Book Reading Room","Y","Y","N",null,null,null,null,"Y","Requester Name","N",7,"Y","N",1,"N","N","N",null,null,null,"N",null,null,"Y","Y"]
["SCI","DEFAULT_CIRC_DESK","Science Library Circulation Desk ","Y","Y","N",null,"TECHSERV","Circulation desk printer","User preferred email","Y","Requester Name","Y",7,"N","N",1,"Y","Y","Y","salk_returns@university.edu",null,null,"Y",null,null,"Y","Y"]
["SCI","BIB_CIRC2","Salk Lower Level","N","N","N",null,null,null,null,"N","Requester Name","N",7,"N","N",1,"N","N","N",null,null,null,"N",null,null,"Y","N"]
["LAW","LAWRR_CIRC","Law Reading Room","N","Y","Y",null,"LAW_LIB_P",null,null,"Y","Requester Name","N",3,"N","Y",3,"Y","Y","Y","lawlibprnt@university.edu",null,null,"N",null,null,"N","Y"]
["LAW","DEFAULT_CIRC_DESK","Law Library Circulation","Y","Y","N",null,"LAW_LIB_P",null,null,"Y","Requester Name","Y",7,"N","N",1,"N","N","N",null,null,null,"Y",null,null,"Y","Y"]
["LAW","RS_CIRC","Law Library ILL Circulation","Y","Y","N",null,"LAW_LIB_P",null,null,"Y","Requester Name","N",7,"N","N",1,"N","N","N",null,null,null,"N",null,null,"N","N"]
["GRAD","DEFAULT_CIRC_DESK","Graduate Library Circulation","Y","Y","N",null,"GRAD_PRNT",null,null,"Y","Hold Shelf Placement Time","N",7,"N","N",1,"N","N","N",null,null,null,"N",null,null,"N","N"]
["MUS","DEFAULT_CIRC_DESK","Music Library Circulation","Y","Y","N",null,"PRNT_MUS",null,null,"Y","Requester Name","N",7,"N","N",1,"N","N","N",null,null,null,"N",null,null,"N","N"]
[]
[]
[]
[]
[]
[]
[]
[]
[]
[]
[]
[]
[]
[]
[]
[]
[]
[]
[]
[]
[]
[]
[]
[]
[]
[]
[]
[]
[]
[]
[]
[]
[]
[]
[]
["Automatic (Pick Slip) Printing Rules"]
[]
["Library Code","Circ Desk Code","Location Code","Material Type","Printer Code"]

{"sheet":"Locations","index":5,"n_rows":113,"n_cols":15,"rows_kept":113,"cut":false,"hidden":false,"merged":[[109,0,109,4],[1,0,1,4],[2,0,2,4],[2,6,2,9],[2,12,2,14],[108,0,108,2]]}
["Locations"]
["Enter your location details below. You may insert additional rows into this table if required."]
["Physical Location Details",null,null,null,null,null,"Physical Location Circulation Desk Details",null,null,null,null,null,"Holdings Configuration"]
["Library Code","Location Code","Name of Location","Location Type","External Name of Location","Numeric location code for RFID","Circulation Desk Name and code","Can Items be checked-out from this circ desk?","Can Items be returned at this circ desk?","Can Items be reshelved by this circ desk?","Remote Storage Facility","Default Acquisition Location? (Y/N)","Suppressed Location? (Y/N)","Call Number Type","Accession Placement"]
["MAIN","main","Stacks","Media",null,null,"Building 9 - CIRC_DESK , Main Library Circulation - DEFAULT_CIRC_DESK , Rare Book Reading Room - RARE","Y","Y","Y",null,"Y"]
["MAIN","MEDIA","Media Collection","Media",null,null,"Building 9 - CIRC_DESK","Y","Y","Y",null,null,null,8]
["SCI","RESERVES","Course Reserves","Limited",null,null,"Salk Lower Level - BIB_CIRC2","N","Y","Y"]
["LAW","reference","Reference","Limited",null,null,"Law Reading Room - LAWRR_CIRC , Law Library Circulation - DEFAULT_CIRC_DESK , Law Library ILL Circulation - RS_CIRC","N","Y","Y"]
["MAIN","offsite","Building 9","General",null,null,"Rare Book Reading Room - RARE","N","N","Y",null,null,null,null,"Piece designation (852 $$p)"]
["MAIN","per-room","Periodicals","Limited",null,null,"Main Library Circulation - DEFAULT_CIRC_DESK","Y","Y","Y"]
["LAW","govdocs","Government Documents","General",null,null,"Law Library Circulation - DEFAULT_CIRC_DESK","Y","Y","Y",null,null,null,3]
["LAW","internat","International Collection","Short Loan/Reserve",null,null,"Law Library Circulation - DEFAULT_CIRC_DESK","Y","Y","Y"]
["SCI","edu-juv","Juvenile Education Collection","General",null,null,"Salk Lower Level - BIB_CIRC2","Y","Y","Y",null,null,null,1]
["GRAD","microforms","Microform Room","Limited",null,null,"Graduate Library Circulation - DEFAULT_CIRC_DESK","Y","Y","Y"]
["LAW","micro","Rare Books Collection","Closed",null,null,"Law Library ILL Circulation - RS_CIRC","Y","Y","Y"]
["SCI","biology","Science Stacks","General",null,null,"Science Library Circulation Desk  - DEFAULT_CIRC_DESK","Y","Y","Y",null,"Y"]
["SCI","SCICOURSE","Science Course Reserves","Short Loan/Reserve",null,null,"Science Library Circulation Desk  - DEFAULT_CIRC_DESK","Y","Y","Y"]
["SCI","SCILOWER","Science Lower Level","Closed",null,null,"Science Library Circulation Desk  - DEFAULT_CIRC_DESK","Y","Y","Y"]
["SCI","bioper2","Science Periodicals1","Limited",null,null,"Salk Lower Level - BIB_CIRC2","Y","Y","Y"]
["MUS","bioper","Science Periodicals","Limited",null,null,"Music Library Circulation - DEFAULT_CIRC_DESK","Y","Y","Y","offsite"]
[]
[]
[]
[]
[]
[]
[]
[]
[]
[]
[]
[]
[]
[]
[]
[]
[]
[]
[]
[]
[]
[]
[]
[]
[]
[]
[]
[]
[]
[]
[]
[]
[]
[]
[]
[]
[]
[]
[]
[]
[]
[]
[]
[]
[]
[]
[]
[]
[]
[]
[]
[]
[]
[]
[]
[]
[]
[]
[]
[]
[]
[]
[]
[]
[]
[]
[]
[]
[]
[]
[]
[]
[]
[]
[]
[]
[]
[]
[]
[]
[]
[]
[]
[]
[]
[]
[]
[]
["Remote Storage Facilities"]
["Enter code and name of any remote storage facilities that you have and please note whether these require an interface to an external system for hold request management"]
[]
["Remote Storage Code","Remote Storage Name","Priority","Transit Scheme","Handles digitization requests locally"]
["offsite","Offsite Remote Storage Facility","Medium","Requested Pickup","N"]

{"sheet":"List Values","index":6,"n_rows":505,"n_cols":46,"rows_kept":505,"cut":false,"hidden":true,"merged":[[0,13,0,15],[0,18,0,20],[0,23,0,24],[0,42,0,44]]}
["Acquisitions - Currencies Subset (from CODE_TABLE_NAME = 'Currency_CT')",null,"Libraries - Standard Open Hours",null,"Libraries - with ALL option",null,"Libraries - Country Codes",null,"Resource Management - Call Number Parsing",null,null,null,null,"Circ Desks - Auto Printing Rules - Material Type",null,null,"Licensing - Terms","Lisensing - Section","Fulfillment Policy Periods",null,null,null,null,"General",null,"General - limit_fulfillment_data_by_library_scope","General tab time_zone",null,"Translations - Languages",null,"TOU - Block when Overdue Period","Institution Code ",null,null,null,null,"MARC field numbers (009, 09x, 490, 5xx, 69x, and 9xx)","Basic Search - Restricted Search Groups","Advanced Search","Full Record View - Details Section - Additional Fields","Primo VE- Browse List Options - Vocabulary","Primo VE- Languages","Primo VE- Local Resource Types"]
["AFN - Afghani",null,"Monday",null,"ALL",null,"ABW",null,"0 - Library of Congress classification",null,null,null,null,null,null,null,"All rights reserved","Terms of Use","Overdue Fine Period, Recalled Overdue Fine Period","Loan Period","Requested Item Period, Grace Period, Max Renew Period, Recall Period, Booking Release Time Period, Maximum allowed booking period, Future limit period, Back to back booking period","Preview period","Reloan Limit period","non_serial_match_profile","serial_match_profile","NONE","Africa/Abidjan",null,"Select a language",null,"None",null,"Primo VE - Side bar position (facets)","Primo VE - Configuration - Basic and Advanced Search","Primo VE - Configuration - Search Results - Facets","Primo VE - Configuration - Full Record  View - Labels Section","009","We want to define restricted search groups","We want to make any adjustments to Advanced Search","We want to include additional data fields","Autoridades - catálogo de la BNE","Arabic","RIS Type","Genre","Metadata Format","Circ Desc Code And Name"]
["DZD - Algerian Dinar",null,"Tuesday",null,{"$f":"IF(Libraries!A24<>\"\",Libraries!A24,\"\")","v":"MAIN"},null,"AFG",null,"1 - Dewey Decimal classification",null,null,null,null,"Art Original",null,null,"Citation requirement detail","Restrictions","All Days","Days","Days","Exact Days","None","com.exlibris.repository.mms.match.CDLMatchingProfile","com.exlibris.repository.mms.match.CDLSeMatchingProfile","FULL","Africa/Accra",null,"Catalan; Valencian - ca",null,"All Days - Cumulative",null,"On the right","We would like to have one Slot (searching everything)","Keep facet as is","Keep section name as is","090","We don't want to define restricted search groups","We don't want to make any adjustments to Advanced Search","We don't want to include additional data fields","BARE","Catalan; Valencian","Book","Preprint","Book",{"$f":"IF(_xlfn.CONCAT('Circ Desks'!C8,\" - \",'Circ Desks'!B8)<>\" - \",_xlfn.CONCAT('Circ Desks'!C8,\" - \",'Circ Desks'!B8),\"\")","v":"Main Library Circulation - DEFAULT_CIRC_DESK"}]
["ARS - Argentine Peso",null,"Wednesday",null,{"$f":"IF(Libraries!A25<>\"\",Libraries!A25,\"\")","v":"SCI"},null,"AGO",null,"2 - National Library of Medicine classification",null,null,null,null,"Art Reproduction",null,null,"Course Pack Electronic","Perpetual Rights","All Hours","Exact Days","Exact Days","Hours","Parallel","com.exlibris.repository.mms.match.ISBNMatchProfile","com.exlibris.repository.mms.match.ISSNMatchProfile","PARTIAL","Africa/Addis_Ababa",null,"Welsh - cy",null,"All Days - Discrete",null,"On the left","We would like to have one Slot with the following Search Profiles","Rename facet","Rename section ","091",null,null,null,"CSH","Welsh","Case","Proceeding","Journal",{"$f":"IF(_xlfn.CONCAT('Circ Desks'!C9,\" - \",'Circ Desks'!B9)<>\" - \",_xlfn.CONCAT('Circ Desks'!C9,\" - \",'Circ Desks'!B9),\"\")","v":"Building 9 - CIRC_DESK"}]
["AMD - Armenian Dram",null,"Thursday",null,{"$f":"IF(Libraries!A26<>\"\",Libraries!A26,\"\")","v":"MUS"},null,"AIA",null,"3 - Superintendent of Documents classification",null,null,null,null,"Audio cassette",null,null,"Course Pack Print","Obligations","All Minutes","Hours","Hours","Minute","Days","com.exlibris.repository.mms.match.IDsMatchProfile","com.exlibris.repository.mms.match.IDsSerialMatchProfile",null,"Africa/Algiers",null,"German - de",null,"Days per Overdue Days - Cumulative",null,null,"We would like to have the following Slots and Search Profiles ","Hide facet",null,"092",null,null,null,"CSICAU","Danish","Computer program","Report","Dissertation",{"$f":"IF(_xlfn.CONCAT('Circ Desks'!C10,\" - \",'Circ Desks'!B10)<>\" - \",_xlfn.CONCAT('Circ Desks'!C10,\" - \",'Circ Desks'!B10),\"\")","v":"Rare Book Reading Room - RARE"}]
["AWG - Aruban Guilder",null,"Friday",null,{"$f":"IF(Libraries!A27<>\"\",Libraries!A27,\"\")","v":"LAW"},null,"ALA",null,"4 - Shelving control number",null,null,null,null,"Audiobook",null,null,"Course Pack Note","Termination Obligations","Exact Calendaric Days","Minute","Minute","Month","Hours","com.exlibris.repository.mms.match.LCCNMatchProfile","com.exlibris.repository.mms.match.LCCNSerialMatchProfile",null,"Africa/Asmara",null,"English - en",null,"Days per Overdue Days - Discrete",null,null,null,null,null,"093",null,null,null,"EuroVoc","German","Conference proceeding","Unkown","Patent",{"$f":"IF(_xlfn.CONCAT('Circ Desks'!C11,\" - \",'Circ Desks'!B11)<>\" - \",_xlfn.CONCAT('Circ Desks'!C11,\" - \",'Circ Desks'!B11),\"\")","v":"Science Library Circulation Desk  - DEFAULT_CIRC_DESK"}]
["AUD - Australian Dollar",null,"Saturday",null,{"$f":"IF(Libraries!A28<>\"\",Libraries!A28,\"\")","v":"GRAD"},null,"ALB",null,"5 - Title",null,null,null,null,"Bachelor Thesis",null,null,"Course Reserve Electronic Copy","Authorized User","Exact Open Days","Month","Month","Week","Minute","com.exlibris.repository.mms.match.OCLCMatchProfile","com.exlibris.repository.mms.match.OCLCSerialMatchProfile",null,"Africa/Asmera",null,"Spanish - es",null,"Months - Cumulative",null,null,null,null,null,"094",null,null,null,"FAST","English","Conference paper","Article",null,{"$f":"IF(_xlfn.CONCAT('Circ Desks'!C12,\" - \",'Circ Desks'!B12)<>\" - \",_xlfn.CONCAT('Circ Desks'!C12,\" - \",'Circ Desks'!B12),\"\")","v":"Salk Lower Level - BIB_CIRC2"}]
["AZN - Azerbaijanian Manat",null,"Sunday",null,{"$f":"IF(Libraries!A29<>\"\",Libraries!A29,\"\")","v":""},null,"AND",null,"6 - Shelved separately",null,null,null,null,"Book",null,null,"Course Reserve Print","None","Open Days","Week","Week","None","Month","com.exlibris.repository.mms.match.001ToMmsIdMatchProfile","com.exlibris.repository.mms.match.001ToMmsIdMatchProfile",null,"Africa/Bamako",null,"Basque - eu",null,"Months - Discrete",null,null,null,null,"Primo VE - Configuration - Enabled Y/N","095",null,null,null,"German National Library Names and Subject Headings","Spanish","Data file","Book",null,{"$f":"IF(_xlfn.CONCAT('Circ Desks'!C13,\" - \",'Circ Desks'!B13)<>\" - \",_xlfn.CONCAT('Circ Desks'!C13,\" - \",'Circ Desks'!B13),\"\")","v":"Law Reading Room - LAWRR_CIRC"}]
["BSD - Bahamian Dollar",null,null,null,{"$f":"IF(Libraries!A30<>\"\",Libraries!A30,\"\")","v":""},null,"ARE",null,"7 - Source specified in subfield $2",null,null,null,null,"Bound Issue",null,null,"Course Reserve Note",null,"Open Hours","End of Term","None",null,"Week","com.exlibris.repository.mms.match.OtherSystemOrStandardNumberMatchProfile","com.exlibris.repository.mms.match.OtherSystemOrStandardNumberMatchProfile",null,"Africa/Bangui",null,"French - fr",null,"Open Days - Cumulative",null,"Primo VE- Restricted Course Reserves",null,null,"Yes","096",null,null,null,"GSAFD Genre Terms","Basque","Online database","Book item",null,{"$f":"IF(_xlfn.CONCAT('Circ Desks'!C14,\" - \",'Circ Desks'!B14)<>\" - \",_xlfn.CONCAT('Circ Desks'!C14,\" - \",'Circ Desks'!B14),\"\")","v":"Law Library Circulation - DEFAULT_CIRC_DESK"}]
["BHD - Bahraini Dinar",null,null,null,{"$f":"IF(Libraries!A31<>\"\",Libraries!A31,\"\")","v":""},null,"ARG",null,"8 - Other scheme",null,null,null,null,"CD-ROM",null,null,"Database protection override clause",null,"None","End of Year",null,null,null,"com.exlibris.repository.mms.match.TitleStatementExtendedCDLMatchingProfile","com.exlibris.repository.mms.match.TitleStatementExtendedCDLSeMatchingProfile",null,"Africa/Banjul",null,"Hebrew - he",null,"Open Days - Discrete",null,"We would like to have Restricted Search for Course Reserves for the following User Groups",null,null,"No","097",null,null,null,"Haifa Children Library Subjects","French","Dictionary","Conference",null,{"$f":"IF(_xlfn.CONCAT('Circ Desks'!C15,\" - \",'Circ Desks'!B15)<>\" - \",_xlfn.CONCAT('Circ Desks'!C15,\" - \",'Circ Desks'!B15),\"\")","v":"Law Library ILL Circulation - RS_CIRC"}]
["THB - Baht",null,null,null,{"$f":"IF(Libraries!A32<>\"\",Libraries!A32,\"\")","v":""},null,"ARM",null,null,null,null,null,null,"Calculator",null,null,"Digitally copy",null,null,"End of Summer",null,null,null,"com.exlibris.repository.mms.match.IDsAZMatchProfile","com.exlibris.repository.mms.match.IDsAZSerialMatchProfile",null,"Africa/Bissau",null,"Italian - it",null,"Open Days per Open Overdue Days - Cumulative",null,"We don't need Restricted Search for Course Reserves",null,null,null,"098",null,null,null,"Hong Kong Chinese Authority Name","Irish","Encyclopedia","Document",null,{"$f":"IF(_xlfn.CONCAT('Circ Desks'!C16,\" - \",'Circ Desks'!B16)<>\" - \",_xlfn.CONCAT('Circ Desks'!C16,\" - \",'Circ Desks'!B16),\"\")","v":"Graduate Library Circulation - DEFAULT_CIRC_DESK"}]
["PAB - Balboa",null,null,null,{"$f":"IF(Libraries!A33<>\"\",Libraries!A33,\"\")","v":""},null,"ASM",null,null,null,null,null,null,"Case",null,null,"Digital copy note",null,null,null,null,null,null,"com.exlibris.repository.mms.match.ISBNAZMatchProfile","com.exlibris.repository.mms.match.ISSNAZMatchProfile",null,"Africa/Blantyre",null,"Korean - ko",null,"Open Days per Open Overdue Days - Discrete",null,null,null,null,"Primo VE - Configuration - Order","099",null,null,null,"NLI","Hebrew","Generic","Issue",null,{"$f":"IF(_xlfn.CONCAT('Circ Desks'!C17,\" - \",'Circ Desks'!B17)<>\" - \",_xlfn.CONCAT('Circ Desks'!C17,\" - \",'Circ Desks'!B17),\"\")","v":"Music Library Circulation - DEFAULT_CIRC_DESK"}]
["BBD - Barbados Dollar",null,null,null,{"$f":"IF(Libraries!A34<>\"\",Libraries!A34,\"\")","v":""},null,"ATA",null,null,null,null,null,null,"Chart",null,null,"Distance education",null,null,null,null,null,null,"com.exlibris.repository.mms.match.uniqueOCLC","com.exlibris.repository.mms.match.uniqueOCLC",null,"Africa/Brazzaville",null,"Bokmål, Norwegian; Norwegian Bokmål - nb",null,"Weeks - Cumulative",null,null,null,null,1,"490",null,null,null,"Jurivoc","Italian","Government document","Journal",null,{"$f":"IF(_xlfn.CONCAT('Circ Desks'!C18,\" - \",'Circ Desks'!B18)<>\" - \",_xlfn.CONCAT('Circ Desks'!C18,\" - \",'Circ Desks'!B18),\"\")","v":""}]
["BYR - Belarussian Ruble",null,null,null,{"$f":"IF(Libraries!A35<>\"\",Libraries!A35,\"\")","v":""},null,"ATG",null,null,null,null,null,null,"Compact Disc",null,null,"Distance education note",null,null,null,null,null,null,"com.exlibris.repository.mms.match.ExtendedCDLMatchingProfile","com.exlibris.repository.mms.match.ExtendedCDLSeMatchingProfile",null,"Africa/Bujumbura",null,"Dutch; Flemish - nl",null,"Weeks - Discrete",null,null,null,null,2,"500",null,null,null,"LCGFT","Japanese","Journal",null,null,{"$f":"IF(_xlfn.CONCAT('Circ Desks'!C19,\" - \",'Circ Desks'!B19)<>\" - \",_xlfn.CONCAT('Circ Desks'!C19,\" - \",'Circ Desks'!B19),\"\")","v":""}]
["BZD - Belize Dollar",null,null,null,{"$f":"IF(Libraries!A36<>\"\",Libraries!A36,\"\")","v":""},null,"AUS",null,null,null,null,null,null,"Computer Disk",null,null,"Electronic Link",null,null,null,null,null,null,null,null,null,"Africa/Cairo",null,"Norwegian Nynorsk; Nynorsk, Norwegian - nn",null,null,null,null,null,null,3,"501",null,null,null,"lcmpt","Korean","Manuscript",null,null,{"$f":"IF(_xlfn.CONCAT('Circ Desks'!C20,\" - \",'Circ Desks'!B20)<>\" - \",_xlfn.CONCAT('Circ Desks'!C20,\" - \",'Circ Desks'!B20),\"\")","v":""}]
["BMD - Bermudian Dollar (customarily known as Bermuda Dollar)",null,null,null,{"$f":"IF(Libraries!A37<>\"\",Libraries!A37,\"\")","v":""},null,"AUT",null,null,null,null,null,null,"DVD",null,null,"Electronic Link Note",null,null,null,null,null,null,null,null,null,"Africa/Casablanca",null,"Norwegian - no",null,null,null,null,null,null,4,"502",null,null,null,"Library of Congress Subject Headings","Bokmål, Norwegian; Norwegian Bokmål","Map",null,null,{"$f":"IF(_xlfn.CONCAT('Circ Desks'!C21,\" - \",'Circ Desks'!B21)<>\" - \",_xlfn.CONCAT('Circ Desks'!C21,\" - \",'Circ Desks'!B21),\"\")","v":""}]
["VEF - Bolivar Fuerte",null,null,null,{"$f":"IF(Libraries!A38<>\"\",Libraries!A38,\"\")","v":""},null,"AZE",null,null,null,null,null,null,"DVD-ROM",null,null,"Fair use clause",null,null,null,null,null,null,null,null,null,"Africa/Ceuta",null,"Polish - pl",null,null,null,null,null,null,5,"503",null,null,null,"Nuovo Soggettario","Dutch; Flemish","Music score",null,null,{"$f":"IF(_xlfn.CONCAT('Circ Desks'!C22,\" - \",'Circ Desks'!B22)<>\" - \",_xlfn.CONCAT('Circ Desks'!C22,\" - \",'Circ Desks'!B22),\"\")","v":""}]
["BOB - Boliviano",null,null,null,{"$f":"IF(Libraries!A39<>\"\",Libraries!A39,\"\")","v":""},null,"BDI",null,null,null,null,null,null,"Diorama",null,null,"Interlibrary loan electronic",null,null,null,null,null,null,null,null,null,"Africa/Conakry",null,"Northern Sami - se",null,null,null,null,null,null,6,"504",null,null,null,"RAMEAU 21","Norwegian Nynorsk; Nynorsk, Norwegian","Newspaper",null,null,{"$f":"IF(_xlfn.CONCAT('Circ Desks'!C23,\" - \",'Circ Desks'!B23)<>\" - \",_xlfn.CONCAT('Circ Desks'!C23,\" - \",'Circ Desks'!B23),\"\")","v":""}]
["XBA - Bond Markets Units European Composite Unit (EURCO)",null,null,null,{"$f":"IF(Libraries!A40<>\"\",Libraries!A40,\"\")","v":""},null,"BEL",null,null,null,null,null,null,"Ephemera",null,null,"Interlibrary loan print or fax",null,null,null,null,null,null,null,null,null,"Africa/Dakar",null,"Swedish - sv",null,null,null,null,null,null,7,"505",null,null,null,"REO"," Norwegian","Patent",null,null,{"$f":"IF(_xlfn.CONCAT('Circ Desks'!C24,\" - \",'Circ Desks'!B24)<>\" - \",_xlfn.CONCAT('Circ Desks'!C24,\" - \",'Circ Desks'!B24),\"\")","v":""}]
["BRL - Brazilian Real",null,null,null,{"$f":"IF(Libraries!A41<>\"\",Libraries!A41,\"\")","v":""},null,"BEN",null,null,null,null,null,null,"Equipment",null,null,"Interlibrary loan secure electronic transmission",null,null,null,null,null,null,null,null,null,"Africa/Dar_es_Salaam",null,"Danish - da",null,null,null,null,null,null,8,"506",null,null,null,"U.S. National Library of Medicine, Medical Subject Headings 2013","Polish","Sound recording",null,null,{"$f":"IF(_xlfn.CONCAT('Circ Desks'!C25,\" - \",'Circ Desks'!B25)<>\" - \",_xlfn.CONCAT('Circ Desks'!C25,\" - \",'Circ Desks'!B25),\"\")","v":""}]
["BND - Brunei Dollar",null,null,null,{"$f":"IF(Libraries!A42<>\"\",Libraries!A42,\"\")","v":""},null,"BFA",null,null,null,null,null,null,"Filmstrip",null,null,"Interlibrary loan note",null,null,null,null,null,null,null,null,null,"Africa/Djibouti",null,"Japanese - ja ",null,null,null,null,null,null,9,"507",null,null,null,null,"Portuguese","Thesis/Dissertation",null,null,{"$f":"IF(_xlfn.CONCAT('Circ Desks'!C26,\" - \",'Circ Desks'!B26)<>\" - \",_xlfn.CONCAT('Circ Desks'!C26,\" - \",'Circ Desks'!B26),\"\")","v":""}]
["BGN - Bulgarian Lev",null,null,null,{"$f":"IF(Libraries!A43<>\"\",Libraries!A43,\"\")","v":""},null,"BGD",null,null,null,null,null,null,"Flash Card",null,null,"Interlibrary loan record keeping required indicator",null,null,null,null,null,null,null,null,null,"Africa/Douala",null,"Chinese - zh",null,null,null,null,null,null,10,"508",null,null,null,null,"Northern Sami","Video recording",null,null,{"$f":"IF(_xlfn.CONCAT('Circ Desks'!C45,\" - \",'Circ Desks'!B45)<>\" - \",_xlfn.CONCAT('Circ Desks'!C45,\" - \",'Circ Desks'!B45),\"\")","v":""}]
["BIF - Burundi Franc",null,null,null,{"$f":"IF(Libraries!A44<>\"\",Libraries!A44,\"\")","v":""},null,"BGR",null,null,null,null,null,null,"Flat Screen Adaptor",null,null,"Print copy",null,null,null,null,null,null,null,null,null,"Africa/El_Aaiun",null,"Traditional Chinese - zh-tw",null,null,null,null,null,null,11,"509",null,null,null,null,"Swedish",null,null,null,{"$f":"IF(_xlfn.CONCAT('Circ Desks'!C46,\" - \",'Circ Desks'!B46)<>\" - \",_xlfn.CONCAT('Circ Desks'!C46,\" - \",'Circ Desks'!B46),\"\")","v":""}]
["XOF - CFA Franc BCEAO .",null,null,null,{"$f":"IF(Libraries!A45<>\"\",Libraries!A45,\"\")","v":""},null,"BHR",null,null,null,null,null,null,"Flip Video Camera",null,null,"Print copy note",null,null,null,null,null,null,null,null,null,"Africa/Freetown",null,"Irish - ga",null,null,null,null,null,null,12,"510",null,null,null,null,"Chinese",null,null,null,{"$f":"IF(_xlfn.CONCAT('Circ Desks'!C47,\" - \",'Circ Desks'!B47)<>\" - \",_xlfn.CONCAT('Circ Desks'!C47,\" - \",'Circ Desks'!B47),\"\")","v":""}]
["XAF - CFA Franc BEAC .",null,null,null,{"$f":"IF(Libraries!A46<>\"\",Libraries!A46,\"\")","v":""},null,"BHS",null,null,null,null,null,null,"Game",null,null,"Remote Access",null,null,null,null,null,null,null,null,null,"Africa/Gaborone",null,"Arabic - ar",null,null,null,null,null,null,null,"511",null,null,null,null,"Traditional Chinese",null,null,null,{"$f":"IF(_xlfn.CONCAT('Circ Desks'!C48,\" - \",'Circ Desks'!B48)<>\" - \",_xlfn.CONCAT('Circ Desks'!C48,\" - \",'Circ Desks'!B48),\"\")","v":""}]
["XPF - CFP Franc",null,null,null,{"$f":"IF(Libraries!A47<>\"\",Libraries!A47,\"\")","v":""},null,"BIH",null,null,null,null,null,null,"Graphic",null,null,"Scholarly sharing",null,null,null,null,null,null,null,null,null,"Africa/Harare",null,"Portuguese - pt",null,null,null,null,null,null,null,"512",null,null,null,null,null,null,null,null,{"$f":"IF(_xlfn.CONCAT('Circ Desks'!C49,\" - \",'Circ Desks'!B49)<>\" - \",_xlfn.CONCAT('Circ Desks'!C49,\" - \",'Circ Desks'!B49),\"\")","v":""}]
["CAD - Canadian Dollar",null,null,null,{"$f":"IF(Libraries!A48<>\"\",Libraries!A48,\"\")","v":""},null,"BLM",null,null,null,null,null,null,"Headphones",null,null,"Scholarly sharing note",null,null,null,null,null,null,null,null,null,"Africa/Johannesburg",null,null,null,null,null,null,null,null,null,"513",null,null,null,null,null,null,null,null,{"$f":"IF(_xlfn.CONCAT('Circ Desks'!C50,\" - \",'Circ Desks'!B50)<>\" - \",_xlfn.CONCAT('Circ Desks'!C50,\" - \",'Circ Desks'!B50),\"\")","v":""}]
["CVE - Cape Verde Escudo",null,null,null,{"$f":"IF(Libraries!A49<>\"\",Libraries!A49,\"\")","v":""},null,"BLR",null,null,null,null,null,null,"Issue",null,null,"Walk in User Note",null,null,null,null,null,null,null,null,null,"Africa/Juba",null,null,null,null,null,null,null,null,null,"514",null,null,null,null,null,null,null,null,{"$f":"IF(_xlfn.CONCAT('Circ Desks'!C51,\" - \",'Circ Desks'!B51)<>\" - \",_xlfn.CONCAT('Circ Desks'!C51,\" - \",'Circ Desks'!B51),\"\")","v":""}]
["KYD - Cayman Islands Dollar",null,null,null,{"$f":"IF(Libraries!A50<>\"\",Libraries!A50,\"\")","v":""},null,"BLZ",null,null,null,null,null,null,"Kit",null,null,"Concurrent User",null,null,null,null,null,null,null,null,null,"Africa/Kampala",null,null,null,null,null,null,null,null,null,"515",null,null,null,null,null,null,null,null,{"$f":"IF(_xlfn.CONCAT('Circ Desks'!C52,\" - \",'Circ Desks'!B52)<>\" - \",_xlfn.CONCAT('Circ Desks'!C52,\" - \",'Circ Desks'!B52),\"\")","v":""}]
["GHS - Cedi",null,null,null,{"$f":"IF(Libraries!A51<>\"\",Libraries!A51,\"\")","v":""},null,"BMU",null,null,null,null,null,null,"Laptop",null,null,"Concurrent Users Note",null,null,null,null,null,null,null,null,null,"Africa/Khartoum",null,null,null,null,null,null,null,null,null,"516",null,null,null,null,null,null,null,null,{"$f":"IF(_xlfn.CONCAT('Circ Desks'!C53,\" - \",'Circ Desks'!B53)<>\" - \",_xlfn.CONCAT('Circ Desks'!C53,\" - \",'Circ Desks'!B53),\"\")","v":""}]
["CLP - Chilean Peso",null,null,null,{"$f":"IF(Libraries!A52<>\"\",Libraries!A52,\"\")","v":""},null,"BOL",null,null,null,null,null,null,"Laptop Charger",null,null,"Pooled Concurrent Users",null,null,null,null,null,null,null,null,null,"Africa/Kigali",null,null,null,null,null,null,null,null,null,"517",null,null,null,null,null,null,null,null,{"$f":"IF(_xlfn.CONCAT('Circ Desks'!C54,\" - \",'Circ Desks'!B54)<>\" - \",_xlfn.CONCAT('Circ Desks'!C54,\" - \",'Circ Desks'!B54),\"\")","v":""}]
["COP - Colombian Peso",null,null,null,{"$f":"IF(Libraries!A53<>\"\",Libraries!A53,\"\")","v":""},null,"BRA",null,null,null,null,null,null,"Laserdisc",null,null,"Other Use restriction note",null,null,null,null,null,null,null,null,null,"Africa/Kinshasa",null,null,null,null,null,null,null,null,null,"518"]
["KMF - Comoro Franc",null,null,null,null,null,"BRB",null,null,null,null,null,null,"Letter",null,null,"Other User restriction note",null,null,null,null,null,null,null,null,null,"Africa/Lagos",null,null,null,null,null,null,null,null,null,"519"]
["CDF - Congolese Franc",null,null,null,null,null,"BRN",null,null,null,null,null,null,"Manuscript",null,null,"Archiving right",null,null,null,null,null,null,null,null,null,"Africa/Libreville",null,null,null,null,null,null,null,null,null,"520"]
["BAM - Convertible Marks",null,null,null,null,null,"BTN",null,null,null,null,null,null,"Map",null,null,"Archiving format",null,null,null,null,null,null,null,null,null,"Africa/Lome",null,null,null,null,null,null,null,null,null,"521"]
["NIO - Cordoba Oro",null,null,null,null,null,"BWA",null,null,null,null,null,null,"Master Thesis",null,null,"Archiving note",null,null,null,null,null,null,null,null,null,"Africa/Luanda",null,null,null,null,null,null,null,null,null,"522"]
["CRC - Costa Rican Colon",null,null,null,null,null,"CAF",null,null,null,null,null,null,"Microfiche",null,null,"Perpetual Access Holdings",null,null,null,null,null,null,null,null,null,"Africa/Lubumbashi",null,null,null,null,null,null,null,null,null,"523"]
["HRK - Croatian Kuna",null,null,null,null,null,"CAN",null,null,null,null,null,null,"Microfilm",null,null,"Perpetual Access Right",null,null,null,null,null,null,null,null,null,"Africa/Lusaka",null,null,null,null,null,null,null,null,null,"524"]
["CUP - Cuban Peso",null,null,null,null,null,"CHE",null,null,null,null,null,null,"Microscope Slide",null,null,"Perpetual Access note",null,null,null,null,null,null,null,null,null,"Africa/Malabo",null,null,null,null,null,null,null,null,null,"525"]
["CZK - Czech Koruna",null,null,null,null,null,"CHL",null,null,null,null,null,null,"Mixed material",null,null,"Accessibility compliance indicator",null,null,null,null,null,null,null,null,null,"Africa/Maputo",null,null,null,null,null,null,null,null,null,"526"]
["GMD - Dalasi",null,null,null,null,null,"CHN",null,null,null,null,null,null,"Model",null,null,"Applicable Copyright Law",null,null,null,null,null,null,null,null,null,"Africa/Maseru",null,null,null,null,null,null,null,null,null,"527"]
["DKK - Danish Krone",null,null,null,null,null,"CIV",null,null,null,null,null,null,"Music Score",null,null,"Clickwrap modification clause indicator",null,null,null,null,null,null,null,null,null,"Africa/Mbabane",null,null,null,null,null,null,null,null,null,"528"]
["MKD - Denar",null,null,null,null,null,"CMR",null,null,null,null,null,null,"Other",null,null,"Completeness of Content clause indicator",null,null,null,null,null,null,null,null,null,"Africa/Mogadishu",null,null,null,null,null,null,null,null,null,"529"]
["DJF - Djibouti Franc",null,null,null,null,null,"COD",null,null,null,null,null,null,"Oversize",null,null,"Concurrency with print version clause indicator",null,null,null,null,null,null,null,null,null,"Africa/Monrovia",null,null,null,null,null,null,null,null,null,"530"]
["STD - Dobra",null,null,null,null,null,"COG",null,null,null,null,null,null,"Pamphlet",null,null,"Confidentiality of agreement",null,null,null,null,null,null,null,null,null,"Africa/Nairobi",null,null,null,null,null,null,null,null,null,"531"]
["DOP - Dominican Peso",null,null,null,null,null,"COK",null,null,null,null,null,null,"PhD Thesis",null,null,"Confidentiality of agreement note",null,null,null,null,null,null,null,null,null,"Africa/Ndjamena",null,null,null,null,null,null,null,null,null,"532"]
["VND - Dong",null,null,null,null,null,"COL",null,null,null,null,null,null,"Photograph",null,null,"Confidentiality of user information indicator",null,null,null,null,null,null,null,null,null,"Africa/Niamey",null,null,null,null,null,null,null,null,null,"533"]
["XCD - East Caribbean Dollar",null,null,null,null,null,"COM",null,null,null,null,null,null,"Picture",null,null,"Content Warranty",null,null,null,null,null,null,null,null,null,"Africa/Nouakchott",null,null,null,null,null,null,null,null,null,"534"]
["EGP - Egyptian Pound",null,null,null,null,null,"CPV",null,null,null,null,null,null,"Realia",null,null,"Cure Period For Breach",null,null,null,null,null,null,null,null,null,"Africa/Ouagadougou",null,null,null,null,null,null,null,null,null,"535"]
["SVC - El Salvador Colon",null,null,null,null,null,"CRI",null,null,null,null,null,null,"Room",null,null,"Governing Jurisdiction",null,null,null,null,null,null,null,null,null,"Africa/Porto-Novo",null,null,null,null,null,null,null,null,null,"536"]
["ETB - Ethiopian Birr",null,null,null,null,null,"CUB",null,null,null,null,null,null,"Slide",null,null,"Governing law",null,null,null,null,null,null,null,null,null,"Africa/Sao_Tome",null,null,null,null,null,null,null,null,null,"537"]
["EUR - Euro",null,null,null,null,null,"CUW",null,null,null,null,null,null,"Sound Recording",null,null,"Indemnification by licensee clause",null,null,null,null,null,null,null,null,null,"Africa/Timbuktu",null,null,null,null,null,null,null,null,null,"538"]
["XBB - European Monetary Unit (E.M.U.-6)",null,null,null,null,null,"CYM",null,null,null,null,null,null,"Special Degree Thesis",null,null,"Indemnification by licensor clause",null,null,null,null,null,null,null,null,null,"Africa/Tripoli",null,null,null,null,null,null,null,null,null,"539"]
["XBD - European Unit of Account 17(E.U.A.-17)",null,null,null,null,null,"CYP",null,null,null,null,null,null,"Technical Drawing",null,null,"Indemnification note",null,null,null,null,null,null,null,null,null,"Africa/Tunis",null,null,null,null,null,null,null,null,null,"540"]
["XBC - European Unit of Account 9(E.U.A.-9)",null,null,null,null,null,"CZE",null,null,null,null,null,null,"Thesis",null,null,"Intellectual property warranty indicator",null,null,null,null,null,null,null,null,null,"Africa/Windhoek",null,null,null,null,null,null,null,null,null,"541"]
["FKP - Falkland Islands Pound",null,null,null,null,null,"DEU",null,null,null,null,null,null,"Toy",null,null,"Maintenance Window",null,null,null,null,null,null,null,null,null,"America/Adak",null,null,null,null,null,null,null,null,null,"542"]
["FJD - Fiji Dollar",null,null,null,null,null,"DJI",null,null,null,null,null,null,"Transparency",null,null,"Non-Renewal Notice Period",null,null,null,null,null,null,null,null,null,"America/Anchorage",null,null,null,null,null,null,null,null,null,"543"]
["HUF - Forint",null,null,null,null,null,"DMA",null,null,null,null,null,null,"Video cassette",null,null,"Performance Warranty Indicator",null,null,null,null,null,null,null,null,null,"America/Anguilla",null,null,null,null,null,null,null,null,null,"544"]
["GIP - Gibraltar Pound",null,null,null,null,null,"DNK",null,null,null,null,null,null,"iPad",null,null,"Performance Warranty Uptime Guarantee",null,null,null,null,null,null,null,null,null,"America/Antigua",null,null,null,null,null,null,null,null,null,"545"]
["XAU - Gold",null,null,null,null,null,"DOM",null,null,null,null,null,null,null,null,null,"Renewal Type",null,null,null,null,null,null,null,null,null,"America/Araguaina",null,null,null,null,null,null,null,null,null,"546"]
["HTG - Gourde",null,null,null,null,null,"DZA",null,null,null,null,null,null,null,null,null,"UCITA Override Clause Indicator",null,null,null,null,null,null,null,null,null,"America/Argentina/Buenos_Aires",null,null,null,null,null,null,null,null,null,"547"]
["PYG - Guarani",null,null,null,null,null,"ECU",null,null,null,null,null,null,null,null,null,"Licensee Notice Period For Termination",null,null,null,null,null,null,null,null,null,"America/Argentina/Catamarca",null,null,null,null,null,null,null,null,null,"548"]
["GNF - Guinea Franc",null,null,null,null,null,"EGY",null,null,null,null,null,null,null,null,null,"Licensee Termination Condition",null,null,null,null,null,null,null,null,null,"America/Argentina/ComodRivadavia",null,null,null,null,null,null,null,null,null,"549"]
["GWP - Guinea-Bissau Peso",null,null,null,null,null,"ERI",null,null,null,null,null,null,null,null,null,"Licensee Termination Right Indicator",null,null,null,null,null,null,null,null,null,"America/Argentina/Cordoba",null,null,null,null,null,null,null,null,null,"550"]
["GYD - Guyana Dollar",null,null,null,null,null,"ESH",null,null,null,null,null,null,null,null,null,"Licensor Notice Period For Termination",null,null,null,null,null,null,null,null,null,"America/Argentina/Jujuy",null,null,null,null,null,null,null,null,null,"551"]
["HKD - Hong Kong Dollar",null,null,null,null,null,"ESP",null,null,null,null,null,null,null,null,null,"Licensor Termination Condition",null,null,null,null,null,null,null,null,null,"America/Argentina/La_Rioja",null,null,null,null,null,null,null,null,null,"552"]
["UAH - Hryvnia",null,null,null,null,null,"EST",null,null,null,null,null,null,null,null,null,"Licensor Termination Right Indicator",null,null,null,null,null,null,null,null,null,"America/Argentina/Mendoza",null,null,null,null,null,null,null,null,null,"553"]
["ISK - Iceland Krona",null,null,null,null,null,"ETH",null,null,null,null,null,null,null,null,null,"Termination Requirements",null,null,null,null,null,null,null,null,null,"America/Argentina/Rio_Gallegos",null,null,null,null,null,null,null,null,null,"554"]
["INR - Indian Rupee",null,null,null,null,null,"FIN",null,null,null,null,null,null,null,null,null,"Termination Requirements Note",null,null,null,null,null,null,null,null,null,"America/Argentina/Salta",null,null,null,null,null,null,null,null,null,"555"]
["IRR - Iranian Rial",null,null,null,null,null,"FJI",null,null,null,null,null,null,null,null,null,"Termination Right Note",null,null,null,null,null,null,null,null,null,"America/Argentina/San_Juan",null,null,null,null,null,null,null,null,null,"556"]
["IQD - Iraqi Dinar",null,null,null,null,null,"FLK",null,null,null,null,null,null,null,null,null,"Authorized User Definition",null,null,null,null,null,null,null,null,null,"America/Argentina/San_Luis",null,null,null,null,null,null,null,null,null,"557"]
["JMD - Jamaican Dollar",null,null,null,null,null,"FRA",null,null,null,null,null,null,null,null,null,"Local Authorized User Definition",null,null,null,null,null,null,null,null,null,"America/Argentina/Tucuman",null,null,null,null,null,null,null,null,null,"558"]
["JOD - Jordanian Dinar",null,null,null,null,null,"FSM",null,null,null,null,null,null,null,null,null,"Cure Period For Breach Unit Of Measure",null,null,null,null,null,null,null,null,null,"America/Argentina/Ushuaia",null,null,null,null,null,null,null,null,null,"559"]
["KES - Kenyan Shilling",null,null,null,null,null,"GAB",null,null,null,null,null,null,null,null,null,"Licensee Notice Period For Termination Unit Of Measure",null,null,null,null,null,null,null,null,null,"America/Aruba",null,null,null,null,null,null,null,null,null,"560"]
["PGK - Kina",null,null,null,null,null,"GBR",null,null,null,null,null,null,null,null,null,"Licensor Notice Period For Termination Unit Of Measure",null,null,null,null,null,null,null,null,null,"America/Asuncion",null,null,null,null,null,null,null,null,null,"561"]
["LAK - Kip",null,null,null,null,null,"GEO",null,null,null,null,null,null,null,null,null,"Non-Renewal Notice Period Unit Of Measure",null,null,null,null,null,null,null,null,null,"America/Atikokan",null,null,null,null,null,null,null,null,null,"562"]
["EEK - Kroon",null,null,null,null,null,"GGY",null,null,null,null,null,null,null,null,null,"License End Date Tickler",null,null,null,null,null,null,null,null,null,"America/Atka",null,null,null,null,null,null,null,null,null,"563"]
["KWD - Kuwaiti Dinar",null,null,null,null,null,"GHA",null,null,null,null,null,null,null,null,null,"License Replaced By",null,null,null,null,null,null,null,null,null,"America/Bahia",null,null,null,null,null,null,null,null,null,"564"]
["MWK - Kwacha",null,null,null,null,null,"GIB",null,null,null,null,null,null,null,null,null,"License Replaces",null,null,null,null,null,null,null,null,null,"America/Bahia_Banderas",null,null,null,null,null,null,null,null,null,"565"]
["AOA - Kwanza",null,null,null,null,null,"GIN",null,null,null,null,null,null,null,null,null,"License Reviewer Note",null,null,null,null,null,null,null,null,null,"America/Barbados",null,null,null,null,null,null,null,null,null,"566"]
["MMK - Kyat",null,null,null,null,null,"GLP",null,null,null,null,null,null,null,null,null,"Usage Data Set Up Status",null,null,null,null,null,null,null,null,null,"America/Belem",null,null,null,null,null,null,null,null,null,"567"]
["GEL - Lari",null,null,null,null,null,"GMB",null,null,null,null,null,null,null,null,null,"Authorized User Definition",null,null,null,null,null,null,null,null,null,"America/Belize",null,null,null,null,null,null,null,null,null,"568"]
["LVL - Latvian Lats",null,null,null,null,null,"GNB",null,null,null,null,null,null,null,null,null,"Local Authorized User Definition",null,null,null,null,null,null,null,null,null,"America/Blanc-Sablon",null,null,null,null,null,null,null,null,null,"569"]
["LBP - Lebanese Pound",null,null,null,null,null,"GNQ",null,null,null,null,null,null,null,null,null,null,null,null,null,null,null,null,null,null,null,"America/Boa_Vista",null,null,null,null,null,null,null,null,null,"570"]
["ALL - Lek",null,null,null,null,null,"GRC",null,null,null,null,null,null,null,null,null,null,null,null,null,null,null,null,null,null,null,"America/Bogota",null,null,null,null,null,null,null,null,null,"571"]
["HNL - Lempira",null,null,null,null,null,"GRD",null,null,null,null,null,null,null,null,null,null,null,null,null,null,null,null,null,null,null,"America/Boise",null,null,null,null,null,null,null,null,null,"572"]
["SLL - Leone",null,null,null,null,null,"GRL",null,null,null,null,null,null,null,null,null,null,null,null,null,null,null,null,null,null,null,"America/Buenos_Aires",null,null,null,null,null,null,null,null,null,"573"]
["LRD - Liberian Dollar",null,null,null,null,null,"GTM",null,null,null,null,null,null,null,null,null,null,null,null,null,null,null,null,null,null,null,"America/Cambridge_Bay",null,null,null,null,null,null,null,null,null,"574"]
["LYD - Libyan Dinar",null,null,null,null,null,"GUF",null,null,null,null,null,null,null,null,null,null,null,null,null,null,null,null,null,null,null,"America/Campo_Grande",null,null,null,null,null,null,null,null,null,"575"]
["SZL - Lilangeni",null,null,null,null,null,"GUM",null,null,null,null,null,null,null,null,null,null,null,null,null,null,null,null,null,null,null,"America/Cancun",null,null,null,null,null,null,null,null,null,"576"]
["LTL - Lithuanian Litas",null,null,null,null,null,"GUY",null,null,null,null,null,null,null,null,null,null,null,null,null,null,null,null,null,null,null,"America/Caracas",null,null,null,null,null,null,null,null,null,"577"]
["LSL - Loti",null,null,null,null,null,"HKG",null,null,null,null,null,null,null,null,null,null,null,null,null,null,null,null,null,null,null,"America/Catamarca",null,null,null,null,null,null,null,null,null,"578"]
["MGA - Malagasy Ariary",null,null,null,null,null,"HND",null,null,null,null,null,null,null,null,null,null,null,null,null,null,null,null,null,null,null,"America/Cayenne",null,null,null,null,null,null,null,null,null,"579"]
["MYR - Malaysian Ringgit",null,null,null,null,null,"HRV",null,null,null,null,null,null,null,null,null,null,null,null,null,null,null,null,null,null,null,"America/Cayman",null,null,null,null,null,null,null,null,null,"580"]
["TMT - Manat",null,null,null,null,null,"HTI",null,null,null,null,null,null,null,null,null,null,null,null,null,null,null,null,null,null,null,"America/Chicago",null,null,null,null,null,null,null,null,null,"581"]
["MUR - Mauritius Rupee",null,null,null,null,null,"HUN",null,null,null,null,null,null,null,null,null,null,null,null,null,null,null,null,null,null,null,"America/Chihuahua",null,null,null,null,null,null,null,null,null,"582"]
["MZN - Metical",null,null,null,null,null,"IDN",null,null,null,null,null,null,null,null,null,null,null,null,null,null,null,null,null,null,null,"America/Coral_Harbour",null,null,null,null,null,null,null,null,null,"583"]
["MXN - Mexican Peso",null,null,null,null,null,"IND",null,null,null,null,null,null,null,null,null,null,null,null,null,null,null,null,null,null,null,"America/Cordoba",null,null,null,null,null,null,null,null,null,"584"]
["MXV - Mexican Unidad de Inversion (UDI)",null,null,null,null,null,"IRL",null,null,null,null,null,null,null,null,null,null,null,null,null,null,null,null,null,null,null,"America/Costa_Rica",null,null,null,null,null,null,null,null,null,"585"]
["MDL - Moldovan Leu",null,null,null,null,null,"IRN",null,null,null,null,null,null,null,null,null,null,null,null,null,null,null,null,null,null,null,"America/Creston",null,null,null,null,null,null,null,null,null,"586"]
["MAD - Moroccan Dirham",null,null,null,null,null,"IRQ",null,null,null,null,null,null,null,null,null,null,null,null,null,null,null,null,null,null,null,"America/Cuiaba",null,null,null,null,null,null,null,null,null,"587"]
["BOV - Mvdol",null,null,null,null,null,"ISL",null,null,null,null,null,null,null,null,null,null,null,null,null,null,null,null,null,null,null,"America/Curacao",null,null,null,null,null,null,null,null,null,"588"]
["NGN - Naira",null,null,null,null,null,"ISR",null,null,null,null,null,null,null,null,null,null,null,null,null,null,null,null,null,null,null,"America/Danmarkshavn",null,null,null,null,null,null,null,null,null,"589"]
["ERN - Nakfa",null,null,null,null,null,"ITA",null,null,null,null,null,null,null,null,null,null,null,null,null,null,null,null,null,null,null,"America/Dawson",null,null,null,null,null,null,null,null,null,"590"]
["NAD - Namibia Dollar",null,null,null,null,null,"JAM",null,null,null,null,null,null,null,null,null,null,null,null,null,null,null,null,null,null,null,"America/Dawson_Creek",null,null,null,null,null,null,null,null,null,"591"]
["NPR - Nepalese Rupee",null,null,null,null,null,"JOR",null,null,null,null,null,null,null,null,null,null,null,null,null,null,null,null,null,null,null,"America/Denver",null,null,null,null,null,null,null,null,null,"592"]
["ANG - Netherlands Antillian Guilder",null,null,null,null,null,"JPN",null,null,null,null,null,null,null,null,null,null,null,null,null,null,null,null,null,null,null,"America/Detroit",null,null,null,null,null,null,null,null,null,"593"]
["ILS - New Israeli Sheqel",null,null,null,null,null,"KAZ",null,null,null,null,null,null,null,null,null,null,null,null,null,null,null,null,null,null,null,"America/Dominica",null,null,null,null,null,null,null,null,null,"594"]
["RON - New Leu",null,null,null,null,null,"KEN",null,null,null,null,null,null,null,null,null,null,null,null,null,null,null,null,null,null,null,"America/Edmonton",null,null,null,null,null,null,null,null,null,"595"]
["TWD - New Taiwan Dollar",null,null,null,null,null,"KGZ",null,null,null,null,null,null,null,null,null,null,null,null,null,null,null,null,null,null,null,"America/Eirunepe",null,null,null,null,null,null,null,null,null,"596"]
["NZD - New Zealand Dollar",null,null,null,null,null,"KHM",null,null,null,null,null,null,null,null,null,null,null,null,null,null,null,null,null,null,null,"America/El_Salvador",null,null,null,null,null,null,null,null,null,"597"]
["BTN - Ngultrum",null,null,null,null,null,"KIR",null,null,null,null,null,null,null,null,null,null,null,null,null,null,null,null,null,null,null,"America/Ensenada",null,null,null,null,null,null,null,null,null,"598"]
["KPW - North Korean Won",null,null,null,null,null,"KOR",null,null,null,null,null,null,null,null,null,null,null,null,null,null,null,null,null,null,null,"America/Fort_Wayne",null,null,null,null,null,null,null,null,null,"599"]
["NOK - Norwegian Krone",null,null,null,null,null,"KWT",null,null,null,null,null,null,null,null,null,null,null,null,null,null,null,null,null,null,null,"America/Fortaleza",null,null,null,null,null,null,null,null,null,"690"]
["PEN - Nuevo Sol",null,null,null,null,null,"LAO",null,null,null,null,null,null,null,null,null,null,null,null,null,null,null,null,null,null,null,"America/Glace_Bay",null,null,null,null,null,null,null,null,null,"691"]
["MRO - Ouguiya",null,null,null,null,null,"LBN",null,null,null,null,null,null,null,null,null,null,null,null,null,null,null,null,null,null,null,"America/Godthab",null,null,null,null,null,null,null,null,null,"692"]
["TOP - Pa'anga",null,null,null,null,null,"LBR",null,null,null,null,null,null,null,null,null,null,null,null,null,null,null,null,null,null,null,"America/Goose_Bay",null,null,null,null,null,null,null,null,null,"693"]
["PKR - Pakistan Rupee",null,null,null,null,null,"LBY",null,null,null,null,null,null,null,null,null,null,null,null,null,null,null,null,null,null,null,"America/Grand_Turk",null,null,null,null,null,null,null,null,null,"694"]
["XPD - Palladium",null,null,null,null,null,"LIE",null,null,null,null,null,null,null,null,null,null,null,null,null,null,null,null,null,null,null,"America/Grenada",null,null,null,null,null,null,null,null,null,"695"]
["MOP - Pataca",null,null,null,null,null,"LKA",null,null,null,null,null,null,null,null,null,null,null,null,null,null,null,null,null,null,null,"America/Guadeloupe",null,null,null,null,null,null,null,null,null,"696"]
["CUC - Peso Convertible",null,null,null,null,null,"LSO",null,null,null,null,null,null,null,null,null,null,null,null,null,null,null,null,null,null,null,"America/Guatemala",null,null,null,null,null,null,null,null,null,"697"]
["UYU - Peso Uruguayo",null,null,null,null,null,"LTU",null,null,null,null,null,null,null,null,null,null,null,null,null,null,null,null,null,null,null,"America/Guayaquil",null,null,null,null,null,null,null,null,null,"698"]
["PHP - Philippine Peso",null,null,null,null,null,"LUX",null,null,null,null,null,null,null,null,null,null,null,null,null,null,null,null,null,null,null,"America/Guyana",null,null,null,null,null,null,null,null,null,"699"]
["XPT - Platinum",null,null,null,null,null,"LVA",null,null,null,null,null,null,null,null,null,null,null,null,null,null,null,null,null,null,null,"America/Halifax",null,null,null,null,null,null,null,null,null,"900"]
["GBP - Pound Sterling",null,null,null,null,null,"MAC",null,null,null,null,null,null,null,null,null,null,null,null,null,null,null,null,null,null,null,"America/Havana",null,null,null,null,null,null,null,null,null,"901"]
["BWP - Pula",null,null,null,null,null,"MAR",null,null,null,null,null,null,null,null,null,null,null,null,null,null,null,null,null,null,null,"America/Hermosillo",null,null,null,null,null,null,null,null,null,"902"]
["QAR - Qatari Rial",null,null,null,null,null,"MCO",null,null,null,null,null,null,null,null,null,null,null,null,null,null,null,null,null,null,null,"America/Indiana/Indianapolis",null,null,null,null,null,null,null,null,null,"903"]
["GTQ - Quetzal",null,null,null,null,null,"MDA",null,null,null,null,null,null,null,null,null,null,null,null,null,null,null,null,null,null,null,"America/Indiana/Knox",null,null,null,null,null,null,null,null,null,"904"]
["ZAR - Rand",null,null,null,null,null,"MDG",null,null,null,null,null,null,null,null,null,null,null,null,null,null,null,null,null,null,null,"America/Indiana/Marengo",null,null,null,null,null,null,null,null,null,"905"]
["OMR - Rial Omani",null,null,null,null,null,"MDV",null,null,null,null,null,null,null,null,null,null,null,null,null,null,null,null,null,null,null,"America/Indiana/Petersburg",null,null,null,null,null,null,null,null,null,"906"]
["KHR - Riel",null,null,null,null,null,"MEX",null,null,null,null,null,null,null,null,null,null,null,null,null,null,null,null,null,null,null,"America/Indiana/Tell_City",null,null,null,null,null,null,null,null,null,"907"]
["MVR - Rufiyaa",null,null,null,null,null,"MHL",null,null,null,null,null,null,null,null,null,null,null,null,null,null,null,null,null,null,null,"America/Indiana/Vevay",null,null,null,null,null,null,null,null,null,"908"]
["IDR - Rupiah",null,null,null,null,null,"MKD",null,null,null,null,null,null,null,null,null,null,null,null,null,null,null,null,null,null,null,"America/Indiana/Vincennes",null,null,null,null,null,null,null,null,null,"909"]
["RUB - Russian Ruble",null,null,null,null,null,"MLI",null,null,null,null,null,null,null,null,null,null,null,null,null,null,null,null,null,null,null,"America/Indiana/Winamac",null,null,null,null,null,null,null,null,null,"910"]
["RWF - Rwanda Franc",null,null,null,null,null,"MLT",null,null,null,null,null,null,null,null,null,null,null,null,null,null,null,null,null,null,null,"America/Indianapolis",null,null,null,null,null,null,null,null,null,"911"]
["XDR - SDR",null,null,null,null,null,"MMR",null,null,null,null,null,null,null,null,null,null,null,null,null,null,null,null,null,null,null,"America/Inuvik",null,null,null,null,null,null,null,null,null,"912"]
["SHP - Saint Helena Pound",null,null,null,null,null,"MNE",null,null,null,null,null,null,null,null,null,null,null,null,null,null,null,null,null,null,null,"America/Iqaluit",null,null,null,null,null,null,null,null,null,"913"]
["SAR - Saudi Riyal",null,null,null,null,null,"MNG",null,null,null,null,null,null,null,null,null,null,null,null,null,null,null,null,null,null,null,"America/Jamaica",null,null,null,null,null,null,null,null,null,"914"]
["RSD - Serbian Dinar",null,null,null,null,null,"MOZ",null,null,null,null,null,null,null,null,null,null,null,null,null,null,null,null,null,null,null,"America/Jujuy",null,null,null,null,null,null,null,null,null,"915"]
["SCR - Seychelles Rupee",null,null,null,null,null,"MRT",null,null,null,null,null,null,null,null,null,null,null,null,null,null,null,null,null,null,null,"America/Juneau",null,null,null,null,null,null,null,null,null,"916"]
["XAG - Silver",null,null,null,null,null,"MSR",null,null,null,null,null,null,null,null,null,null,null,null,null,null,null,null,null,null,null,"America/Kentucky/Louisville",null,null,null,null,null,null,null,null,null,"917"]
["SGD - Singapore Dollar",null,null,null,null,null,"MTQ",null,null,null,null,null,null,null,null,null,null,null,null,null,null,null,null,null,null,null,"America/Kentucky/Monticello",null,null,null,null,null,null,null,null,null,"918"]
["SBD - Solomon Islands Dollar",null,null,null,null,null,"MUS",null,null,null,null,null,null,null,null,null,null,null,null,null,null,null,null,null,null,null,"America/Knox_IN",null,null,null,null,null,null,null,null,null,"919"]
["KGS - Som",null,null,null,null,null,"MWI",null,null,null,null,null,null,null,null,null,null,null,null,null,null,null,null,null,null,null,"America/Kralendijk",null,null,null,null,null,null,null,null,null,"920"]
["SOS - Somali Shilling",null,null,null,null,null,"MYS",null,null,null,null,null,null,null,null,null,null,null,null,null,null,null,null,null,null,null,"America/La_Paz",null,null,null,null,null,null,null,null,null,"921"]
["TJS - Somoni",null,null,null,null,null,"NAM",null,null,null,null,null,null,null,null,null,null,null,null,null,null,null,null,null,null,null,"America/Lima",null,null,null,null,null,null,null,null,null,"922"]
["LKR - Sri Lanka Rupee",null,null,null,null,null,"NCL",null,null,null,null,null,null,null,null,null,null,null,null,null,null,null,null,null,null,null,"America/Los_Angeles",null,null,null,null,null,null,null,null,null,"923"]
["SDG - Sudanese Pound",null,null,null,null,null,"NER",null,null,null,null,null,null,null,null,null,null,null,null,null,null,null,null,null,null,null,"America/Louisville",null,null,null,null,null,null,null,null,null,"924"]
["SRD - Surinam Dollar",null,null,null,null,null,"NFK",null,null,null,null,null,null,null,null,null,null,null,null,null,null,null,null,null,null,null,"America/Lower_Princes",null,null,null,null,null,null,null,null,null,"925"]
["SEK - Swedish Krona",null,null,null,null,null,"NGA",null,null,null,null,null,null,null,null,null,null,null,null,null,null,null,null,null,null,null,"America/Maceio",null,null,null,null,null,null,null,null,null,"926"]
["CHF - Swiss Franc",null,null,null,null,null,"NIC",null,null,null,null,null,null,null,null,null,null,null,null,null,null,null,null,null,null,null,"America/Managua",null,null,null,null,null,null,null,null,null,"927"]
["SYP - Syrian Pound",null,null,null,null,null,"NIU",null,null,null,null,null,null,null,null,null,null,null,null,null,null,null,null,null,null,null,"America/Manaus",null,null,null,null,null,null,null,null,null,"928"]
["BDT - Taka",null,null,null,null,null,"NLD",null,null,null,null,null,null,null,null,null,null,null,null,null,null,null,null,null,null,null,"America/Marigot",null,null,null,null,null,null,null,null,null,"929"]
["WST - Tala",null,null,null,null,null,"NOR",null,null,null,null,null,null,null,null,null,null,null,null,null,null,null,null,null,null,null,"America/Martinique",null,null,null,null,null,null,null,null,null,"930"]
["TZS - Tanzanian Shilling",null,null,null,null,null,"NPL",null,null,null,null,null,null,null,null,null,null,null,null,null,null,null,null,null,null,null,"America/Matamoros",null,null,null,null,null,null,null,null,null,"931"]
["KZT - Tenge",null,null,null,null,null,"NRU",null,null,null,null,null,null,null,null,null,null,null,null,null,null,null,null,null,null,null,"America/Mazatlan",null,null,null,null,null,null,null,null,null,"932"]
["TTD - Trinidad and Tobago Dollar",null,null,null,null,null,"NZL",null,null,null,null,null,null,null,null,null,null,null,null,null,null,null,null,null,null,null,"America/Mendoza",null,null,null,null,null,null,null,null,null,"933"]
["MNT - Tugrik",null,null,null,null,null,"OMN",null,null,null,null,null,null,null,null,null,null,null,null,null,null,null,null,null,null,null,"America/Menominee",null,null,null,null,null,null,null,null,null,"934"]
["TND - Tunisian Dinar",null,null,null,null,null,"PAK",null,null,null,null,null,null,null,null,null,null,null,null,null,null,null,null,null,null,null,"America/Merida",null,null,null,null,null,null,null,null,null,"935"]
["TRY - Turkish Lira",null,null,null,null,null,"PAN",null,null,null,null,null,null,null,null,null,null,null,null,null,null,null,null,null,null,null,"America/Metlakatla",null,null,null,null,null,null,null,null,null,"936"]
["AED - UAE Dirham",null,null,null,null,null,"PCN",null,null,null,null,null,null,null,null,null,null,null,null,null,null,null,null,null,null,null,"America/Mexico_City",null,null,null,null,null,null,null,null,null,"937"]
["USD - US Dollar",null,null,null,null,null,"PER",null,null,null,null,null,null,null,null,null,null,null,null,null,null,null,null,null,null,null,"America/Miquelon",null,null,null,null,null,null,null,null,null,"938"]
["USN - US Dollar (Next day)",null,null,null,null,null,"PHL",null,null,null,null,null,null,null,null,null,null,null,null,null,null,null,null,null,null,null,"America/Moncton",null,null,null,null,null,null,null,null,null,"939"]
["USS - US Dollar (Same day)",null,null,null,null,null,"PLW",null,null,null,null,null,null,null,null,null,null,null,null,null,null,null,null,null,null,null,"America/Monterrey",null,null,null,null,null,null,null,null,null,"940"]
["UGX - Uganda Shilling",null,null,null,null,null,"PNG",null,null,null,null,null,null,null,null,null,null,null,null,null,null,null,null,null,null,null,"America/Montevideo",null,null,null,null,null,null,null,null,null,"941"]
["COU - Unidad de Valor Real",null,null,null,null,null,"POL",null,null,null,null,null,null,null,null,null,null,null,null,null,null,null,null,null,null,null,"America/Montreal",null,null,null,null,null,null,null,null,null,"942"]
["CLF - Unidades de fomento",null,null,null,null,null,"PRI",null,null,null,null,null,null,null,null,null,null,null,null,null,null,null,null,null,null,null,"America/Montserrat",null,null,null,null,null,null,null,null,null,"943"]
["UYI - Uruguay Peso en Unidades Indexadas",null,null,null,null,null,"PRK",null,null,null,null,null,null,null,null,null,null,null,null,null,null,null,null,null,null,null,"America/Nassau",null,null,null,null,null,null,null,null,null,"944"]
["UZS - Uzbekistan Sum",null,null,null,null,null,"PRT",null,null,null,null,null,null,null,null,null,null,null,null,null,null,null,null,null,null,null,"America/New_York",null,null,null,null,null,null,null,null,null,"945"]
["VUV - Vatu",null,null,null,null,null,"PRY",null,null,null,null,null,null,null,null,null,null,null,null,null,null,null,null,null,null,null,"America/Nipigon",null,null,null,null,null,null,null,null,null,"946"]
["CHE - WIR Euro",null,null,null,null,null,"PYF",null,null,null,null,null,null,null,null,null,null,null,null,null,null,null,null,null,null,null,"America/Nome",null,null,null,null,null,null,null,null,null,"947"]
["CHW - WIR Franc",null,null,null,null,null,"QAT",null,null,null,null,null,null,null,null,null,null,null,null,null,null,null,null,null,null,null,"America/Noronha",null,null,null,null,null,null,null,null,null,"948"]
["KRW - Won",null,null,null,null,null,"ROU",null,null,null,null,null,null,null,null,null,null,null,null,null,null,null,null,null,null,null,"America/North_Dakota/Beulah",null,null,null,null,null,null,null,null,null,"949"]
["YER - Yemeni Rial",null,null,null,null,null,"RUS",null,null,null,null,null,null,null,null,null,null,null,null,null,null,null,null,null,null,null,"America/North_Dakota/Center",null,null,null,null,null,null,null,null,null,"950"]
["JPY - Yen",null,null,null,null,null,"RWA",null,null,null,null,null,null,null,null,null,null,null,null,null,null,null,null,null,null,null,"America/North_Dakota/New_Salem",null,null,null,null,null,null,null,null,null,"951"]
["CNY - Yuan Renminbi",null,null,null,null,null,"SAU",null,null,null,null,null,null,null,null,null,null,null,null,null,null,null,null,null,null,null,"America/Ojinaga",null,null,null,null,null,null,null,null,null,"952"]
["ZMK - Zambian Kwacha",null,null,null,null,null,"SDN",null,null,null,null,null,null,null,null,null,null,null,null,null,null,null,null,null,null,null,"America/Panama",null,null,null,null,null,null,null,null,null,"953"]
["ZWL - Zimbabwe Dollar",null,null,null,null,null,"SEN",null,null,null,null,null,null,null,null,null,null,null,null,null,null,null,null,null,null,null,"America/Pangnirtung",null,null,null,null,null,null,null,null,null,"954"]
["PLN - Zloty",null,null,null,null,null,"SGP",null,null,null,null,null,null,null,null,null,null,null,null,null,null,null,null,null,null,null,"America/Paramaribo",null,null,null,null,null,null,null,null,null,"955"]
[null,null,null,null,null,null,"SLB",null,null,null,null,null,null,null,null,null,null,null,null,null,null,null,null,null,null,null,"America/Phoenix",null,null,null,null,null,null,null,null,null,"956"]
[null,null,null,null,null,null,"SLE",null,null,null,null,null,null,null,null,null,null,null,null,null,null,null,null,null,null,null,"America/Port-au-Prince",null,null,null,null,null,null,null,null,null,"957"]
[null,null,null,null,null,null,"SLV",null,null,null,null,null,null,null,null,null,null,null,null,null,null,null,null,null,null,null,"America/Port_of_Spain",null,null,null,null,null,null,null,null,null,"958"]
[null,null,null,null,null,null,"SMR",null,null,null,null,null,null,null,null,null,null,null,null,null,null,null,null,null,null,null,"America/Porto_Acre",null,null,null,null,null,null,null,null,null,"959"]
[null,null,null,null,null,null,"SOM",null,null,null,null,null,null,null,null,null,null,null,null,null,null,null,null,null,null,null,"America/Porto_Velho",null,null,null,null,null,null,null,null,null,"960"]
[null,null,null,null,null,null,"SRB",null,null,null,null,null,null,null,null,null,null,null,null,null,null,null,null,null,null,null,"America/Puerto_Rico",null,null,null,null,null,null,null,null,null,"961"]
[null,null,null,null,null,null,"SUR",null,null,null,null,null,null,null,null,null,null,null,null,null,null,null,null,null,null,null,"America/Rainy_River",null,null,null,null,null,null,null,null,null,"962"]
[null,null,null,null,null,null,"SVK",null,null,null,null,null,null,null,null,null,null,null,null,null,null,null,null,null,null,null,"America/Rankin_Inlet",null,null,null,null,null,null,null,null,null,"963"]
[null,null,null,null,null,null,"SVN",null,null,null,null,null,null,null,null,null,null,null,null,null,null,null,null,null,null,null,"America/Recife",null,null,null,null,null,null,null,null,null,"964"]
[null,null,null,null,null,null,"SWE",null,null,null,null,null,null,null,null,null,null,null,null,null,null,null,null,null,null,null,"America/Regina",null,null,null,null,null,null,null,null,null,"965"]
[null,null,null,null,null,null,"SWZ",null,null,null,null,null,null,null,null,null,null,null,null,null,null,null,null,null,null,null,"America/Resolute",null,null,null,null,null,null,null,null,null,"966"]
[null,null,null,null,null,null,"SYC",null,null,null,null,null,null,null,null,null,null,null,null,null,null,null,null,null,null,null,"America/Rio_Branco",null,null,null,null,null,null,null,null,null,"967"]
[null,null,null,null,null,null,"SYR",null,null,null,null,null,null,null,null,null,null,null,null,null,null,null,null,null,null,null,"America/Rosario",null,null,null,null,null,null,null,null,null,"968"]
[null,null,null,null,null,null,"TCD",null,null,null,null,null,null,null,null,null,null,null,null,null,null,null,null,null,null,null,"America/Santa_Isabel",null,null,null,null,null,null,null,null,null,"969"]
[null,null,null,null,null,null,"TGO",null,null,null,null,null,null,null,null,null,null,null,null,null,null,null,null,null,null,null,"America/Santarem",null,null,null,null,null,null,null,null,null,"970"]
[null,null,null,null,null,null,"THA",null,null,null,null,null,null,null,null,null,null,null,null,null,null,null,null,null,null,null,"America/Santiago",null,null,null,null,null,null,null,null,null,"971"]
[null,null,null,null,null,null,"TJK",null,null,null,null,null,null,null,null,null,null,null,null,null,null,null,null,null,null,null,"America/Santo_Domingo",null,null,null,null,null,null,null,null,null,"972"]
[null,null,null,null,null,null,"TKL",null,null,null,null,null,null,null,null,null,null,null,null,null,null,null,null,null,null,null,"America/Sao_Paulo",null,null,null,null,null,null,null,null,null,"973"]
[null,null,null,null,null,null,"TKM",null,null,null,null,null,null,null,null,null,null,null,null,null,null,null,null,null,null,null,"America/Scoresbysund",null,null,null,null,null,null,null,null,null,"974"]
[null,null,null,null,null,null,"TLS",null,null,null,null,null,null,null,null,null,null,null,null,null,null,null,null,null,null,null,"America/Shiprock",null,null,null,null,null,null,null,null,null,"975"]
[null,null,null,null,null,null,"TON",null,null,null,null,null,null,null,null,null,null,null,null,null,null,null,null,null,null,null,"America/Sitka",null,null,null,null,null,null,null,null,null,"976"]
[null,null,null,null,null,null,"TTO",null,null,null,null,null,null,null,null,null,null,null,null,null,null,null,null,null,null,null,"America/St_Barthelemy",null,null,null,null,null,null,null,null,null,"977"]
[null,null,null,null,null,null,"TUN",null,null,null,null,null,null,null,null,null,null,null,null,null,null,null,null,null,null,null,"America/St_Johns",null,null,null,null,null,null,null,null,null,"978"]
[null,null,null,null,null,null,"TUR",null,null,null,null,null,null,null,null,null,null,null,null,null,null,null,null,null,null,null,"America/St_Kitts",null,null,null,null,null,null,null,null,null,"979"]
[null,null,null,null,null,null,"TUV",null,null,null,null,null,null,null,null,null,null,null,null,null,null,null,null,null,null,null,"America/St_Lucia",null,null,null,null,null,null,null,null,null,"980"]
[null,null,null,null,null,null,"TWN",null,null,null,null,null,null,null,null,null,null,null,null,null,null,null,null,null,null,null,"America/St_Thomas",null,null,null,null,null,null,null,null,null,"981"]
[null,null,null,null,null,null,"TZA",null,null,null,null,null,null,null,null,null,null,null,null,null,null,null,null,null,null,null,"America/St_Vincent",null,null,null,null,null,null,null,null,null,"982"]
[null,null,null,null,null,null,"UGA",null,null,null,null,null,null,null,null,null,null,null,null,null,null,null,null,null,null,null,"America/Swift_Current",null,null,null,null,null,null,null,null,null,"983"]
[null,null,null,null,null,null,"UKR",null,null,null,null,null,null,null,null,null,null,null,null,null,null,null,null,null,null,null,"America/Tegucigalpa",null,null,null,null,null,null,null,null,null,"984"]
[null,null,null,null,null,null,"URY",null,null,null,null,null,null,null,null,null,null,null,null,null,null,null,null,null,null,null,"America/Thule",null,null,null,null,null,null,null,null,null,"985"]
[null,null,null,null,null,null,"USA",null,null,null,null,null,null,null,null,null,null,null,null,null,null,null,null,null,null,null,"America/Thunder_Bay",null,null,null,null,null,null,null,null,null,"986"]
[null,null,null,null,null,null,"UZB",null,null,null,null,null,null,null,null,null,null,null,null,null,null,null,null,null,null,null,"America/Tijuana",null,null,null,null,null,null,null,null,null,"987"]
[null,null,null,null,null,null,"VAT",null,null,null,null,null,null,null,null,null,null,null,null,null,null,null,null,null,null,null,"America/Toronto",null,null,null,null,null,null,null,null,null,"988"]
[null,null,null,null,null,null,"VCT",null,null,null,null,null,null,null,null,null,null,null,null,null,null,null,null,null,null,null,"America/Tortola",null,null,null,null,null,null,null,null,null,"989"]
[null,null,null,null,null,null,"VEN",null,null,null,null,null,null,null,null,null,null,null,null,null,null,null,null,null,null,null,"America/Vancouver",null,null,null,null,null,null,null,null,null,"990"]
[null,null,null,null,null,null,"VGB",null,null,null,null,null,null,null,null,null,null,null,null,null,null,null,null,null,null,null,"America/Virgin",null,null,null,null,null,null,null,null,null,"991"]
[null,null,null,null,null,null,"VIR",null,null,null,null,null,null,null,null,null,null,null,null,null,null,null,null,null,null,null,"America/Whitehorse",null,null,null,null,null,null,null,null,null,"992"]
[null,null,null,null,null,null,"VNM",null,null,null,null,null,null,null,null,null,null,null,null,null,null,null,null,null,null,null,"America/Winnipeg",null,null,null,null,null,null,null,null,null,"993"]
[null,null,null,null,null,null,"VUT",null,null,null,null,null,null,null,null,null,null,null,null,null,null,null,null,null,null,null,"America/Yakutat",null,null,null,null,null,null,null,null,null,"994"]
[null,null,null,null,null,null,"WLF",null,null,null,null,null,null,null,null,null,null,null,null,null,null,null,null,null,null,null,"America/Yellowknife",null,null,null,null,null,null,null,null,null,"995"]
[null,null,null,null,null,null,"WSM",null,null,null,null,null,null,null,null,null,null,null,null,null,null,null,null,null,null,null,"Antarctica/Casey",null,null,null,null,null,null,null,null,null,"996"]
[null,null,null,null,null,null,"YEM",null,null,null,null,null,null,null,null,null,null,null,null,null,null,null,null,null,null,null,"Antarctica/Davis",null,null,null,null,null,null,null,null,null,"997"]
[null,null,null,null,null,null,"ZAF",null,null,null,null,null,null,null,null,null,null,null,null,null,null,null,null,null,null,null,"Antarctica/DumontDUrville",null,null,null,null,null,null,null,null,null,"998"]
[null,null,null,null,null,null,"ZMB",null,null,null,null,null,null,null,null,null,null,null,null,null,null,null,null,null,null,null,"Antarctica/Macquarie",null,null,null,null,null,null,null,null,null,"999"]
[null,null,null,null,null,null,"ZWE",null,null,null,null,null,null,null,null,null,null,null,null,null,null,null,null,null,null,null,"Antarctica/Mawson"]
[null,null,null,null,null,null,null,null,null,null,null,null,null,null,null,null,null,null,null,null,null,null,null,null,null,null,"Antarctica/McMurdo"]
[null,null,null,null,null,null,null,null,null,null,null,null,null,null,null,null,null,null,null,null,null,null,null,null,null,null,"Antarctica/Palmer"]
[null,null,null,null,null,null,null,null,null,null,null,null,null,null,null,null,null,null,null,null,null,null,null,null,null,null,"Antarctica/Rothera"]
[null,null,null,null,null,null,null,null,null,null,null,null,null,null,null,null,null,null,null,null,null,null,null,null,null,null,"Antarctica/South_Pole"]
[null,null,null,null,null,null,null,null,null,null,null,null,null,null,null,null,null,null,null,null,null,null,null,null,null,null,"Antarctica/Syowa"]
[null,null,null,null,null,null,null,null,null,null,null,null,null,null,null,null,null,null,null,null,null,null,null,null,null,null,"Antarctica/Vostok"]
[null,null,null,null,null,null,null,null,null,null,null,null,null,null,null,null,null,null,null,null,null,null,null,null,null,null,"Arctic/Longyearbyen"]
[null,null,null,null,null,null,null,null,null,null,null,null,null,null,null,null,null,null,null,null,null,null,null,null,null,null,"Asia/Aden"]
[null,null,null,null,null,null,null,null,null,null,null,null,null,null,null,null,null,null,null,null,null,null,null,null,null,null,"Asia/Almaty"]
[null,null,null,null,null,null,null,null,null,null,null,null,null,null,null,null,null,null,null,null,null,null,null,null,null,null,"Asia/Amman"]
[null,null,null,null,null,null,null,null,null,null,null,null,null,null,null,null,null,null,null,null,null,null,null,null,null,null,"Asia/Anadyr"]
[null,null,null,null,null,null,null,null,null,null,null,null,null,null,null,null,null,null,null,null,null,null,null,null,null,null,"Asia/Aqtau"]
[null,null,null,null,null,null,null,null,null,null,null,null,null,null,null,null,null,null,null,null,null,null,null,null,null,null,"Asia/Aqtobe"]
[null,null,null,null,null,null,null,null,null,null,null,null,null,null,null,null,null,null,null,null,null,null,null,null,null,null,"Asia/Ashgabat"]
[null,null,null,null,null,null,null,null,null,null,null,null,null,null,null,null,null,null,null,null,null,null,null,null,null,null,"Asia/Ashkhabad"]
[null,null,null,null,null,null,null,null,null,null,null,null,null,null,null,null,null,null,null,null,null,null,null,null,null,null,"Asia/Baghdad"]
[null,null,null,null,null,null,null,null,null,null,null,null,null,null,null,null,null,null,null,null,null,null,null,null,null,null,"Asia/Bahrain"]
[null,null,null,null,null,null,null,null,null,null,null,null,null,null,null,null,null,null,null,null,null,null,null,null,null,null,"Asia/Baku"]
[null,null,null,null,null,null,null,null,null,null,null,null,null,null,null,null,null,null,null,null,null,null,null,null,null,null,"Asia/Bangkok"]
[null,null,null,null,null,null,null,null,null,null,null,null,null,null,null,null,null,null,null,null,null,null,null,null,null,null,"Asia/Beirut"]
[null,null,null,null,null,null,null,null,null,null,null,null,null,null,null,null,null,null,null,null,null,null,null,null,null,null,"Asia/Bishkek"]
[null,null,null,null,null,null,null,null,null,null,null,null,null,null,null,null,null,null,null,null,null,null,null,null,null,null,"Asia/Brunei"]
[null,null,null,null,null,null,null,null,null,null,null,null,null,null,null,null,null,null,null,null,null,null,null,null,null,null,"Asia/Calcutta"]
[null,null,null,null,null,null,null,null,null,null,null,null,null,null,null,null,null,null,null,null,null,null,null,null,null,null,"Asia/Choibalsan"]
[null,null,null,null,null,null,null,null,null,null,null,null,null,null,null,null,null,null,null,null,null,null,null,null,null,null,"Asia/Chongqing"]
[null,null,null,null,null,null,null,null,null,null,null,null,null,null,null,null,null,null,null,null,null,null,null,null,null,null,"Asia/Chungking"]
[null,null,null,null,null,null,null,null,null,null,null,null,null,null,null,null,null,null,null,null,null,null,null,null,null,null,"Asia/Colombo"]
[null,null,null,null,null,null,null,null,null,null,null,null,null,null,null,null,null,null,null,null,null,null,null,null,null,null,"Asia/Dacca"]
[null,null,null,null,null,null,null,null,null,null,null,null,null,null,null,null,null,null,null,null,null,null,null,null,null,null,"Asia/Damascus"]
[null,null,null,null,null,null,null,null,null,null,null,null,null,null,null,null,null,null,null,null,null,null,null,null,null,null,"Asia/Dhaka"]
[null,null,null,null,null,null,null,null,null,null,null,null,null,null,null,null,null,null,null,null,null,null,null,null,null,null,"Asia/Dili"]
[null,null,null,null,null,null,null,null,null,null,null,null,null,null,null,null,null,null,null,null,null,null,null,null,null,null,"Asia/Dubai"]
[null,null,null,null,null,null,null,null,null,null,null,null,null,null,null,null,null,null,null,null,null,null,null,null,null,null,"Asia/Dushanbe"]
[null,null,null,null,null,null,null,null,null,null,null,null,null,null,null,null,null,null,null,null,null,null,null,null,null,null,"Asia/Gaza"]
[null,null,null,null,null,null,null,null,null,null,null,null,null,null,null,null,null,null,null,null,null,null,null,null,null,null,"Asia/Harbin"]
[null,null,null,null,null,null,null,null,null,null,null,null,null,null,null,null,null,null,null,null,null,null,null,null,null,null,"Asia/Hebron"]
[null,null,null,null,null,null,null,null,null,null,null,null,null,null,null,null,null,null,null,null,null,null,null,null,null,null,"Asia/Ho_Chi_Minh"]
[null,null,null,null,null,null,null,null,null,null,null,null,null,null,null,null,null,null,null,null,null,null,null,null,null,null,"Asia/Hong_Kong"]
[null,null,null,null,null,null,null,null,null,null,null,null,null,null,null,null,null,null,null,null,null,null,null,null,null,null,"Asia/Hovd"]
[null,null,null,null,null,null,null,null,null,null,null,null,null,null,null,null,null,null,null,null,null,null,null,null,null,null,"Asia/Irkutsk"]
[null,null,null,null,null,null,null,null,null,null,null,null,null,null,null,null,null,null,null,null,null,null,null,null,null,null,"Asia/Istanbul"]
[null,null,null,null,null,null,null,null,null,null,null,null,null,null,null,null,null,null,null,null,null,null,null,null,null,null,"Asia/Jakarta"]
[null,null,null,null,null,null,null,null,null,null,null,null,null,null,null,null,null,null,null,null,null,null,null,null,null,null,"Asia/Jayapura"]
[null,null,null,null,null,null,null,null,null,null,null,null,null,null,null,null,null,null,null,null,null,null,null,null,null,null,"Asia/Jerusalem"]
[null,null,null,null,null,null,null,null,null,null,null,null,null,null,null,null,null,null,null,null,null,null,null,null,null,null,"Asia/Kabul"]
[null,null,null,null,null,null,null,null,null,null,null,null,null,null,null,null,null,null,null,null,null,null,null,null,null,null,"Asia/Kamchatka"]
[null,null,null,null,null,null,null,null,null,null,null,null,null,null,null,null,null,null,null,null,null,null,null,null,null,null,"Asia/Karachi"]
[null,null,null,null,null,null,null,null,null,null,null,null,null,null,null,null,null,null,null,null,null,null,null,null,null,null,"Asia/Kashgar"]
[null,null,null,null,null,null,null,null,null,null,null,null,null,null,null,null,null,null,null,null,null,null,null,null,null,null,"Asia/Kathmandu"]
[null,null,null,null,null,null,null,null,null,null,null,null,null,null,null,null,null,null,null,null,null,null,null,null,null,null,"Asia/Katmandu"]
[null,null,null,null,null,null,null,null,null,null,null,null,null,null,null,null,null,null,null,null,null,null,null,null,null,null,"Asia/Khandyga"]
[null,null,null,null,null,null,null,null,null,null,null,null,null,null,null,null,null,null,null,null,null,null,null,null,null,null,"Asia/Kolkata"]
[null,null,null,null,null,null,null,null,null,null,null,null,null,null,null,null,null,null,null,null,null,null,null,null,null,null,"Asia/Krasnoyarsk"]
[null,null,null,null,null,null,null,null,null,null,null,null,null,null,null,null,null,null,null,null,null,null,null,null,null,null,"Asia/Kuala_Lumpur"]
[null,null,null,null,null,null,null,null,null,null,null,null,null,null,null,null,null,null,null,null,null,null,null,null,null,null,"Asia/Kuching"]
[null,null,null,null,null,null,null,null,null,null,null,null,null,null,null,null,null,null,null,null,null,null,null,null,null,null,"Asia/Kuwait"]
[null,null,null,null,null,null,null,null,null,null,null,null,null,null,null,null,null,null,null,null,null,null,null,null,null,null,"Asia/Macao"]
[null,null,null,null,null,null,null,null,null,null,null,null,null,null,null,null,null,null,null,null,null,null,null,null,null,null,"Asia/Macau"]
[null,null,null,null,null,null,null,null,null,null,null,null,null,null,null,null,null,null,null,null,null,null,null,null,null,null,"Asia/Magadan"]
[null,null,null,null,null,null,null,null,null,null,null,null,null,null,null,null,null,null,null,null,null,null,null,null,null,null,"Asia/Makassar"]
[null,null,null,null,null,null,null,null,null,null,null,null,null,null,null,null,null,null,null,null,null,null,null,null,null,null,"Asia/Manila"]
[null,null,null,null,null,null,null,null,null,null,null,null,null,null,null,null,null,null,null,null,null,null,null,null,null,null,"Asia/Muscat"]
[null,null,null,null,null,null,null,null,null,null,null,null,null,null,null,null,null,null,null,null,null,null,null,null,null,null,"Asia/Nicosia"]
[null,null,null,null,null,null,null,null,null,null,null,null,null,null,null,null,null,null,null,null,null,null,null,null,null,null,"Asia/Novokuznetsk"]
[null,null,null,null,null,null,null,null,null,null,null,null,null,null,null,null,null,null,null,null,null,null,null,null,null,null,"Asia/Novosibirsk"]
[null,null,null,null,null,null,null,null,null,null,null,null,null,null,null,null,null,null,null,null,null,null,null,null,null,null,"Asia/Omsk"]
[null,null,null,null,null,null,null,null,null,null,null,null,null,null,null,null,null,null,null,null,null,null,null,null,null,null,"Asia/Oral"]
[null,null,null,null,null,null,null,null,null,null,null,null,null,null,null,null,null,null,null,null,null,null,null,null,null,null,"Asia/Phnom_Penh"]
[null,null,null,null,null,null,null,null,null,null,null,null,null,null,null,null,null,null,null,null,null,null,null,null,null,null,"Asia/Pontianak"]
[null,null,null,null,null,null,null,null,null,null,null,null,null,null,null,null,null,null,null,null,null,null,null,null,null,null,"Asia/Pyongyang"]
[null,null,null,null,null,null,null,null,null,null,null,null,null,null,null,null,null,null,null,null,null,null,null,null,null,null,"Asia/Qatar"]
[null,null,null,null,null,null,null,null,null,null,null,null,null,null,null,null,null,null,null,null,null,null,null,null,null,null,"Asia/Qyzylorda"]
[null,null,null,null,null,null,null,null,null,null,null,null,null,null,null,null,null,null,null,null,null,null,null,null,null,null,"Asia/Rangoon"]
[null,null,null,null,null,null,null,null,null,null,null,null,null,null,null,null,null,null,null,null,null,null,null,null,null,null,"Asia/Riyadh"]
[null,null,null,null,null,null,null,null,null,null,null,null,null,null,null,null,null,null,null,null,null,null,null,null,null,null,"Asia/Riyadh87"]
[null,null,null,null,null,null,null,null,null,null,null,null,null,null,null,null,null,null,null,null,null,null,null,null,null,null,"Asia/Riyadh88"]
[null,null,null,null,null,null,null,null,null,null,null,null,null,null,null,null,null,null,null,null,null,null,null,null,null,null,"Asia/Riyadh89"]
[null,null,null,null,null,null,null,null,null,null,null,null,null,null,null,null,null,null,null,null,null,null,null,null,null,null,"Asia/Saigon"]
[null,null,null,null,null,null,null,null,null,null,null,null,null,null,null,null,null,null,null,null,null,null,null,null,null,null,"Asia/Sakhalin"]
[null,null,null,null,null,null,null,null,null,null,null,null,null,null,null,null,null,null,null,null,null,null,null,null,null,null,"Asia/Samarkand"]
[null,null,null,null,null,null,null,null,null,null,null,null,null,null,null,null,null,null,null,null,null,null,null,null,null,null,"Asia/Seoul"]
[null,null,null,null,null,null,null,null,null,null,null,null,null,null,null,null,null,null,null,null,null,null,null,null,null,null,"Asia/Shanghai"]
[null,null,null,null,null,null,null,null,null,null,null,null,null,null,null,null,null,null,null,null,null,null,null,null,null,null,"Asia/Singapore"]
[null,null,null,null,null,null,null,null,null,null,null,null,null,null,null,null,null,null,null,null,null,null,null,null,null,null,"Asia/Taipei"]
[null,null,null,null,null,null,null,null,null,null,null,null,null,null,null,null,null,null,null,null,null,null,null,null,null,null,"Asia/Tashkent"]
[null,null,null,null,null,null,null,null,null,null,null,null,null,null,null,null,null,null,null,null,null,null,null,null,null,null,"Asia/Tbilisi"]
[null,null,null,null,null,null,null,null,null,null,null,null,null,null,null,null,null,null,null,null,null,null,null,null,null,null,"Asia/Tehran"]
[null,null,null,null,null,null,null,null,null,null,null,null,null,null,null,null,null,null,null,null,null,null,null,null,null,null,"Asia/Tel_Aviv"]
[null,null,null,null,null,null,null,null,null,null,null,null,null,null,null,null,null,null,null,null,null,null,null,null,null,null,"Asia/Thimbu"]
[null,null,null,null,null,null,null,null,null,null,null,null,null,null,null,null,null,null,null,null,null,null,null,null,null,null,"Asia/Thimphu"]
[null,null,null,null,null,null,null,null,null,null,null,null,null,null,null,null,null,null,null,null,null,null,null,null,null,null,"Asia/Tokyo"]
[null,null,null,null,null,null,null,null,null,null,null,null,null,null,null,null,null,null,null,null,null,null,null,null,null,null,"Asia/Ujung_Pandang"]
[null,null,null,null,null,null,null,null,null,null,null,null,null,null,null,null,null,null,null,null,null,null,null,null,null,null,"Asia/Ulaanbaatar"]
[null,null,null,null,null,null,null,null,null,null,null,null,null,null,null,null,null,null,null,null,null,null,null,null,null,null,"Asia/Ulan_Bator"]
[null,null,null,null,null,null,null,null,null,null,null,null,null,null,null,null,null,null,null,null,null,null,null,null,null,null,"Asia/Urumqi"]
[null,null,null,null,null,null,null,null,null,null,null,null,null,null,null,null,null,null,null,null,null,null,null,null,null,null,"Asia/Ust-Nera"]
[null,null,null,null,null,null,null,null,null,null,null,null,null,null,null,null,null,null,null,null,null,null,null,null,null,null,"Asia/Vientiane"]
[null,null,null,null,null,null,null,null,null,null,null,null,null,null,null,null,null,null,null,null,null,null,null,null,null,null,"Asia/Vladivostok"]
[null,null,null,null,null,null,null,null,null,null,null,null,null,null,null,null,null,null,null,null,null,null,null,null,null,null,"Asia/Yakutsk"]
[null,null,null,null,null,null,null,null,null,null,null,null,null,null,null,null,null,null,null,null,null,null,null,null,null,null,"Asia/Yekaterinburg"]
[null,null,null,null,null,null,null,null,null,null,null,null,null,null,null,null,null,null,null,null,null,null,null,null,null,null,"Asia/Yerevan"]
[null,null,null,null,null,null,null,null,null,null,null,null,null,null,null,null,null,null,null,null,null,null,null,null,null,null,"Atlantic/Azores"]
[null,null,null,null,null,null,null,null,null,null,null,null,null,null,null,null,null,null,null,null,null,null,null,null,null,null,"Atlantic/Bermuda"]
[null,null,null,null,null,null,null,null,null,null,null,null,null,null,null,null,null,null,null,null,null,null,null,null,null,null,"Atlantic/Canary"]
[null,null,null,null,null,null,null,null,null,null,null,null,null,null,null,null,null,null,null,null,null,null,null,null,null,null,"Atlantic/Cape_Verde"]
[null,null,null,null,null,null,null,null,null,null,null,null,null,null,null,null,null,null,null,null,null,null,null,null,null,null,"Atlantic/Faeroe"]
[null,null,null,null,null,null,null,null,null,null,null,null,null,null,null,null,null,null,null,null,null,null,null,null,null,null,"Atlantic/Faroe"]
[null,null,null,null,null,null,null,null,null,null,null,null,null,null,null,null,null,null,null,null,null,null,null,null,null,null,"Atlantic/Jan_Mayen"]
[null,null,null,null,null,null,null,null,null,null,null,null,null,null,null,null,null,null,null,null,null,null,null,null,null,null,"Atlantic/Madeira"]
[null,null,null,null,null,null,null,null,null,null,null,null,null,null,null,null,null,null,null,null,null,null,null,null,null,null,"Atlantic/Reykjavik"]
[null,null,null,null,null,null,null,null,null,null,null,null,null,null,null,null,null,null,null,null,null,null,null,null,null,null,"Atlantic/South_Georgia"]
[null,null,null,null,null,null,null,null,null,null,null,null,null,null,null,null,null,null,null,null,null,null,null,null,null,null,"Atlantic/St_Helena"]
[null,null,null,null,null,null,null,null,null,null,null,null,null,null,null,null,null,null,null,null,null,null,null,null,null,null,"Atlantic/Stanley"]
[null,null,null,null,null,null,null,null,null,null,null,null,null,null,null,null,null,null,null,null,null,null,null,null,null,null,"Australia/ACT"]
[null,null,null,null,null,null,null,null,null,null,null,null,null,null,null,null,null,null,null,null,null,null,null,null,null,null,"Australia/Adelaide"]
[null,null,null,null,null,null,null,null,null,null,null,null,null,null,null,null,null,null,null,null,null,null,null,null,null,null,"Australia/Brisbane"]
[null,null,null,null,null,null,null,null,null,null,null,null,null,null,null,null,null,null,null,null,null,null,null,null,null,null,"Australia/Broken_Hill"]
[null,null,null,null,null,null,null,null,null,null,null,null,null,null,null,null,null,null,null,null,null,null,null,null,null,null,"Australia/Canberra"]
[null,null,null,null,null,null,null,null,null,null,null,null,null,null,null,null,null,null,null,null,null,null,null,null,null,null,"Australia/Currie"]
[null,null,null,null,null,null,null,null,null,null,null,null,null,null,null,null,null,null,null,null,null,null,null,null,null,null,"Australia/Darwin"]
[null,null,null,null,null,null,null,null,null,null,null,null,null,null,null,null,null,null,null,null,null,null,null,null,null,null,"Australia/Eucla"]
[null,null,null,null,null,null,null,null,null,null,null,null,null,null,null,null,null,null,null,null,null,null,null,null,null,null,"Australia/Hobart"]
[null,null,null,null,null,null,null,null,null,null,null,null,null,null,null,null,null,null,null,null,null,null,null,null,null,null,"Australia/LHI"]
[null,null,null,null,null,null,null,null,null,null,null,null,null,null,null,null,null,null,null,null,null,null,null,null,null,null,"Australia/Lindeman"]
[null,null,null,null,null,null,null,null,null,null,null,null,null,null,null,null,null,null,null,null,null,null,null,null,null,null,"Australia/Lord_Howe"]
[null,null,null,null,null,null,null,null,null,null,null,null,null,null,null,null,null,null,null,null,null,null,null,null,null,null,"Australia/Melbourne"]
[null,null,null,null,null,null,null,null,null,null,null,null,null,null,null,null,null,null,null,null,null,null,null,null,null,null,"Australia/NSW"]
[null,null,null,null,null,null,null,null,null,null,null,null,null,null,null,null,null,null,null,null,null,null,null,null,null,null,"Australia/North"]
[null,null,null,null,null,null,null,null,null,null,null,null,null,null,null,null,null,null,null,null,null,null,null,null,null,null,"Australia/Perth"]
[null,null,null,null,null,null,null,null,null,null,null,null,null,null,null,null,null,null,null,null,null,null,null,null,null,null,"Australia/Queensland"]
[null,null,null,null,null,null,null,null,null,null,null,null,null,null,null,null,null,null,null,null,null,null,null,null,null,null,"Australia/South"]
[null,null,null,null,null,null,null,null,null,null,null,null,null,null,null,null,null,null,null,null,null,null,null,null,null,null,"Australia/Sydney"]
[null,null,null,null,null,null,null,null,null,null,null,null,null,null,null,null,null,null,null,null,null,null,null,null,null,null,"Australia/Tasmania"]
[null,null,null,null,null,null,null,null,null,null,null,null,null,null,null,null,null,null,null,null,null,null,null,null,null,null,"Australia/Victoria"]
[null,null,null,null,null,null,null,null,null,null,null,null,null,null,null,null,null,null,null,null,null,null,null,null,null,null,"Australia/West"]
[null,null,null,null,null,null,null,null,null,null,null,null,null,null,null,null,null,null,null,null,null,null,null,null,null,null,"Australia/Yancowinna"]
[null,null,null,null,null,null,null,null,null,null,null,null,null,null,null,null,null,null,null,null,null,null,null,null,null,null,"Brazil/Acre"]
[null,null,null,null,null,null,null,null,null,null,null,null,null,null,null,null,null,null,null,null,null,null,null,null,null,null,"Brazil/DeNoronha"]
[null,null,null,null,null,null,null,null,null,null,null,null,null,null,null,null,null,null,null,null,null,null,null,null,null,null,"Brazil/East"]
[null,null,null,null,null,null,null,null,null,null,null,null,null,null,null,null,null,null,null,null,null,null,null,null,null,null,"Brazil/West"]
[null,null,null,null,null,null,null,null,null,null,null,null,null,null,null,null,null,null,null,null,null,null,null,null,null,null,"Canada/Atlantic"]
[null,null,null,null,null,null,null,null,null,null,null,null,null,null,null,null,null,null,null,null,null,null,null,null,null,null,"Canada/Central"]
[null,null,null,null,null,null,null,null,null,null,null,null,null,null,null,null,null,null,null,null,null,null,null,null,null,null,"Canada/East-Saskatchewan"]
[null,null,null,null,null,null,null,null,null,null,null,null,null,null,null,null,null,null,null,null,null,null,null,null,null,null,"Canada/Eastern"]
[null,null,null,null,null,null,null,null,null,null,null,null,null,null,null,null,null,null,null,null,null,null,null,null,null,null,"Canada/Mountain"]
[null,null,null,null,null,null,null,null,null,null,null,null,null,null,null,null,null,null,null,null,null,null,null,null,null,null,"Canada/Newfoundland"]
[null,null,null,null,null,null,null,null,null,null,null,null,null,null,null,null,null,null,null,null,null,null,null,null,null,null,"Canada/Pacific"]
[null,null,null,null,null,null,null,null,null,null,null,null,null,null,null,null,null,null,null,null,null,null,null,null,null,null,"Canada/Saskatchewan"]
[null,null,null,null,null,null,null,null,null,null,null,null,null,null,null,null,null,null,null,null,null,null,null,null,null,null,"Canada/Yukon"]
[null,null,null,null,null,null,null,null,null,null,null,null,null,null,null,null,null,null,null,null,null,null,null,null,null,null,"Chile/Continental"]
[null,null,null,null,null,null,null,null,null,null,null,null,null,null,null,null,null,null,null,null,null,null,null,null,null,null,"Chile/EasterIsland"]
[null,null,null,null,null,null,null,null,null,null,null,null,null,null,null,null,null,null,null,null,null,null,null,null,null,null,"Europe/Amsterdam"]
[null,null,null,null,null,null,null,null,null,null,null,null,null,null,null,null,null,null,null,null,null,null,null,null,null,null,"Europe/Andorra"]
[null,null,null,null,null,null,null,null,null,null,null,null,null,null,null,null,null,null,null,null,null,null,null,null,null,null,"Europe/Athens"]
[null,null,null,null,null,null,null,null,null,null,null,null,null,null,null,null,null,null,null,null,null,null,null,null,null,null,"Europe/Belfast"]
[null,null,null,null,null,null,null,null,null,null,null,null,null,null,null,null,null,null,null,null,null,null,null,null,null,null,"Europe/Belgrade"]
[null,null,null,null,null,null,null,null,null,null,null,null,null,null,null,null,null,null,null,null,null,null,null,null,null,null,"Europe/Berlin"]
[null,null,null,null,null,null,null,null,null,null,null,null,null,null,null,null,null,null,null,null,null,null,null,null,null,null,"Europe/Bratislava"]
[null,null,null,null,null,null,null,null,null,null,null,null,null,null,null,null,null,null,null,null,null,null,null,null,null,null,"Europe/Brussels"]
[null,null,null,null,null,null,null,null,null,null,null,null,null,null,null,null,null,null,null,null,null,null,null,null,null,null,"Europe/Bucharest"]
[null,null,null,null,null,null,null,null,null,null,null,null,null,null,null,null,null,null,null,null,null,null,null,null,null,null,"Europe/Budapest"]
[null,null,null,null,null,null,null,null,null,null,null,null,null,null,null,null,null,null,null,null,null,null,null,null,null,null,"Europe/Busingen"]
[null,null,null,null,null,null,null,null,null,null,null,null,null,null,null,null,null,null,null,null,null,null,null,null,null,null,"Europe/Chisinau"]
[null,null,null,null,null,null,null,null,null,null,null,null,null,null,null,null,null,null,null,null,null,null,null,null,null,null,"Europe/Copenhagen"]
[null,null,null,null,null,null,null,null,null,null,null,null,null,null,null,null,null,null,null,null,null,null,null,null,null,null,"Europe/Dublin"]
[null,null,null,null,null,null,null,null,null,null,null,null,null,null,null,null,null,null,null,null,null,null,null,null,null,null,"Europe/Gibraltar"]
[null,null,null,null,null,null,null,null,null,null,null,null,null,null,null,null,null,null,null,null,null,null,null,null,null,null,"Europe/Guernsey"]
[null,null,null,null,null,null,null,null,null,null,null,null,null,null,null,null,null,null,null,null,null,null,null,null,null,null,"Europe/Helsinki"]
[null,null,null,null,null,null,null,null,null,null,null,null,null,null,null,null,null,null,null,null,null,null,null,null,null,null,"Europe/Isle_of_Man"]
[null,null,null,null,null,null,null,null,null,null,null,null,null,null,null,null,null,null,null,null,null,null,null,null,null,null,"Europe/Istanbul"]
[null,null,null,null,null,null,null,null,null,null,null,null,null,null,null,null,null,null,null,null,null,null,null,null,null,null,"Europe/Jersey"]
[null,null,null,null,null,null,null,null,null,null,null,null,null,null,null,null,null,null,null,null,null,null,null,null,null,null,"Europe/Kaliningrad"]
[null,null,null,null,null,null,null,null,null,null,null,null,null,null,null,null,null,null,null,null,null,null,null,null,null,null,"Europe/Kiev"]
[null,null,null,null,null,null,null,null,null,null,null,null,null,null,null,null,null,null,null,null,null,null,null,null,null,null,"Europe/Lisbon"]
[null,null,null,null,null,null,null,null,null,null,null,null,null,null,null,null,null,null,null,null,null,null,null,null,null,null,"Europe/Ljubljana"]
[null,null,null,null,null,null,null,null,null,null,null,null,null,null,null,null,null,null,null,null,null,null,null,null,null,null,"Europe/London"]
[null,null,null,null,null,null,null,null,null,null,null,null,null,null,null,null,null,null,null,null,null,null,null,null,null,null,"Europe/Luxembourg"]
[null,null,null,null,null,null,null,null,null,null,null,null,null,null,null,null,null,null,null,null,null,null,null,null,null,null,"Europe/Madrid"]
[null,null,null,null,null,null,null,null,null,null,null,null,null,null,null,null,null,null,null,null,null,null,null,null,null,null,"Europe/Malta"]
[null,null,null,null,null,null,null,null,null,null,null,null,null,null,null,null,null,null,null,null,null,null,null,null,null,null,"Europe/Mariehamn"]
[null,null,null,null,null,null,null,null,null,null,null,null,null,null,null,null,null,null,null,null,null,null,null,null,null,null,"Europe/Minsk"]
[null,null,null,null,null,null,null,null,null,null,null,null,null,null,null,null,null,null,null,null,null,null,null,null,null,null,"Europe/Monaco"]
[null,null,null,null,null,null,null,null,null,null,null,null,null,null,null,null,null,null,null,null,null,null,null,null,null,null,"Europe/Moscow"]
[null,null,null,null,null,null,null,null,null,null,null,null,null,null,null,null,null,null,null,null,null,null,null,null,null,null,"Europe/Nicosia"]
[null,null,null,null,null,null,null,null,null,null,null,null,null,null,null,null,null,null,null,null,null,null,null,null,null,null,"Europe/Oslo"]
[null,null,null,null,null,null,null,null,null,null,null,null,null,null,null,null,null,null,null,null,null,null,null,null,null,null,"Europe/Paris"]
[null,null,null,null,null,null,null,null,null,null,null,null,null,null,null,null,null,null,null,null,null,null,null,null,null,null,"Europe/Podgorica"]
[null,null,null,null,null,null,null,null,null,null,null,null,null,null,null,null,null,null,null,null,null,null,null,null,null,null,"Europe/Prague"]
[null,null,null,null,null,null,null,null,null,null,null,null,null,null,null,null,null,null,null,null,null,null,null,null,null,null,"Europe/Riga"]
[null,null,null,null,null,null,null,null,null,null,null,null,null,null,null,null,null,null,null,null,null,null,null,null,null,null,"Europe/Rome"]
[null,null,null,null,null,null,null,null,null,null,null,null,null,null,null,null,null,null,null,null,null,null,null,null,null,null,"Europe/Samara"]
[null,null,null,null,null,null,null,null,null,null,null,null,null,null,null,null,null,null,null,null,null,null,null,null,null,null,"Europe/San_Marino"]
[null,null,null,null,null,null,null,null,null,null,null,null,null,null,null,null,null,null,null,null,null,null,null,null,null,null,"Europe/Sarajevo"]
[null,null,null,null,null,null,null,null,null,null,null,null,null,null,null,null,null,null,null,null,null,null,null,null,null,null,"Europe/Simferopol"]
[null,null,null,null,null,null,null,null,null,null,null,null,null,null,null,null,null,null,null,null,null,null,null,null,null,null,"Europe/Skopje"]
[null,null,null,null,null,null,null,null,null,null,null,null,null,null,null,null,null,null,null,null,null,null,null,null,null,null,"Europe/Sofia"]
[null,null,null,null,null,null,null,null,null,null,null,null,null,null,null,null,null,null,null,null,null,null,null,null,null,null,"Europe/Stockholm"]
[null,null,null,null,null,null,null,null,null,null,null,null,null,null,null,null,null,null,null,null,null,null,null,null,null,null,"Europe/Tallinn"]
[null,null,null,null,null,null,null,null,null,null,null,null,null,null,null,null,null,null,null,null,null,null,null,null,null,null,"Europe/Tirane"]
[null,null,null,null,null,null,null,null,null,null,null,null,null,null,null,null,null,null,null,null,null,null,null,null,null,null,"Europe/Tiraspol"]
[null,null,null,null,null,null,null,null,null,null,null,null,null,null,null,null,null,null,null,null,null,null,null,null,null,null,"Europe/Uzhgorod"]
[null,null,null,null,null,null,null,null,null,null,null,null,null,null,null,null,null,null,null,null,null,null,null,null,null,null,"Europe/Vaduz"]
[null,null,null,null,null,null,null,null,null,null,null,null,null,null,null,null,null,null,null,null,null,null,null,null,null,null,"Europe/Vatican"]
[null,null,null,null,null,null,null,null,null,null,null,null,null,null,null,null,null,null,null,null,null,null,null,null,null,null,"Europe/Vienna"]
[null,null,null,null,null,null,null,null,null,null,null,null,null,null,null,null,null,null,null,null,null,null,null,null,null,null,"Europe/Vilnius"]
[null,null,null,null,null,null,null,null,null,null,null,null,null,null,null,null,null,null,null,null,null,null,null,null,null,null,"Europe/Volgograd"]
[null,null,null,null,null,null,null,null,null,null,null,null,null,null,null,null,null,null,null,null,null,null,null,null,null,null,"Europe/Warsaw"]
[null,null,null,null,null,null,null,null,null,null,null,null,null,null,null,null,null,null,null,null,null,null,null,null,null,null,"Europe/Zagreb"]
[null,null,null,null,null,null,null,null,null,null,null,null,null,null,null,null,null,null,null,null,null,null,null,null,null,null,"Europe/Zaporozhye"]
[null,null,null,null,null,null,null,null,null,null,null,null,null,null,null,null,null,null,null,null,null,null,null,null,null,null,"Europe/Zurich"]
[null,null,null,null,null,null,null,null,null,null,null,null,null,null,null,null,null,null,null,null,null,null,null,null,null,null,"Indian/Antananarivo"]
[null,null,null,null,null,null,null,null,null,null,null,null,null,null,null,null,null,null,null,null,null,null,null,null,null,null,"Indian/Chagos"]
[null,null,null,null,null,null,null,null,null,null,null,null,null,null,null,null,null,null,null,null,null,null,null,null,null,null,"Indian/Christmas"]
[null,null,null,null,null,null,null,null,null,null,null,null,null,null,null,null,null,null,null,null,null,null,null,null,null,null,"Indian/Cocos"]
[null,null,null,null,null,null,null,null,null,null,null,null,null,null,null,null,null,null,null,null,null,null,null,null,null,null,"Indian/Comoro"]
[null,null,null,null,null,null,null,null,null,null,null,null,null,null,null,null,null,null,null,null,null,null,null,null,null,null,"Indian/Kerguelen"]
[null,null,null,null,null,null,null,null,null,null,null,null,null,null,null,null,null,null,null,null,null,null,null,null,null,null,"Indian/Mahe"]
[null,null,null,null,null,null,null,null,null,null,null,null,null,null,null,null,null,null,null,null,null,null,null,null,null,null,"Indian/Maldives"]
[null,null,null,null,null,null,null,null,null,null,null,null,null,null,null,null,null,null,null,null,null,null,null,null,null,null,"Indian/Mauritius"]
[null,null,null,null,null,null,null,null,null,null,null,null,null,null,null,null,null,null,null,null,null,null,null,null,null,null,"Indian/Mayotte"]
[null,null,null,null,null,null,null,null,null,null,null,null,null,null,null,null,null,null,null,null,null,null,null,null,null,null,"Indian/Reunion"]
[null,null,null,null,null,null,null,null,null,null,null,null,null,null,null,null,null,null,null,null,null,null,null,null,null,null,"Mexico/BajaNorte"]
[null,null,null,null,null,null,null,null,null,null,null,null,null,null,null,null,null,null,null,null,null,null,null,null,null,null,"Mexico/BajaSur"]
[null,null,null,null,null,null,null,null,null,null,null,null,null,null,null,null,null,null,null,null,null,null,null,null,null,null,"Mexico/General"]
[null,null,null,null,null,null,null,null,null,null,null,null,null,null,null,null,null,null,null,null,null,null,null,null,null,null,"Mideast/Riyadh87"]
[null,null,null,null,null,null,null,null,null,null,null,null,null,null,null,null,null,null,null,null,null,null,null,null,null,null,"Mideast/Riyadh88"]
[null,null,null,null,null,null,null,null,null,null,null,null,null,null,null,null,null,null,null,null,null,null,null,null,null,null,"Mideast/Riyadh89"]
[null,null,null,null,null,null,null,null,null,null,null,null,null,null,null,null,null,null,null,null,null,null,null,null,null,null,"Pacific/Apia"]
[null,null,null,null,null,null,null,null,null,null,null,null,null,null,null,null,null,null,null,null,null,null,null,null,null,null,"Pacific/Auckland"]
[null,null,null,null,null,null,null,null,null,null,null,null,null,null,null,null,null,null,null,null,null,null,null,null,null,null,"Pacific/Chatham"]
[null,null,null,null,null,null,null,null,null,null,null,null,null,null,null,null,null,null,null,null,null,null,null,null,null,null,"Pacific/Chuuk"]
[null,null,null,null,null,null,null,null,null,null,null,null,null,null,null,null,null,null,null,null,null,null,null,null,null,null,"Pacific/Easter"]
[null,null,null,null,null,null,null,null,null,null,null,null,null,null,null,null,null,null,null,null,null,null,null,null,null,null,"Pacific/Efate"]
[null,null,null,null,null,null,null,null,null,null,null,null,null,null,null,null,null,null,null,null,null,null,null,null,null,null,"Pacific/Enderbury"]
[null,null,null,null,null,null,null,null,null,null,null,null,null,null,null,null,null,null,null,null,null,null,null,null,null,null,"Pacific/Fakaofo"]
[null,null,null,null,null,null,null,null,null,null,null,null,null,null,null,null,null,null,null,null,null,null,null,null,null,null,"Pacific/Fiji"]
[null,null,null,null,null,null,null,null,null,null,null,null,null,null,null,null,null,null,null,null,null,null,null,null,null,null,"Pacific/Funafuti"]
[null,null,null,null,null,null,null,null,null,null,null,null,null,null,null,null,null,null,null,null,null,null,null,null,null,null,"Pacific/Galapagos"]
[null,null,null,null,null,null,null,null,null,null,null,null,null,null,null,null,null,null,null,null,null,null,null,null,null,null,"Pacific/Gambier"]
[null,null,null,null,null,null,null,null,null,null,null,null,null,null,null,null,null,null,null,null,null,null,null,null,null,null,"Pacific/Guadalcanal"]
[null,null,null,null,null,null,null,null,null,null,null,null,null,null,null,null,null,null,null,null,null,null,null,null,null,null,"Pacific/Guam"]
[null,null,null,null,null,null,null,null,null,null,null,null,null,null,null,null,null,null,null,null,null,null,null,null,null,null,"Pacific/Honolulu"]
[null,null,null,null,null,null,null,null,null,null,null,null,null,null,null,null,null,null,null,null,null,null,null,null,null,null,"Pacific/Johnston"]
[null,null,null,null,null,null,null,null,null,null,null,null,null,null,null,null,null,null,null,null,null,null,null,null,null,null,"Pacific/Kiritimati"]
[null,null,null,null,null,null,null,null,null,null,null,null,null,null,null,null,null,null,null,null,null,null,null,null,null,null,"Pacific/Kosrae"]
[null,null,null,null,null,null,null,null,null,null,null,null,null,null,null,null,null,null,null,null,null,null,null,null,null,null,"Pacific/Kwajalein"]
[null,null,null,null,null,null,null,null,null,null,null,null,null,null,null,null,null,null,null,null,null,null,null,null,null,null,"Pacific/Majuro"]
[null,null,null,null,null,null,null,null,null,null,null,null,null,null,null,null,null,null,null,null,null,null,null,null,null,null,"Pacific/Marquesas"]
[null,null,null,null,null,null,null,null,null,null,null,null,null,null,null,null,null,null,null,null,null,null,null,null,null,null,"Pacific/Midway"]
[null,null,null,null,null,null,null,null,null,null,null,null,null,null,null,null,null,null,null,null,null,null,null,null,null,null,"Pacific/Nauru"]
[null,null,null,null,null,null,null,null,null,null,null,null,null,null,null,null,null,null,null,null,null,null,null,null,null,null,"Pacific/Niue"]
[null,null,null,null,null,null,null,null,null,null,null,null,null,null,null,null,null,null,null,null,null,null,null,null,null,null,"Pacific/Norfolk"]
[null,null,null,null,null,null,null,null,null,null,null,null,null,null,null,null,null,null,null,null,null,null,null,null,null,null,"Pacific/Noumea"]
[null,null,null,null,null,null,null,null,null,null,null,null,null,null,null,null,null,null,null,null,null,null,null,null,null,null,"Pacific/Pago_Pago"]
[null,null,null,null,null,null,null,null,null,null,null,null,null,null,null,null,null,null,null,null,null,null,null,null,null,null,"Pacific/Palau"]
[null,null,null,null,null,null,null,null,null,null,null,null,null,null,null,null,null,null,null,null,null,null,null,null,null,null,"Pacific/Pitcairn"]
[null,null,null,null,null,null,null,null,null,null,null,null,null,null,null,null,null,null,null,null,null,null,null,null,null,null,"Pacific/Pohnpei"]
[null,null,null,null,null,null,null,null,null,null,null,null,null,null,null,null,null,null,null,null,null,null,null,null,null,null,"Pacific/Ponape"]
[null,null,null,null,null,null,null,null,null,null,null,null,null,null,null,null,null,null,null,null,null,null,null,null,null,null,"Pacific/Port_Moresby"]
[null,null,null,null,null,null,null,null,null,null,null,null,null,null,null,null,null,null,null,null,null,null,null,null,null,null,"Pacific/Rarotonga"]
[null,null,null,null,null,null,null,null,null,null,null,null,null,null,null,null,null,null,null,null,null,null,null,null,null,null,"Pacific/Saipan"]
[null,null,null,null,null,null,null,null,null,null,null,null,null,null,null,null,null,null,null,null,null,null,null,null,null,null,"Pacific/Samoa"]
[null,null,null,null,null,null,null,null,null,null,null,null,null,null,null,null,null,null,null,null,null,null,null,null,null,null,"Pacific/Tahiti"]
[null,null,null,null,null,null,null,null,null,null,null,null,null,null,null,null,null,null,null,null,null,null,null,null,null,null,"Pacific/Tarawa"]
[null,null,null,null,null,null,null,null,null,null,null,null,null,null,null,null,null,null,null,null,null,null,null,null,null,null,"Pacific/Tongatapu"]
[null,null,null,null,null,null,null,null,null,null,null,null,null,null,null,null,null,null,null,null,null,null,null,null,null,null,"Pacific/Truk"]
[null,null,null,null,null,null,null,null,null,null,null,null,null,null,null,null,null,null,null,null,null,null,null,null,null,null,"Pacific/Wake"]
[null,null,null,null,null,null,null,null,null,null,null,null,null,null,null,null,null,null,null,null,null,null,null,null,null,null,"Pacific/Wallis"]
[null,null,null,null,null,null,null,null,null,null,null,null,null,null,null,null,null,null,null,null,null,null,null,null,null,null,"Pacific/Yap"]
[null,null,null,null,null,null,null,null,null,null,null,null,null,null,null,null,null,null,null,null,null,null,null,null,null,null,"US/Alaska"]
[null,null,null,null,null,null,null,null,null,null,null,null,null,null,null,null,null,null,null,null,null,null,null,null,null,null,"US/Aleutian"]
[null,null,null,null,null,null,null,null,null,null,null,null,null,null,null,null,null,null,null,null,null,null,null,null,null,null,"US/Arizona"]
[null,null,null,null,null,null,null,null,null,null,null,null,null,null,null,null,null,null,null,null,null,null,null,null,null,null,"US/Central"]
[null,null,null,null,null,null,null,null,null,null,null,null,null,null,null,null,null,null,null,null,null,null,null,null,null,null,"US/East-Indiana"]
[null,null,null,null,null,null,null,null,null,null,null,null,null,null,null,null,null,null,null,null,null,null,null,null,null,null,"US/Eastern"]
[null,null,null,null,null,null,null,null,null,null,null,null,null,null,null,null,null,null,null,null,null,null,null,null,null,null,"US/Hawaii"]
[null,null,null,null,null,null,null,null,null,null,null,null,null,null,null,null,null,null,null,null,null,null,null,null,null,null,"US/Indiana-Starke"]
[null,null,null,null,null,null,null,null,null,null,null,null,null,null,null,null,null,null,null,null,null,null,null,null,null,null,"US/Michigan"]
[null,null,null,null,null,null,null,null,null,null,null,null,null,null,null,null,null,null,null,null,null,null,null,null,null,null,"US/Mountain"]
[null,null,null,null,null,null,null,null,null,null,null,null,null,null,null,null,null,null,null,null,null,null,null,null,null,null,"US/Pacific"]
[null,null,null,null,null,null,null,null,null,null,null,null,null,null,null,null,null,null,null,null,null,null,null,null,null,null,"US/Samoa"]

{"sheet":"Users","index":7,"n_rows":63,"n_cols":8,"rows_kept":63,"cut":false,"hidden":false,"merged":[[52,0,52,4],[2,0,2,3],[1,0,1,1]]}
["Users"]
["Please enter your patron groups below"]
["Aleph customers: the code for the user group= aleph patron status and will come from tab31 and cannot be changed, however the name of the user group will come from pc_tab_exp_field_extended.lng and can be changed if you desire.\n\nVoyager customers: the code for the user group should be\n identical to that in the PATRON_GROUP table in Voyager. You \nmay insert additional rows in this table if required.\n\nAll Customers: Please associate a patron type for each user group."]
[]
["Code For Group","Name of Group","Patron Type"]
["UNDRGRD","Undergraduate Student","Undergraduate Students"]
["GRAD","Graduate Student","Graduate Students"]
["FACULTY","Faculty","Faculty"]
["ALUM","Alumni","Community"]
["GUEST","Guest","Community"]
["CONSORT","Consortium Member","Undergraduate Students"]
["PT","Part-time","Graduate Students"]
["ACADSTAFF","Academic Staff","Faculty"]
["STAFF","Staff","Staff"]
[]
[]
[]
[]
[]
[]
[]
[]
[]
[]
[]
[]
[]
[]
[]
[]
[]
[]
[]
[]
[]
[]
[]
[]
[]
[]
[]
[]
[]
[]
[]
[]
[]
[]
[]
[]
[]
[]
["Please enter your patron limits below"]
[]
["Patron Type","Max cash before block","Max overdues before block","Max loans allowed","Max bookings allowed","Max overdue recalls","Max digitization requests","Max physical item requests"]
["Faculty",250,25,100,5,3,10,25]
["Undergraduate Students",25,10,25,2,1,5,10]
["Community",25,3,10,1,0,3,5]
["Staff",250,25,25,3,2,10,25]
["Graduate Students",250,25,25,3,2,10,25]
["b",25]
["b",25]
["e",25]

{"sheet":"VALIDATION","index":8,"n_rows":144,"n_cols":17,"rows_kept":144,"cut":false,"hidden":true,"merged":[[2,15,2,16]]}
["SheetName","Range","parameter","Function","function details","Description","Is Valid","Link",null,null,"MultipleRows","CheckColumn","FromTitleName","FromTitleColumn","SkipLines","NextTitleName","NextTitleColumn"]
["Create Controlled Vocabularies","A4:A19","A,B","CHECK_2COL_UNIQUE","The combination of CV Name and Code should be unique",null,true,null,69,null,"Y","A","Controlled Vocabularies - Create","A",2]
["Policies, TOU & Rules","B13:B39",null,"FIXED_LIST",{"$f":"Fulfillment!B14&\", \"&Fulfillment!B15&\", \"&Fulfillment!B16&\", \"&Fulfillment!B17&\", \"&Fulfillment!B18&\",  \"&Fulfillment!B19&\", \"&Fulfillment!B20&\", \"&Fulfillment!B21","v":"Faculty, Staff, Graduate Students, Undergraduate Students, Community,  b, d, e"},null,true,null,49,null,"Y","B","2. Institutional Policies & TOU","A",3,"4. Outgoing Requests To Other Institutions (Resource Sharing/ILL)"]
["Users","C6:C14",null,"FIXED_LIST",{"$f":"Fulfillment!B14&\", \"&Fulfillment!B15&\", \"&Fulfillment!B16&\", \"&Fulfillment!B17&\", \"&Fulfillment!B18&\",  \"&Fulfillment!B19&\", \"&Fulfillment!B20&\", \"&Fulfillment!B21&\",1\"&\",\"&\" \"&\",\"&\"\"&\",\"&\"ITEMTYPE01\"&\",\"&\"ITEMTYPE02\"&\",\"&\"ITEMTYPE03\"&\",\"&\"ITEMTYPE04\"","v":"Faculty, Staff, Graduate Students, Undergraduate Students, Community,  b, d, e,1, ,,ITEMTYPE01,ITEMTYPE02,ITEMTYPE03,ITEMTYPE04"},null,true,null,null,25,"Y","C","Code For Group","A",0,"Please enter your patron limits below","A"]
["Locations","D5:D20","Fulfillment,Y,Location Types,B,0,Patron Types,B,B","IN_TAB_LIST","The Location Type should be part of the Location Types list in the Fulfillment Tab",null,true,null,null,null,"Y","D","Physical Location Details","A",1,"Remote Storage Facilities","A"]
["Item Policies","C5:C15",null,"FIXED_LIST",{"$f":"Fulfillment!B24&\", \"&Fulfillment!B25&\", \"&Fulfillment!B26&\", \"&Fulfillment!B28&\", \"&Fulfillment!B27&\",1\"&\",\"&\" \"&\",\"&\"\"&\",\"&\"ITEMTYPE01\"&\",\"&\"ITEMTYPE02\"&\",\"&\"ITEMTYPE03\"&\",\"&\"ITEMTYPE04\"","v":"No Loan, Laptop, , , ,1, ,,ITEMTYPE01,ITEMTYPE02,ITEMTYPE03,ITEMTYPE04"},null,true,null,"Cannot fill ranges in VALIDATION tab for check row #4",null,"Y","C","Item Policies","A",3]
["Policies, TOU & Rules","D7",null,"IS_EMPTY",null,null,false,null,"Reading line 1: Create Controlled VocabulariesA4:A19CHECK_2COL_UNIQUE",null,"N","D","1. Institutional Default Values","A",3]
["Policies, TOU & Rules","E7",null,"IS_EMPTY",null,null,false,null,"Reading line 2: Policies, TOU & RulesB13:B39FIXED_LIST",null,"N","E","1. Institutional Default Values","A",3]
["Policies, TOU & Rules","F7",null,"IS_EMPTY",null,null,false,null,"Reading line 3: UsersC6:C14FIXED_LIST",null,"N","F","1. Institutional Default Values","A",3]
["Policies, TOU & Rules","G7",null,"IS_EMPTY",null,null,false,null,"Reading line 4: LocationsD5:D20IN_TAB_LIST",null,"N","G","1. Institutional Default Values","A",3]
["Policies, TOU & Rules","H7","I,None,H","IF_NOT_VALUE_OTHER_MANDATORY","If Requested Item Period <> None , the Requested Item Length is mandatory",null,true,null,"Reading line 5: Item PoliciesC5:C15FIXED_LIST",null,"N","H","1. Institutional Default Values","A",3]
["Policies, TOU & Rules","I7",null,"IS_EMPTY",null,null,false,null,"Reading line 6: Policies, TOU & RulesD7IS_EMPTY",null,"N","I","1. Institutional Default Values","A",3]
["Policies, TOU & Rules","J7","K,None,J","IF_NOT_VALUE_OTHER_MANDATORY","If Recall Period <> None , the Recall Length is mandatory",null,true,null,"Reading line 7: Policies, TOU & RulesE7IS_EMPTY",null,"N","J","1. Institutional Default Values","A",3]
["Policies, TOU & Rules","K7",null,"IS_EMPTY",null,null,false,null,"Reading line 8: Policies, TOU & RulesF7IS_EMPTY",null,"N","K","1. Institutional Default Values","A",3]
["Policies, TOU & Rules","L7",null,"IS_EMPTY",null,null,false,null,"Reading line 9: Policies, TOU & RulesG7IS_EMPTY",null,"N","L","1. Institutional Default Values","A",3]
["Policies, TOU & Rules","M7",null,"IS_EMPTY",null,null,false,null,"Reading line 10: Policies, TOU & RulesH7IF_NOT_VALUE_OTHER_MANDATORY",null,"N","M","1. Institutional Default Values","A",3]
["Policies, TOU & Rules","N7",null,"IS_EMPTY",null,null,false,null,"Reading line 11: Policies, TOU & RulesI7IS_EMPTY",null,"N","N","1. Institutional Default Values","A",3]
["Policies, TOU & Rules","O7",null,"IS_EMPTY",null,null,false,null,"Reading line 12: Policies, TOU & RulesJ7IF_NOT_VALUE_OTHER_MANDATORY",null,"N","O","1. Institutional Default Values","A",3]
["Policies, TOU & Rules","P7",null,"IS_EMPTY",null,null,false,null,"Reading line 13: Policies, TOU & RulesK7IS_EMPTY",null,"N","P","1. Institutional Default Values","A",3]
["Policies, TOU & Rules","Q7","R,None,Q","IF_NOT_VALUE_OTHER_MANDATORY","If Overdue Fine Period <> None , the Overdue Fine Amount is mandatory",null,true,null,"Reading line 14: Policies, TOU & RulesL7IS_EMPTY",null,"N","Q","1. Institutional Default Values","A",3]
["Policies, TOU & Rules","R7",null,"IS_EMPTY",null,null,false,null,"Reading line 15: Policies, TOU & RulesM7IS_EMPTY",null,"N","R","1. Institutional Default Values","A",3]
["Policies, TOU & Rules","S7","T,None,S","IF_NOT_VALUE_OTHER_MANDATORY","If Recalled Overdue Fine Period <> None , the Recalled Overdue Fine Amount is mandatory",null,true,null,"Reading line 16: Policies, TOU & RulesN7IS_EMPTY",null,"N","S","1. Institutional Default Values","A",3]
["Policies, TOU & Rules","T7",null,"IS_EMPTY",null,null,false,null,"Reading line 17: Policies, TOU & RulesO7IS_EMPTY",null,"N","T","1. Institutional Default Values","A",3]
["Policies, TOU & Rules","U7","V,None,U","IF_NOT_VALUE_OTHER_MANDATORY","If Grace Period <> None , the Grace Length is mandatory",null,true,null,"Reading line 18: Policies, TOU & RulesP7IS_EMPTY",null,"N","U","1. Institutional Default Values","A",3]
["Policies, TOU & Rules","V7",null,"IS_EMPTY",null,null,false,null,"Reading line 19: Policies, TOU & RulesQ7IF_NOT_VALUE_OTHER_MANDATORY",null,"N","V","1. Institutional Default Values","A",3]
["Policies, TOU & Rules","W7",null,"IS_EMPTY",null,null,false,null,"Reading line 20: Policies, TOU & RulesR7IS_EMPTY",null,"N","W","1. Institutional Default Values","A",3]
["Policies, TOU & Rules","X7","Y,None,X","IF_NOT_VALUE_OTHER_MANDATORY","If Max Renew Period <> None , the Max Renew Length is mandatory",null,true,null,"Reading line 21: Policies, TOU & RulesS7IF_NOT_VALUE_OTHER_MANDATORY",null,"N","X","1. Institutional Default Values","A",3]
["Policies, TOU & Rules","Y7",null,"IS_EMPTY",null,null,false,null,"Reading line 22: Policies, TOU & RulesT7IS_EMPTY",null,"N","Y","1. Institutional Default Values","A",3]
["Policies, TOU & Rules","Z7",null,"IS_EMPTY",null,null,false,null,"Reading line 23: Policies, TOU & RulesU7IF_NOT_VALUE_OTHER_MANDATORY",null,"N","Z","1. Institutional Default Values","A",3]
["Policies, TOU & Rules","AA7","AB,None,AA","IF_NOT_VALUE_OTHER_MANDATORY","If Block when Overdue Period <> None , the Block when Overdue Length is mandatory",null,true,null,"Reading line 24: Policies, TOU & RulesV7IS_EMPTY",null,"N","AA","1. Institutional Default Values","A",3]
["Policies, TOU & Rules","AB7",null,"IS_EMPTY",null,null,false,null,"Reading line 25: Policies, TOU & RulesW7IS_EMPTY",null,"N","AB","1. Institutional Default Values","A",3]
["Policies, TOU & Rules","AC7","AD,None,AC","IF_NOT_VALUE_OTHER_MANDATORY","If Max Overdue Block Period <> None , the Max Overdue Block Length is mandatory",null,true,null,"Reading line 26: Policies, TOU & RulesX7IF_NOT_VALUE_OTHER_MANDATORY",null,"N","AC","1. Institutional Default Values","A",3]
["Policies, TOU & Rules","AD7",null,"IS_EMPTY",null,null,false,null,"Reading line 27: Policies, TOU & RulesY7IS_EMPTY",null,"N","AD","1. Institutional Default Values","A",3]
["Policies, TOU & Rules","AE7",null,"IS_EMPTY",null,null,false,null,"Reading line 28: Policies, TOU & RulesZ7IS_EMPTY",null,"N","AE","1. Institutional Default Values","A",3]
["Policies, TOU & Rules","AF7",null,"IS_EMPTY",null,null,false,null,"Reading line 29: Policies, TOU & RulesAA7IF_NOT_VALUE_OTHER_MANDATORY",null,"N","AF","1. Institutional Default Values","A",3]
["Policies, TOU & Rules","AG7",null,"IS_EMPTY",null,null,false,null,"Reading line 30: Policies, TOU & RulesAB7IS_EMPTY",null,"N","AG","1. Institutional Default Values","A",3]
["Policies, TOU & Rules","AH7",null,"IS_EMPTY",null,null,false,null,"Reading line 31: Policies, TOU & RulesAC7IF_NOT_VALUE_OTHER_MANDATORY",null,"N","AH","1. Institutional Default Values","A",3]
["Policies, TOU & Rules","AI7",null,"IS_EMPTY",null,null,false,null,"Reading line 32: Policies, TOU & RulesAD7IS_EMPTY",null,"N","AI","1. Institutional Default Values","A",3]
["Policies, TOU & Rules","AJ7",null,"IS_EMPTY",null,null,false,null,"Reading line 33: Policies, TOU & RulesAE7IS_EMPTY",null,"N","AJ","1. Institutional Default Values","A",3]
["Policies, TOU & Rules","AK7",null,"IS_EMPTY",null,null,false,null,"Reading line 34: Policies, TOU & RulesAF7IS_EMPTY",null,"N","AK","1. Institutional Default Values","A",3]
["Policies, TOU & Rules","AK7",null,"IS_EMPTY",null,null,false,null,"Reading line 35: Policies, TOU & RulesAG7IS_EMPTY",null,"N","AK","1. Institutional Default Values","A",3]
["Policies, TOU & Rules","AK7",null,"IS_EMPTY",null,null,false,null,"Reading line 36: Policies, TOU & RulesAH7IS_EMPTY",null,"N","AK","1. Institutional Default Values","A",3]
["Policies, TOU & Rules","AK7",null,"IS_EMPTY",null,null,false,null,"Reading line 37: Policies, TOU & RulesAI7IS_EMPTY",null,"N","AK","1. Institutional Default Values","A",3]
["Policies, TOU & Rules","AK7",null,"IS_EMPTY",null,null,false,null,"Reading line 38: Policies, TOU & RulesAJ7IS_EMPTY",null,"N","AK","1. Institutional Default Values","A",3]
["Policies, TOU & Rules","AK7",null,"IS_EMPTY",null,null,false,null,"Reading line 39: Policies, TOU & RulesAK7IS_EMPTY",null,"N","AK","1. Institutional Default Values","A",3]
["Policies, TOU & Rules","AK7","AR,None,AQ","IF_NOT_VALUE_OTHER_MANDATORY","If Reloan Limit Period <> None , the Reloan Limit Length is mandatory",null,true,null,"Reading line 40: Policies, TOU & RulesAK7IS_EMPTY",null,"N","AK","1. Institutional Default Values","A",3]
["Policies, TOU & Rules","AK7",null,"IS_EMPTY",null,null,false,null,"Reading line 41: Policies, TOU & RulesAK7IS_EMPTY",null,"N","AK","1. Institutional Default Values","A",3]
["Fulfillment","B49:B51",null,"UNIQUE",null,null,true,null,"Reading line 42: Policies, TOU & RulesAK7IS_EMPTY",null,"Y","B","Overdue and Lost Loan Rules","B",2,"Request Recalls","B"]
["Libraries","C8:C10",null,"MULTI_SHOULD_NOT_CONTAIN","\\",null,false,null,"Reading line 43: Policies, TOU & RulesAK7IS_EMPTY",null,"Y","C","Campus Definitions","A",2,"Note that any library address information","A"]
["Libraries","C8:C10",null,"MULTI_SHOULD_NOT_CONTAIN"," ",null,false,null,"Reading line 44: Policies, TOU & RulesAK7IS_EMPTY",null,"Y","C","Campus Definitions","A",2,"Note that any library address information","A"]
["Libraries","C8:C10",null,"MULTI_SHOULD_NOT_CONTAIN","/",null,false,null,"Reading line 45: Policies, TOU & RulesAK7IF_NOT_VALUE_OTHER_MANDATORY",null,"Y","C","Campus Definitions","A",2,"Note that any library address information","A"]
["Libraries","C8:C10",null,"MULTI_SHOULD_NOT_CONTAIN","*",null,false,null,"Reading line 46: Policies, TOU & RulesAK7IS_EMPTY",null,"Y","C","Campus Definitions","A",2,"Note that any library address information","A"]
["Libraries","C8:C10",null,"MULTI_SHOULD_NOT_CONTAIN",";",null,false,null,"Reading line 47: FulfillmentB49:B51UNIQUE",null,"Y","C","Campus Definitions","A",2,"Note that any library address information","A"]
["Libraries","C8:C10",null,"IP_IS_ASCENDING","The IP range must be from lower value to higher value",null,true,null,"Reading line 48: LibrariesC8:C10MULTI_SHOULD_NOT_CONTAIN",null,"Y","C","Campus Definitions","A",2,"Note that any library address information","A"]
["Libraries","N24:N28",null,"IP_IS_ASCENDING","The IP range must be from lower value to higher value",null,true,null,"Reading line 49: LibrariesC8:C10MULTI_SHOULD_NOT_CONTAIN",null,"Y","N","1. Libraries","A",1,"2a. Please enter the standard open hours of your libraries:","A"]
["Libraries","N24:N28",null,"MULTI_SHOULD_NOT_CONTAIN","\\",null,false,null,"Reading line 50: LibrariesC8:C10MULTI_SHOULD_NOT_CONTAIN",null,"Y","N","1. Libraries","A",1,"2a. Please enter the standard open hours of your libraries:","A"]
["Libraries","N24:N28",null,"MULTI_SHOULD_NOT_CONTAIN"," ",null,false,null,"Reading line 51: LibrariesC8:C10MULTI_SHOULD_NOT_CONTAIN",null,"Y","N","1. Libraries","A",1,"2a. Please enter the standard open hours of your libraries:","A"]
["Libraries","N24:N28",null,"MULTI_SHOULD_NOT_CONTAIN","/",null,false,null,"Reading line 52: LibrariesC8:C10MULTI_SHOULD_NOT_CONTAIN",null,"Y","N","1. Libraries","A",1,"2a. Please enter the standard open hours of your libraries:","A"]
["Libraries","N24:N28",null,"MULTI_SHOULD_NOT_CONTAIN","*",null,false,null,"Reading line 53: LibrariesC8:C10IP_IS_ASCENDING",null,"Y","N","1. Libraries","A",1,"2a. Please enter the standard open hours of your libraries:","A"]
["Libraries","N24:N28",null,"MULTI_SHOULD_NOT_CONTAIN",";",null,false,null,"Reading line 54: LibrariesN24:N28IP_IS_ASCENDING",null,"Y","N","1. Libraries","A",1,"2a. Please enter the standard open hours of your libraries:","A"]
["Libraries","N24:N28",null,"CHECK_IP_HIGH2LOW",null,null,false,null,"Reading line 55: LibrariesN24:N28MULTI_SHOULD_NOT_CONTAIN",null,"Y","N","1. Libraries","A",1,"2a. Please enter the standard open hours of your libraries:","A"]
["Libraries","D56:D94",null,"CHECK_OPENING_HOURS",null,null,false,null,"Reading line 56: LibrariesN24:N28MULTI_SHOULD_NOT_CONTAIN",null,"Y","D","2a. Please enter the standard open hours of your libraries:","A",1,"2b. Please enter any exceptional open dates and times for your libraries","A"]
["Libraries","B24:B28",null,"FIXED_LIST",{"$f":"Libraries!A8&\", \"&Libraries!A9&\", \"&Libraries!A10&\", \"&Libraries!A11&\", \"&Libraries!A12&\", \"&Libraries!A13&\", \"&Libraries!A14&\", \"&Libraries!A15&\", \"&Libraries!A16","v":"MAINCAMPUS, RIVERCAMPUS, UPCAMPUS, , , , , , "},null,true,null,"Reading line 57: LibrariesN24:N28MULTI_SHOULD_NOT_CONTAIN",null,"Y","B","1. Libraries","A",1,"2a. Please enter the standard open hours of your libraries:","A"]
["Locations","A5:A20","A,B","CHECK_2COL_UNIQUE","The combination of Library Code and Location Code should be unique",null,true,null,"Reading line 58: LibrariesN24:N28MULTI_SHOULD_NOT_CONTAIN",null,"Y","A","Physical Location Details","A",1,"Remote Storage Facilities","A"]
["Printers","A5:A11",null,"CHECK_PRINTER_UNIT_CODE",null,null,true,null,"Reading line 59: LibrariesN24:N28MULTI_SHOULD_NOT_CONTAIN",null,"Y","A","Organizational Unit Code","A",0]
["Locations","A5:A20","A,C","CHECK_2COL_UNIQUE","The combination of Library Code and Location Name should be unique",null,true,null,"Reading line 60: LibrariesN24:N28CHECK_IP_HIGH2LOW",null,"Y","A","Physical Location Details","A",1,"Remote Storage Facilities","A"]
["Circ Desks","H8:H17","Printers,Y,Organizational Unit Code,A,0,,,A,H,A,B","IN_TWO_COL_TAB_LIST","The combination of Library and Printer Code is missing in the Printers Tab list",null,true,null,"Unknown function: CHECK_IP_HIGH2LOW",null,"Y","H","Circulation Desks","A",6,"Automatic (Pick Slip) Printing Rules","A"]
["Circ Desks","A8:A17","A,B","CHECK_2COL_UNIQUE","The combination of Library Code and Circ desk Code should be unique",null,true,null,"Reading line 61: LibrariesD56:D94CHECK_OPENING_HOURS",null,"Y","A","Circulation Desks","A",6,"Automatic (Pick Slip) Printing Rules","A"]
["Circ Desks","I8:I17","I,Circulation desk printer,H","IF_VALUE_OTHER_MANDATORY","If Create return receipt = Circulation desk printer, the Printer Code is mandatory",null,true,null,"Reading line 62: LibrariesB24:B28FIXED_LIST",null,"Y","I","Circulation Desks","A",6,"Automatic (Pick Slip) Printing Rules","A"]
["Circ Desks","J8:J17","J,Circulation desk printer,H","IF_VALUE_OTHER_MANDATORY","If Create loan receipt = Circulation desk printer, the Printer Code is mandatory",null,true,null,"Reading line 63: LocationsA5:A20CHECK_2COL_UNIQUE",null,"Y","J","Circulation Desks","A",6,"Automatic (Pick Slip) Printing Rules","A"]
["Circ Desks","A56","Locations,Y,Physical Location Details,A,1,Remote Storage Facilities,A,A,C,A,B","IN_TWO_COL_TAB_LIST","The combination of Library and Location is missing in the Locations tab list",null,true,null,"Reading line 64: PrintersA5:A11CHECK_PRINTER_UNIT_CODE",null,"Y","A","Automatic (Pick Slip) Printing Rules","A",2]
["Item Policies","A5:A15",null,"UNIQUE",null,null,true,null,"Reading line 65: LocationsA5:A20CHECK_2COL_UNIQUE",null,"Y","A","Item Policies","A",3]
["Locations","K5:K20","Locations,Y,Remote Storage Facilities,A,3,,,A","IN_TAB_LIST","The Remote Storage Facility value should be part of the Remote Storage Facilities table",null,true,null,"Reading line 66: Circ DesksH8:H17IN_TWO_COL_TAB_LIST",null,"Y","K","Physical Location Details","A",1,"Remote Storage Facilities","A"]
["Locations","A5:A20","L,Y","DISTINCT_COL_INPUT_VAL_UNIQUE","Each Library may have only one Default Acquisition Location",null,true,null,"Reading line 67: Circ DesksA8:A17CHECK_2COL_UNIQUE",null,"Y","A","Physical Location Details","A",1,"Remote Storage Facilities","A"]
["Circ Desks","E56","Printers,Y,Organizational Unit Code,A,0,,,A,E,A,B","IN_TWO_COL_TAB_LIST","The combination of Library and Printer Code is missing in the Printers Tab list",null,true,null,"Reading line 68: Circ DesksI8:I17IF_VALUE_OTHER_MANDATORY",null,"Y","E","Automatic (Pick Slip) Printing Rules","A",2]
["Acquisitions","B6:B12",true,"ONE_OCCURRENCE","Only one currency may be set as default",null,true,null,"Reading line 69: Circ DesksJ8:J17IF_VALUE_OTHER_MANDATORY",null,"Y","B","Currencies that will be used in Alma","A",2,"\"Acquire For\" Relationships","A"]
["Libraries","A56:A94","Libraries,Y,1. Libraries,A,1,2a. Please enter the standard open hours of your libraries:,A,A,RES_SHARE,","IN_TAB_PLUS_LIST","The Library Code should be part of the Libraries list or \"RES_SHARE\"",null,true,null,"Reading line 70: Circ DesksA56IN_TWO_COL_TAB_LIST",null,"Y","A","2a. Please enter the standard open hours of your libraries:","A",1,"2b. Please enter any exceptional open dates and times for your libraries","A"]
["Libraries","A97","Libraries,Y,1. Libraries,A,1,2a. Please enter the standard open hours of your libraries:,A,A,RES_SHARE,","IN_TAB_PLUS_LIST","The Library Code should be part of the Libraries list or \"RES_SHARE\"",null,true,null,"Reading line 71: Item PoliciesA5:A15UNIQUE",null,"Y","A","2b. Please enter any exceptional open dates and times for your libraries","A",1,"2c. Please enter any exceptional closed days for your libraries","A"]
["Libraries","A166","Libraries,Y,1. Libraries,A,1,2a. Please enter the standard open hours of your libraries:,A,A,RES_SHARE,","IN_TAB_PLUS_LIST","The Library Code should be part of the Libraries list or \"RES_SHARE\"",null,true,null,"Reading line 72: LocationsK5:K20IN_TAB_LIST",null,"Y","A","3. Circulation relationships between libraries","A",3]
["Libraries","A129:A131","Libraries,Y,1. Libraries,A,1,2a. Please enter the standard open hours of your libraries:,A,A,RES_SHARE,*****","IN_TAB_PLUS_LIST","The Library Code should be part of the Libraries list or \"RES_SHARE\" or \"*****\"",null,true,null,"Reading line 73: LocationsA5:A20DISTINCT_COL_INPUT_VAL_UNIQUE",null,"Y","A","2c. Please enter any exceptional closed days for your libraries","A",1,"2d. Fixed Term Due Dates","A"]
["Circ Desks","A8:A17","Libraries,Y,1. Libraries,A,1,2a. Please enter the standard open hours of your libraries:,A,A","IN_TAB_LIST","The Library Code should be part of the Libraries list",null,true,null,"Reading line 74: Circ DesksE56IN_TWO_COL_TAB_LIST",null,"Y","A","Circulation Desks","A",6,"Automatic (Pick Slip) Printing Rules","A"]
["Circ Desks","A56","Libraries,Y,1. Libraries,A,1,2a. Please enter the standard open hours of your libraries:,A,A","IN_TAB_LIST","The Library Code should be part of the Libraries list",null,true,null,"Reading line 75: AcquisitionsB6:B12ONE_OCCURRENCE",null,"Y","A","Automatic (Pick Slip) Printing Rules","A",2]
["Locations","A5:A20","Libraries,Y,1. Libraries,A,1,2a. Please enter the standard open hours of your libraries:,A,A","IN_TAB_LIST","The Library Code should be part of the Libraries list",null,true,null,"Reading line 76: LibrariesA56:A94IN_TAB_PLUS_LIST",null,"Y","A","Physical Location Details","A",1,"Remote Storage Facilities","A"]
["Additional ResShare Libraries","A13:A17","Libraries,Y,1. Libraries,A,1,2a. Please enter the standard open hours of your libraries:,A,A","IN_TAB_LIST","The Library Code should be part of the Libraries list",null,true,null,"Reading line 77: LibrariesA97IN_TAB_PLUS_LIST",null,"Y","A","Outgoing Requests to Other Institutions","A",2,"Incoming Requests from Other Institutions","A"]
["Additional ResShare Libraries","A28","Libraries,Y,1. Libraries,A,1,2a. Please enter the standard open hours of your libraries:,A,A","IN_TAB_LIST","The Library Code should be part of the Libraries list",null,true,null,"Reading line 78: LibrariesA166IN_TAB_PLUS_LIST",7,"Y","A","Incoming Requests from Other Institutions","A",1,"Resource Sharing Library Locations","A"]
["Additional ResShare Libraries","A35","Libraries,Y,1. Libraries,A,1,2a. Please enter the standard open hours of your libraries:,A,A","IN_TAB_LIST","The Library Code should be part of the Libraries list",null,true,null,"Reading line 79: LibrariesA129:A131IN_TAB_PLUS_LIST",null,"Y","A","Resource Sharing Library Locations","A",1]
["Acquisitions","A35:A37","Libraries,Y,1. Libraries,A,1,2a. Please enter the standard open hours of your libraries:,A,A","IN_TAB_LIST","The Library Code should be part of the Libraries list",null,true,null,"Reading line 80: Circ DesksA8:A17IN_TAB_LIST",null,"Y","A","\"Acquire For\" Relationships","A",2,"Served Libraries","A"]
["Acquisitions","A55:A56","Libraries,Y,1. Libraries,A,1,2a. Please enter the standard open hours of your libraries:,A,A","IN_TAB_LIST","The Library Code should be part of the Libraries list",null,true,null,"Reading line 81: Circ DesksA56IN_TAB_LIST",null,"Y","A","Served Libraries","A",2,"General Purchasing Behavior","A"]
["Acquisitions","B55:B56","Libraries,Y,1. Libraries,A,1,2a. Please enter the standard open hours of your libraries:,A,A","IN_TAB_LIST","The Library Code should be part of the Libraries list",null,true,null,"Reading line 82: LocationsA5:A20IN_TAB_LIST",null,"Y","B","Served Libraries","A",2,"General Purchasing Behavior","A"]
["Acquisitions","B35:B37","Libraries,Y,1. Libraries,A,1,2a. Please enter the standard open hours of your libraries:,A,A,ALL,","IN_TAB_PLUS_LIST","The Library Code should be part of the Libraries list or \"ALL\"",null,true,null,"Reading line 83: Additional ResShare LibrariesA13:A17IN_TAB_LIST",null,"Y","B","\"Acquire For\" Relationships","A",2,"Served Libraries","A"]
["Translations","A13:A15","Libraries,Y,1. Libraries,A,1,2a. Please enter the standard open hours of your libraries:,A,A","IN_TAB_LIST","The Library Code should be part of the Libraries list",null,true,null,"Reading line 84: Additional ResShare LibrariesA28IN_TAB_LIST",null,"Y","A","Name of Physical Library","A",3,"Name of Location","A"]
["Translations","A22","Libraries,Y,1. Libraries,A,1,2a. Please enter the standard open hours of your libraries:,A,A","IN_TAB_LIST","The Library Code should be part of the Libraries list",null,true,null,"Reading line 85: Additional ResShare LibrariesA35IN_TAB_LIST",null,"Y","A","Name of Location","A",3,"External Name of Location","A"]
["Translations","A31","Libraries,Y,1. Libraries,A,1,2a. Please enter the standard open hours of your libraries:,A,A","IN_TAB_LIST","The Library Code should be part of the Libraries list",null,true,null,"Reading line 86: AcquisitionsA35:A37IN_TAB_LIST",null,"Y","A","External Name of Location","A",3,"Circulation Desk Name","A"]
["Translations","A40","Libraries,Y,1. Libraries,A,1,2a. Please enter the standard open hours of your libraries:,A,A","IN_TAB_LIST","The Library Code should be part of the Libraries list",null,true,null,"Reading line 87: AcquisitionsA55:A56IN_TAB_LIST",null,"Y","A","Circulation Desk Name","A",3]
["WorkOrders","B10:B11",null,"UNIQUE_WITH_TRIM",null,null,true,null,"Reading line 88: AcquisitionsB55:B56IN_TAB_LIST",null,"Y","B","Work Order Type Code","B",1]
["Licensing","B22:B101",null,"UNIQUE",null,null,true,null,"Reading line 89: AcquisitionsB35:B37IN_TAB_PLUS_LIST",null,"Y","B","License Terms","A",4]
["Resource Management","B34:B36","Assign Controlled Vocabularies,Y,Controlled Vocabularies - Assign,A,2,,,A,Y,A","IF_INTAB_THEN_COLVAL","If \"Metadata Profile\" matches a \"Registry Name\" in the \"Resource Management Tab\", set it to \"Activated\"",null,true,null,"Reading line 90: TranslationsA13:A15IN_TAB_LIST",null,"Y","B","Active Metadata Registry","A",2,"Publishing to OCLC","A"]
["Resource Management","C34:C36","Assign Controlled Vocabularies,Y,Controlled Vocabularies - Assign,A,2,,,A,Y,A","IF_INTAB_THEN_COLVAL","If \"Metadata Profile\" matches a \"Registry Name\" in the \"Resource Management Tab\", set it to \"Preferred\"",null,true,null,"Reading line 91: TranslationsA22IN_TAB_LIST",null,"Y","C","Active Metadata Registry","A",2,"Publishing to OCLC","A"]
["Fulfillment","I49:I51","I,Print,J","IF_VALUE_OTHER_MANDATORY","If Letter send format = Print, the Printer Code is mandatory",null,true,null,"Reading line 92: TranslationsA31IN_TAB_LIST",null,"Y","I","Overdue and Lost Loan Rules","B",2,"Request Recalls","B"]
["Fulfillment","I49:I51","I,Both,J","IF_VALUE_OTHER_MANDATORY","If Letter send format = Both, the Printer Code is mandatory",null,true,null,"Reading line 93: TranslationsA40IN_TAB_LIST",null,"Y","I","Overdue and Lost Loan Rules","B",2,"Request Recalls","B"]
["Policies, TOU & Rules","A64:A71","A,B","IF_NOT_EMPTY_OTHER_MANDATORY","If patron type is selected field: \"Is Requestable for Resource Sharing\" is mandatory",null,true,null,"Reading line 94: WorkOrdersB10:B11UNIQUE_WITH_TRIM",null,"Y","A","4. Outgoing Requests To Other Institutions (Resource Sharing/ILL)","A",2,"5. Incoming Requests From Other Institutions (Resource Sharing/ILL)","A"]
["Policies, TOU & Rules","A64:A71","A,C","IF_NOT_EMPTY_OTHER_MANDATORY","If patron type is selected field: \"Resource Sharing Fee\" is mandatory",null,true,null,"Reading line 95: LicensingB22:B101UNIQUE",null,"Y","A","4. Outgoing Requests To Other Institutions (Resource Sharing/ILL)","A",2,"5. Incoming Requests From Other Institutions (Resource Sharing/ILL)","A"]
["Policies, TOU & Rules","A64:A71","A,D","IF_NOT_EMPTY_OTHER_MANDATORY","If patron type is selected field: \"Pickup Locations for RS\" is mandatory",null,true,null,"Reading line 96: Resource ManagementB34:B36IF_INTAB_THEN_COLVAL",null,"Y","A","4. Outgoing Requests To Other Institutions (Resource Sharing/ILL)","A",2,"5. Incoming Requests From Other Institutions (Resource Sharing/ILL)","A"]
["Policies, TOU & Rules","A64:A71","A,E","IF_NOT_EMPTY_OTHER_MANDATORY","If patron type is selected Is field: \"Allow Resource Sharing Requesting\" is mandatory",null,true,null,"Reading line 97: Resource ManagementC34:C36IF_INTAB_THEN_COLVAL",null,"Y","A","4. Outgoing Requests To Other Institutions (Resource Sharing/ILL)","A",2,"5. Incoming Requests From Other Institutions (Resource Sharing/ILL)","A"]
["Policies, TOU & Rules","A64:A71","A,F","IF_NOT_EMPTY_OTHER_MANDATORY","If patron type is selected Is field: \"Resource Sharing Request Limit\" is mandatory",null,true,null,"Reading line 98: FulfillmentI49:I51IF_VALUE_OTHER_MANDATORY",null,"Y","A","4. Outgoing Requests To Other Institutions (Resource Sharing/ILL)","A",2,"5. Incoming Requests From Other Institutions (Resource Sharing/ILL)","A"]
["Libraries","K24:K28",null,"PHONE_VALIDATION","Please Check the phone number, shouldn't contain '+'",null,true,null,"Reading line 99: FulfillmentI49:I51IF_VALUE_OTHER_MANDATORY",null,"Y","K","1. Libraries","A",1,"2a. Please enter the standard open hours of your libraries:","A"]
["Libraries","B97","B,C","DATE_VALIDATION","Please Check dates, From Date should be less than or equal to \"Date To\"",null,true,null,"Reading line 100: Policies, TOU & RulesA64:A68IF_NOT_EMPTY_OTHER_MANDATORY",null,"Y","B","2b. Please enter any exceptional open dates and times for your libraries (for single date exceptions, repeat the same From and To date):","A",1,"2c. Please enter any exceptional closed days for your libraries (for single date exceptions, repeat the same From and To date):","A"]
["Libraries","D97","D,E","TIME_VALIDATION","Please check Open Time, \"From Time\" should be less than or equal to \"Time To\"",null,true,null,"Reading line 101: Policies, TOU & RulesA64:A68IF_NOT_EMPTY_OTHER_MANDATORY",null,"Y","D","2b. Please enter any exceptional open dates and times for your libraries (for single date exceptions, repeat the same From and To date):","A",1,"2c. Please enter any exceptional closed days for your libraries (for single date exceptions, repeat the same From and To date):","A"]
["Libraries","C56:C94","C,D","TIME_VALIDATION","Please check Open Time, \"From Time\" should be less than or equal to \"Time To\"",null,true,null,"Reading line 102: Policies, TOU & RulesA64:A68IF_NOT_EMPTY_OTHER_MANDATORY",null,"Y","C","2a. Please enter the standard open hours of your libraries:","A",1,"2b. Please enter any exceptional open dates and times for your libraries (for single date exceptions, repeat the same From and To date):","A"]
["Libraries","B129:B131","B,C","DATE_VALIDATION","Please Check dates, From Date should be less than or equal to \"Date To\"",null,true,null,"Reading line 103: Policies, TOU & RulesA64:A68IF_NOT_EMPTY_OTHER_MANDATORY",null,"Y","B","2c. Please enter any exceptional closed days for your libraries (for single date exceptions, repeat the same From and To date):","A",1,"2d. Fixed Term Due Dates (Used by Due date circulation/fulfillment policy)","A"]
["Libraries","D129:D131","D,E","TIME_VALIDATION","Please check Close Time, \"From Time\" should be less than or equal to \"Time To\"",null,true,null,"Reading line 104: Policies, TOU & RulesA64:A68IF_NOT_EMPTY_OTHER_MANDATORY",null,"Y","D","2c. Please enter any exceptional closed days for your libraries (for single date exceptions, repeat the same From and To date):","A",1,"2d. Fixed Term Due Dates (Used by Due date circulation/fulfillment policy)","A"]
["Primo VE - Configuration","E20:E28",null,"UNIQUE",null,null,true,null,"Reading line 105: LibrariesK24:K28PHONE_VALIDATION",null,"Y","E","Search Results - Facets","B",1,"Full Record View – Labels Section","B"]
["Primo VE - Configuration","B38:B40",null,"MULTI_SHOULD_NOT_CONTAIN","\\",null,false,null,"Reading line 106: LibrariesB97DATE_VALIDATION",null,"Y","B","Full Record View - Details Section - Additional Fields","B",1]
["Primo VE - Configuration","B38:B40",null,"MULTI_SHOULD_NOT_CONTAIN"," ",null,false,null,"Reading line 107: LibrariesD97TIME_VALIDATION",null,"Y","B","Full Record View - Details Section - Additional Fields","B",1]
["Primo VE - Configuration","B38:B40",null,"MULTI_SHOULD_NOT_CONTAIN","/",null,false,null,"Reading line 108: LibrariesC56:C94TIME_VALIDATION",null,"Y","B","Full Record View - Details Section - Additional Fields","B",1]
["Primo VE - Configuration","B38:B40",null,"MULTI_SHOULD_NOT_CONTAIN","*",null,false,null,"Reading line 109: LibrariesB129:B131DATE_VALIDATION",null,"Y","B","Full Record View - Details Section - Additional Fields","B",1]
["Primo VE - Configuration","B38:B40",null,"MULTI_SHOULD_NOT_CONTAIN",";",null,false,null,"Reading line 110: LibrariesD129:D131TIME_VALIDATION",null,"Y","B","Full Record View - Details Section - Additional Fields","B",1]
["Primo VE - Configuration","B38:B40",null,"FIXED_LIST_OF_LIST","009,090,091,092,093,094,095,096,097,098,099,490,500,501,502,503,504,505,506,507,508,509,510,511,512,513,514,515,516,517,518,519,520,521,522,523,524,525,526,527,528,529,530,531,532,533,534,535,536,537,538,539,540,541,542,543,544,545,546,547,548,549,550,551,552,553,554,555,556,557,558,559,560,561,562,563,564,565,566,567,568,569,570,571,572,573,574,575,576,577,578,579,580,581,582,583,584,585,586,587,588,589,590,591,592,593,594,595,596,597,598,599,690,691,692,693,694,695,696,697,698,699,900,901,902,903,904,905,906,907,908,909,910,911,912,913,914,915,916,917,918,919,920,921,922,923,924,925,926,927,928,929,930,931,932,933,934,935,936,937,938,939,940,941,942,943,944,945,946,947,948,949,950,951,952,953,954,955,956,957,958,959,960,961,962,963,964,965,966,967,968,969,970,971,972,973,974,975,976,977,978,979,980,981,982,983,984,985,986,987,988,989,990,991,992,993,994,995,996,997,998,999,090,091,092,093,094,095,096,097,098,099,490,500,501,502,503,504,505,506,507,508,509,510,511,512,513,514,515,516,517,518,519,520,521,522,523,524,525,526,527,528,529,530,531,532,533,534,535,536,537,538,539,540,541,542,543,544,545,546,547,548,549,550,551,552,553,554,555,556,557,558,559,560,561,562,563,564,565,566,567,568,569,570,571,572,573,574,575,576,577,578,579,580,581,582,583,584,585,586,587,588,589,590,591,592,593,594,595,596,597,598,599,690,691,692,693,694,695,696,697,698,699,900,901,902,903,904,905,906,907,908,909,910,911,912,913,914,915,916,917,918,919,920,921,922,923,924,925,926,927,928,929,930,931,932,933,934,935,936,937,938,939,940,941,942,943,944,945,946,947,948,949,950,951,952,953,954,955,956,957,958,959,960,961,962,963,964,965,966,967,968,969,970,971,972,973,974,975,976,977,978,979,980,981,982,983,984,985,986,987,988,989,990,991,992,993,994,995,996,997,998,999,",null,true,null,"Reading line 111: Primo VE - ConfigurationE20:E28UNIQUE",null,"Y","B","Full Record View - Details Section - Additional Fields","B",1]
["Primo VE - Configuration","D38:D40",null,"UNIQUE",null,null,true,null,"Reading line 112: Primo VE - ConfigurationB38:B40MULTI_SHOULD_NOT_CONTAIN",null,"Y","D","Full Record View - Details Section - Additional Fields","B",1]
["Primo VE - Configuration","B105:B109","C,G","IF_NOT_EMPTY_OTHERS_MANDATORY","All fields from C-G must be populate",null,true,null,"Reading line 113: Primo VE - ConfigurationB38:B40MULTI_SHOULD_NOT_CONTAIN",null,"Y","B","Local Resource Types","B",1]
["Primo VE - Configuration","B105:B109","H,I","IF_NOT_EMPTY_OTHER_MANDATORY","If \"MARC field and subfield\" is populated field: \"Value in MARC Field\" is mandatory",null,true,null,"Reading line 114: Primo VE - ConfigurationB38:B40MULTI_SHOULD_NOT_CONTAIN",null,"Y","B","Local Resource Types","B",1]
["Primo VE - Configuration","B105:B109","J,K","IF_NOT_EMPTY_OTHER_MANDATORY","If \"Dublin Core Tag \" is populated field: \"Value in Dublin Core\" is mandatory",null,true,null,"Reading line 115: Primo VE - ConfigurationB38:B40MULTI_SHOULD_NOT_CONTAIN",null,"Y","B","Local Resource Types","B",1]
["Primo VE - Configuration","B105:B109","H,J","IF_EMPTY_OTHER_MANDATORY"," Field \"MARC field and subfield\" or field \"Dublin Core Tag\" must be populate",null,true,null,"Reading line 116: Primo VE - ConfigurationB38:B40MULTI_SHOULD_NOT_CONTAIN",null,"Y","B","Local Resource Types","B",1]
["Users","A56:A63","A,B","IF_NOT_EMPTY_OTHER_MANDATORY","If patron type is selected field: \"Max cash before block\" is mandatory",null,true,null,"Reading line 117: Primo VE - ConfigurationB38:B40FIXED_LIST_OF_LIST",null,"Y","A","Please enter your patron limits below","A",2]
[null,null,null,null,null,null,null,null,"Reading line 118: Primo VE - ConfigurationD38:D40UNIQUE"]
[null,null,null,null,null,null,null,null,"Reading line 119: Primo VE - ConfigurationB105:B109IF_NOT_EMPTY_OTHERS_MANDATORY"]
[null,null,null,null,null,null,null,null,"Reading line 120: Primo VE - ConfigurationB105:B109IF_NOT_EMPTY_OTHER_MANDATORY"]
[null,null,null,null,null,null,null,null,"Reading line 121: Primo VE - ConfigurationB105:B109IF_NOT_EMPTY_OTHER_MANDATORY"]
[null,null,null,null,null,null,null,null,"Reading line 122: Primo VE - ConfigurationB105:B109IF_EMPTY_OTHER_MANDATORY"]
[null,null,null,null,null,null,null,null,"Reading line 123: UsersA56:A63IF_NOT_EMPTY_OTHER_MANDATORY"]
[null,null,null,null,null,null,null,null,"Reading line 124: "]
[]
["Description and usage of the functions"]
["CHECK_2COL_UNIQUE",null,"Fill col-C (parameter) with the columns to be checked if unique (e.g.: A,B). \nFill col-E (function details) with the error message to be displayed."]
["IN_TWO_COL_TAB_LIST",null,"To check 2 cols in a certain tab/list appear as 2 cols in another tab/list.\nFill col-C (parameter) with in the following order delimited by comma (e.g.:   Printers,Y,Organizational Unit Code,A,0,,,A,H,A,B):\nTarget tab-name to match\nIf the target list is multiple rows\nThe \"from\" title name to fix range in the target list\nThe \"from\" title column to fix range in the target list\nThe  number of lines to skip from the title to the first relevant line\nThe \"to\" title name to fix range in the target list\nThe \"to\" title column to fix range in the target list\nThe first column in the base list\nThe second column in the base list\nThe first column in the target list\nThe second column in the target list"]
["IF_VALUE_OTHER_MANDATORY",null,"To check a mandatory column in a list depending on a column in that same list is filled with a certain string.\nFill col-C (parameter) with in the following order delimited by comma (e.g.:   I,Circulation desk printer,H):\nThe column to check if contains a certain string\nThe string to be checked if is filled in a certain column\nThe column to be checked if empty"]
["IN_TAB_LIST",null,"To check one col in a certain tab/list appears in another tab/list.\nFill col-C (parameter) in the following order delimited by comma (e.g.:   Locations,Y,Remote Storage Facilities,A,3,,,A):\nTarget tab-name to match\nIf the target list is multiple rows\nThe \"from\" title name to fix range in the target list\nThe \"from\" title column to fix range in the target list\nThe  number of lines to skip from the title to the first relevant line  in the target list\nThe \"to\" title name to fix range in the target list\nThe \"to\" title column to fix range in the target list\nThe column in the target list to set the valid values\n\nFill col-E (function details) with the error message required"]
["DISTINCT_COL_INPUT_VAL_UNIQUE",null,"Each distinct value of  the checked column (Col-L) should have only one appearance of a certain value in a certain col of its same list.\nFill col-C (parameter) in the following order delimited by comma (e.g.: K,Y)\n1. the other column to check if contains the value set\n2. the value to be checked\nFill col-E (function details) with the required error message."]
["ONE_OCCURRENCE",null,"To check a certain value appears 0 or 1 time in the checked colum (Col-L).\nFill col-C (parameter) with the value to be checked.\nFill col-E (function details) with the required error message."]
["IN_TAB_PLUS_LIST",null,"To check one col in a certain tab/list appears in another tab/list or has hard-coded optional values (1 or 2 options)\nFill col-C (parameter) in the following order delimited by comma (e.g.:   Locations,Y,Remote Storage Facilities,A,3,,,A,StringEx1,StringEx2):\nTarget tab-name to match\nIf the target list is multiple rows\nThe \"from\" title name to fix range in the target list\nThe \"from\" title column to fix range in the target list\nThe  number of lines to skip from the title to the first relevant line  in the target list\nThe \"to\" title name to fix range in the target list\nThe \"to\" title column to fix range in the target list\nThe column in the target list to set the valid values\nThe 1st optional hard-coded value\nThe 2nd optional hard-coded value\n\nFill col-E (function details) with the error message required"]
["IF_INTAB_THEN_COLVAL",null,"To check if one col in a certain tab/list = a specific value, then another column on that row cannot have an occurence in a specific tab/list/column.\nFill col-C (parameter) in the following order delimited by comma (e.g.:   Assign Controlled Vocabularies,Y,Controlled Vocabularies - Assign,A,2,,,A,Y,A):\n\nTarget tab-name to match\nIf the target list is multiple rows\nThe \"from\" title name to fix range in the target list\nThe \"from\" title column to fix range in the target list\nThe  number of lines to skip from the title to the first relevant line  in the target list\nThe \"to\" title name to fix range in the target list\nThe \"to\" title column to fix range in the target list\nThe column in the target list to compare to the former colum\nThe value that is checked if appear on the former column\nThe former column to compare to the target colum\n\nFill col-E (function details) with the error message required\n"]
["IF_NOT_EMPTY_OTHER_MANDATORY",null,"To check a mandatory column in a list depending on a column in that same list is filled with a string.\nFill col-C (parameter) with in the following order delimited by comma (e.g.:   I,Circulation desk printer,H):\nThe column to check if contains a string\nThe column to be checked if empty"]
["DATE_VALIDATION"]
["TIME_VALIDATION"]

{"sheet":"Item Policies","index":9,"n_rows":15,"n_cols":3,"rows_kept":15,"cut":false,"hidden":false,"merged":[[2,0,2,2],[0,0,0,1]]}
["Item Policies"]
[]
["Enter your item policies below. Select an Item Exception Type only for the item policies you will need as exceptions to the location-based approach in Alma."]
["Item Code","Item Description","Item Exception Type"]
["09","Special","No Loan"]
["89","Manuscript","No Loan"]
["99","Restricted","No Loan"]
["01","Book"]
["02","Juvenile Lit."]
["07","Popular Reading"]
["22","General Collection"]
["23","Course Reseves"]
["77","Laptop","Laptop"]
["78","Charger"]
["80","Ipad"]

{"sheet":"Policies, TOU & Rules","index":10,"n_rows":76,"n_cols":45,"rows_kept":76,"cut":false,"hidden":false,"merged":[[1,0,1,3],[60,0,60,1],[72,0,72,1]]}
[]
["Please enter your policies below"]
["1. Institutional Default Values"]
["Column1","Column2","Column3","Column4","Column5","Column6","Column7","Column8","Column9","Column10","Column11","Column12","Column13","Column14","Column15","Column16","Column17","Column18","Column19","Column20","Column21","Column22","Column23","Column24","Column25","Column26","Column27","Column28","Column29","Column30","Column31","Column32","Column33","Column34","Column35","Column36","Column37","Column38","Column39","Column40","Column41","Column42","Column43","Column44","Column45"]
[null,null,null,"Loanability","Recallability","RegularDueDate","RegularDueDate","RequestedItemDueDate","RequestedItemDueDate","RecallDueDate","RecallDueDate","RenewFee","LostItemFine","LostItemReplacementFee","LostItemReplacementRefund","MaximumFine","OverdueFine","OverdueFine","RecalledOverdueFine","RecalledOverdueFine","Grace","Grace","IsRenewable","MaximumRenewalPeriod","MaximumRenewalPeriod","ClosedLibraryDueDateMng","BlockWhenOverdue","BlockWhenOverdue","MaximumOverdueBlockPeriod","MaximumOverdueBlockPeriod","Requestability","CancelledRecallDueDate","PickupLocations","HoldShelfPeriod","Digitizeable","RSPhysicalRequestability","RSDigitalRequestability","RequestPriority","OnShelfRequestPolicy","PersonalDelivery","PersonalDeliveryFee","AutoConvertToResSharing","ReloanLimit","ReloanLimit","TimeFrameRenewalAllowed"]
[null,null,null,"Circulatable?","Recallable?","Loan Length","Loan Period","Requested Item Length","Requested Item Period","Recall Length","Recall Period","Renew Fee","Lost Item Fine","Lost Item Replacement fee","Lost Item Replacement Refund Ratio","Maximum Fine","Overdue Fine Amount","Overdue Fine Period","Recalled Overdue Fine Amount","Recalled Overdue Fine Period","Grace Length","Grace Period","Renewable?","Max Renew Length","Max Renew Period","Closed Library Due Date Management","Block when Overdue Length","Block when Overdue Period","Max Overdue Block Length","Max Overdue Block Period","Requestable?","Cancelled Recall Due Date","Pickup Locations","Hold Shelf Period","Digitizable?","Is Requestable for physical resource sharing","Is Requestable for digital resource sharing","Request Priority","On Shelf Request Policy","Personal delivery","Personal delivery fee","Automatically convert to resource sharing","Reloan Limit Length","Reloan Limit Period","Time frame loan renewal allowed Length (days) "]
[null,null,null,"Y","Y",3,"Month",2,"Week",2,"Week",0,10,75,100,0,2.5,"Open Days",3.5,"Open Days",1,"Days","Y",365,"Days","FORWARD_END_DAY",7,"All Days - Cumulative",0,"None","Y","Attempt Automatic Renewal","In Library",7,"Y","Y","N","Medium","Use fulfillment unit definition","None",0,"N",0,"None",0]
[]
["2. Institutional Policies & TOU"]
["Column1","Column2","Column3","Column4","Column5","Column6","Column7","Column8","Column9","Column10","Column11","Column12","Column13","Column14","Column15","Column16","Column17","Column18","Column19","Column20","Column21","Column22","Column23","Column24","Column25","Column26","Column27","Column28","Column29","Column30","Column31","Column32","Column33","Column34","Column35","Column36","Column37","Column38","Column39","Column40","Column41","Column42","Column43","Column44","Column45"]
["LocationType","PatronType","OverridePolicy","Loanability","Recallability","RegularDueDate","RegularDueDate","RequestedItemDueDate","RequestedItemDueDate","RecallDueDate","RecallDueDate","RenewFee","LostItemFine","LostItemReplacementFee","LostItemReplacementRefund","MaximumFine","OverdueFine","OverdueFine","RecalledOverdueFine","RecalledOverdueFine","Grace","Grace","IsRenewable","MaximumRenewalPeriod","MaximumRenewalPeriod","ClosedLibraryDueDateMng","BlockWhenOverdue","BlockWhenOverdue","MaximumOverdueBlockPeriod","MaximumOverdueBlockPeriod","Requestability","CancelledRecallDueDate","PickupLocations","HoldShelfPeriod","Digitizeable","RSPhysicalRequestability","RSDigitalRequestability","RequestPriority","OnShelfRequestPolicy","PersonalDelivery","PersonalDeliveryFee","AutoConvertToResSharing","ReloanLimit","ReloanLimit","TimeFrameRenewalAllowed"]
["Location Type","Patron Type","Item Exception Type","Circulatable?","Recallable?","Loan Length","Loan Period","Requested Item Length","Requested Item Period","Recall Length","Recall Period","Renew Fee","Lost Item Fine","Lost Item Replacement fee","Lost Item Replacement Refund Ratio","Maximum Fine","Overdue Fine Amount","Overdue Fine Period","Recalled Overdue Fine Amount","Recalled Overdue Fine Period","Grace Length","Grace Period","Renewable?","Max Renew Length","Max Renew Period","Closed Library Due Date Management","Block when Overdue Length","Block when Overdue Period","Max Overdue Block Length","Max Overdue Block Period","Requestable?","Cancelled Recall Due Date","Pickup Locations","Hold Shelf Period","Digitizable?","Is Requestable for physical resource sharing","Is Requestable for digital resource sharing","Request Priority","On Shelf Request Policy","Personal delivery","Personal delivery fee","Automatically convert to resource sharing","Reloan Limit Length","Reloan Limit Period","Time frame loan renewal allowed Length (days) "]
["General","Faculty",null,null,null,6,null,null,null,null,null,null,0,null,null,null,null,null,null,null,null,null,null,null,null,null,null,null,null,null,null,null,"In Library",null,null,null,null,null,null,"All",0,"Y"]
["General","Staff",null,null,"N",null,null,null,null,null,null,null,0,null,null,null,null,null,null,null,null,null,null,null,null,null,3,"All Days - Discrete",null,null,null,null,"In Library",null,null,null,null,null,null,"Office",3,"Y",2,"Hours",1]
["General","Graduate Students",null,null,null,1,null,null,null,null,null,null,null,null,null,null,null,null,null,null,null,null,null,null,null,null,null,null,null,null,null,null,"In Institution",null,null,null,null,null,null,"Home",4,null,2,"Minute",1]
["General","Undergraduate Students",null,null,null,null,"Month",null,null,null,null,null,null,null,null,null,null,null,null,null,null,null,null,null,null,null,null,null,null,null,null,null,"In Institution",null,null,null,null,null,null,null,5,null,2,"Month",2]
["General","Community",null,null,null,1,"Days",null,null,null,null,null,null,null,null,null,null,null,null,null,null,null,null,null,null,null,null,null,null,null,"N",null,null,null,null,null,null,null,null,null,null,null,null,"Parallel"]
["Limited","Faculty",null,null,null,2,"Hours",null,null,null,null,null,null,null,null,null,null,null,null,null,null,null,null,null,null,null,null,null,null,null,"N",null,null,null,null,null,null,null,null,null,null,null,2,"Week"]
["Limited","Staff",null,null,null,1,"Hours",null,null,null,null,null,null,null,null,null,null,null,null,null,null,null,null,null,null,null,2,"All Days - Discrete",null,null,"N"]
["Limited","Graduate Students",null,null,null,1,"Hours",null,null,null,null,null,null,null,null,null,null,null,null,null,null,null,null,null,null,null,null,null,null,null,"N"]
["Limited","Undergraduate Students",null,null,null,4,"Hours",null,null,null,null,null,0,null,null,null,null,"All Hours",null,"All Hours",10,"Minute","N",24,"Hours","BACK",null,null,null,null,null,null,null,1,null,"N","Y"]
["Limited","Community",null,null,null,4,"Hours",null,null,null,null,null,0,null,null,null,null,"All Hours",null,"All Hours",10,"Minute","N",24,"Hours","BACK",null,null,null,null,null,null,null,1,null,"N","Y"]
["Short Loan/Reserve","Faculty",null,"N","N",4,"Hours",null,null,null,null,null,null,null,null,null,null,"All Hours",null,"All Hours",10,"Minute","N",8,"Hours","BACK",null,null,null,null,null,null,null,1,null,"N","Y",null,null,null,null,null,3,"Days"]
["Short Loan/Reserve","Staff",null,null,"N",2,"Hours",null,null,null,null,null,null,null,null,null,null,"All Hours",null,"All Hours",10,"Minute","N",8,"Hours","BACK",null,null,null,null,null,null,null,1,null,"N","Y"]
["Short Loan/Reserve","Graduate Students",null,"N",null,6,null,null,null,null,null,null,null,null,null,null,null,null,null,null,null,null,null,null,null,null,null,null,null,null,null,null,"In Institution"]
["Short Loan/Reserve","Undergraduate Students",null,null,"N",null,null,null,null,null,null,null,null,null,null,null,null,null,null,null,null,null,null,null,null,null,null,null,null,null,null,null,"In Institution"]
["Short Loan/Reserve","Community",null,"N","Y",1,"Hours",30,"Minute",30,"Minute",null,null,null,null,null,null,null,null,null,null,null,null,null,null,null,null,null,null,null,null,null,"In Institution"]
["Closed","Faculty",null,null,null,1,null,null,null,null,null,null,null,null,null,null,null,null,null,null,null,null,null,null,null,null,null,null,null,null,null,null,"In Institution",null,null,null,null,null,null,null,null,null,4,"Hours"]
["Closed","Staff",null,null,null,7,"Days",null,null,null,null,null,null,150,null,null,5,null,null,null,null,null,null,6,"Week",null,null,null,null,null,"N",null,null,1,null,"N","Y"]
["Closed","Graduate Students",null,null,null,7,"Days",null,null,null,null,null,null,150,null,null,5,null,null,null,null,null,null,6,"Week",null,null,null,null,null,"N",null,null,1,null,"N","Y"]
["Closed","Undergraduate Students",null,null,null,7,"Days",null,null,null,null,null,null,150,null,null,5,null,null,null,null,null,null,4,"Week",null,null,null,null,null,"N",null,null,1,null,"N","Y"]
["Closed","Community",null,"N",null,3,"Days",null,null,null,null,null,null,150,null,null,5,null,null,null,null,null,null,2,"Week",null,null,null,null,null,"N",null,null,1,null,"N","Y"]
["Media","Faculty"]
["Media","Staff"]
["Media","Graduate Students"]
["Media","Undergraduate Students"]
["Media","Community"]
[null,"Undergraduate Students","Laptop",null,"N"]
[null,null,"No Loan","N","Y",0,"Days",30,"Minute",30,"Minute"]
[]
[]
[]
[]
[]
[]
[]
[]
[]
[]
[]
[]
[]
[]
[]
[]
[]
[]
[]
[]
[]
["4. Outgoing Requests To Other Institutions (Resource Sharing/ILL)"]
["PatronType","RSPhysicalRequestability","RSDigitalRequestability","ResourceSharingFee","PickupLocationsRs","ResourceSharingRequesting","ResourceSharingReqLimit","Loanability","Requestability","Digitizeable","IsRenewable","RegularDueDate","RegularDueDate","Grace","Grace","OverdueFine","OverdueFine","MaximumFine","MaximumRenewalPeriod","MaximumRenewalPeriod","RenewFee","ClosedLibraryDueDateMng","Recallability","RecallDueDate","RecallDueDate","RequestedItemDueDate","RequestedItemDueDate","BlockWhenOverdue","BlockWhenOverdue","MaximumOverdueBlockPeriod","MaximumOverdueBlockPeriod","LostItemReplacementRefund","LostItemReplacementFee","LostItemFine","HoldShelfPeriod","RequestPriority","OnShelfRequestPolicy","PickupLocations","PersonalDelivery","PersonalDeliveryFee","ResourceSharingRequestFee","YearlyRSRequestsLimit","ReloanLimit","ReloanLimit","TimeFrameRenewalAllowed"]
["Patron Type","Is Requestable for physical resource sharing","Is Requestable for digital resource sharing","Resource Sharing Receive Fee","Pickup Locations for RS","Allow Resource Sharing Requesting","Active resource sharing requests limit","Circulatable?","Requestable?","Digitizable?","Renewable?","Loan Length","Loan Period","Grace Length","Grace Period","Overdue Fine Amount","Overdue Fine Period","Maximum Fine","Max Renew Length","Max Renew Period","Renew Fee","Closed Library Due Date Management","Recallable?","Recall Length","Recall Period","Requested Item Length","Requested Item Period","Block when Overdue Length","Block when Overdue Period","Max Overdue Block Length","Max Overdue Block Period","Lost Item Replacement Refund Ratio","Lost Item Replacement fee","Lost Item Fine","Hold Shelf Period","Request Priority","On Shelf Request Policy","Pickup Locations","Personal delivery","Personal delivery fee","Resource Sharing Request Fee","Yearly resource sharing requests limit","Reloan Limit Length","Reloan Limit Period","Time frame loan renewal allowed Length (days) "]
["Faculty","Y","Y",0,"In Library","Y",7,"N","N","N","Y",10,"Days",5,"Days",null,null,null,null,null,1,null,null,null,null,null,null,null,null,null,null,null,null,25,null,null,null,null,null,null,"None","None",null,"Parallel"]
["Staff","Y","Y",0,"In Library","Y",5,"N","N","N","Y",10,"Days",5,"Days",null,null,null,null,null,1,null,null,null,null,null,null,null,null,null,null,null,null,25,null,null,null,null,null,null,"None","None"]
["Graduate Students","Y","Y",5,"In Library","Y",3,"N","N","N","Y",10,"Days",3,"Days",null,null,null,null,null,1,null,null,null,null,null,null,null,null,null,null,null,null,25,null,null,null,null,null,null,10,5]
["Undergraduate Students","N","N",5,"In Library","Y",1,"N","N","N","N",10,"Days",3,"Days",null,null,null,null,null,1,null,null,null,null,null,null,null,null,null,null,null,null,25,null,null,null,null,null,null,20,5]
["Community","N","N",5,"In Library","Y",1,"N","N","N","N",10,"Days",3,"Days",null,null,null,null,null,1,null,null,null,null,null,null,null,null,null,null,null,null,25,null,null,null,null,null,null,20,5]
["b","N","N",5,"In Library","Y",1,"N","N","N","N",10,"Days",3,"Days",null,null,null,null,null,1,null,null,null,null,null,null,null,null,null,null,null,null,25,null,null,null,null,null,null,20,5]
["d","N","N",5,"In Library","Y",1,"N","N","N","N",10,"Days",3,"Days",null,null,null,null,null,1,null,null,null,null,null,null,null,null,null,null,null,null,25,null,null,null,null,null,null,20,5]
["e","N","N",5,"In Library","Y",1,"N","N","N","N",10,"Days",3,"Days",null,null,null,null,null,1,null,null,null,null,null,null,null,null,null,null,null,null,25,null,null,null,null,null,null,20,5]
[]
["5. Incoming Requests From Other Institutions (Resource Sharing/ILL)"]
["RegularDueDate","RegularDueDate","MaximumRenewDate","MaximumRenewDate","RsRecallPeriod","RsRecallPeriod"]
["Loan Length","Loan Period","Maximum Renew Date Length","Maximum Renew Date","Resource Sharing\n Recall Length","Resource Sharing\n Recall Period"]
[20,"Week",10,"Week",0,"None"]

{"sheet":"Acquisitions","index":11,"n_rows":77,"n_cols":3,"rows_kept":77,"cut":false,"hidden":false,"merged":[[25,9,25,10],[32,0,32,2],[52,0,52,1],[71,0,71,1],[72,0,72,1],[0,0,0,1],[2,0,2,1],[3,0,3,1],[25,7,25,8]]}
["Acquisitions"]
[]
["Currencies that will be used in Alma"]
["In the first column, select currencies you will use in Alma.  Enter them in the order in which you want them to appear in dropdowns. For the default currency, enter \"True\" in the Default column."]
["Currency","Default?"]
["USD - US Dollar",true]
["EUR - Euro",false]
["GBP - Pound Sterling",false]
["AUD - Australian Dollar",false]
["NZD - New Zealand Dollar",false]
["CAD - Canadian Dollar",false]
["BMD - Bermudian Dollar (customarily known as Bermuda Dollar)",false]
[]
[]
[]
[]
[]
[]
[]
[]
[]
[]
[]
[]
[]
[]
[]
[]
[]
[]
[]
["\"Acquire For\" Relationships"]
["In the left column, select the code for each library in your Institution that can acquire materials for other libriaries (i.e. other than itself) in your institution. In the middle column, select the code of the other library for which it can acquire materials. Leave the right .column empty. Repeat for each pair of libraries with an 'acquire for' relationship.\n\nAlternatively, select the code of the ordering library in the left column, enter ALL in the middle column and select 'Y' in the right column. Then, in the next row(s), select the code of the ordering library in the left column, select the code of the exceptional library in the middle column and select 'N' in the right column.\n\nIf the ordering library can acquire materials for all libraries in the institution, select the code of the ordering library in the left column, and enter ALL in the middle column. Leave the right column empty.    \n\nIf each library acquires and receives forthemselves only then leave the Acquires For and the Served Libraries sections blank."]
["Code for Library with Ordering Unit","Code for Library for Which the Ordering Unit Can Place Orders","acquireFor"]
["MAIN","ALL","Y"]
["MAIN","SCI","N"]
["MAIN","LAW","N"]
[]
[]
[]
[]
[]
[]
[]
[]
[]
[]
[]
[]
[]
[]
["Served Libraries"]
["In the left column, select the code for each library in you institution that can receive material for other libraries (i.e. other than itself) in your institution. In the right column, select the code of the other library for which it can receive materials. If the receiving library can receive material for multiple libraries, enter each library pair in a separate row."]
["Code for Library with Ordering Unit","Served Libraries"]
["MAIN","MUS"]
["MAIN","GRAD"]
[]
[]
[]
[]
[]
[]
[]
[]
[]
[]
[]
[]
[]
[]
[]
["General Purchasing Behavior"]
["Indicate if you plan to use the following:"]
["Activity","Choose from dropdown"]
["PO Line Review Rules","Y"]
["Invoice Review Rules","N"]
["Invoice Approval Rules","Y"]

{"sheet":"Resource Management","index":12,"n_rows":36,"n_cols":3,"rows_kept":36,"cut":false,"hidden":false,"merged":[[31,40,31,41],[31,42,31,43],[31,44,31,45],[31,46,31,47],[31,48,31,49],[3,0,3,2],[23,0,23,1],[9,0,9,1],[10,0,10,1],[31,30,31,31],[31,32,31,33],[31,34,31,35],[31,36,31,37],[31,38,31,39],[31,20,31,21],[31,22,31,23],[31,24,31,25],[31,26,31,27],[31,28,31,29],[31,10,31,11],[31,12,31,13],[31,14,31,15],[31,16,31,17],[31,18,31,19],[31,0,31,1],[31,2,31,3],[31,4,31,5],[31,6,31,7],[31,8,31,9],[31,104,31,105],[31,106,31,107],[31,108,31,109],[31,90,31,91],[31,92,31,93],[31,94,31,95],[31,96,31,97],[31,98,31,99],[31,80,31,81],[31,82,31,83],[31,84,31,85],[31,86,31,87],[31,88,31,89],[31,70,31,71],[31,72,31,73],[31,74,31,75],[31,76,31,77],[31,78,31,79],[31,60,31,61],[31,62,31,63],[31,64,31,65],[31,66,31,67],[31,68,31,69],[31,50,31,51],[31,52,31,53],[31,54,31,55],[31,56,31,57],[31,58,31,59],[31,140,31,141],[31,142,31,143],[31,144,31,145],[31,146,31,147],[31,148,31,149],[31,130,31,131],[31,132,31,133],[31,134,31,135],[31,136,31,137],[31,138,31,139],[31,120,31,121],[31,122,31,123],[31,124,31,125],[31,126,31,127],[31,128,31,129],[31,110,31,111],[31,112,31,113],[31,114,31,115],[31,116,31,117],[31,118,31,119],[31,100,31,101],[31,102,31,103],[31,180,31,181],[31,182,31,183],[31,184,31,185],[31,186,31,187],[31,188,31,189],[31,170,31,171],[31,172,31,173],[31,174,31,175],[31,176,31,177],[31,178,31,179],[31,160,31,161],[31,162,31,163],[31,164,31,165],[31,166,31,167],[31,168,31,169],[31,150,31,151],[31,152,31,153],[31,154,31,155],[31,156,31,157],[31,158,31,159],[31,220,31,221],[31,222,31,223],[31,224,31,225],[31,226,31,227],[31,228,31,229],[31,210,31,211],[31,212,31,213],[31,214,31,215],[31,216,31,217],[31,218,31,219],[31,200,31,201],[31,202,31,203],[31,204,31,205],[31,206,31,207],[31,208,31,209],[31,190,31,191],[31,192,31,193],[31,194,31,195],[31,196,31,197],[31,198,31,199],[31,260,31,261],[31,262,31,263],[31,264,31,265],[31,266,31,267],[31,268,31,269],[31,250,31,251],[31,252,31,253],[31,254,31,255],[31,256,31,257],[31,258,31,259],[31,240,31,241],[31,242,31,243],[31,244,31,245],[31,246,31,247],[31,248,31,249],[31,230,31,231],[31,232,31,233],[31,234,31,235],[31,236,31,237],[31,238,31,239],[31,300,31,301],[31,302,31,303],[31,304,31,305],[31,306,31,307],[31,308,31,309],[31,290,31,291],[31,292,31,293],[31,294,31,295],[31,296,31,297],[31,298,31,299],[31,280,31,281],[31,282,31,283],[31,284,31,285],[31,286,31,287],[31,288,31,289],[31,270,31,271],[31,272,31,273],[31,274,31,275],[31,276,31,277],[31,278,31,279],[31,340,31,341],[31,342,31,343],[31,344,31,345],[31,346,31,347],[31,348,31,349],[31,330,31,331],[31,332,31,333],[31,334,31,335],[31,336,31,337],[31,338,31,339],[31,320,31,321],[31,322,31,323],[31,324,31,325],[31,326,31,327],[31,328,31,329],[31,310,31,311],[31,312,31,313],[31,314,31,315],[31,316,31,317],[31,318,31,319],[31,380,31,381],[31,382,31,383],[31,384,31,385],[31,386,31,387],[31,388,31,389],[31,370,31,371],[31,372,31,373],[31,374,31,375],[31,376,31,377],[31,378,31,379],[31,360,31,361],[31,362,31,363],[31,364,31,365],[31,366,31,367],[31,368,31,369],[31,350,31,351],[31,352,31,353],[31,354,31,355],[31,356,31,357],[31,358,31,359],[31,420,31,421],[31,422,31,423],[31,424,31,425],[31,426,31,427],[31,428,31,429],[31,410,31,411],[31,412,31,413],[31,414,31,415],[31,416,31,417],[31,418,31,419],[31,400,31,401],[31,402,31,403],[31,404,31,405],[31,406,31,407],[31,408,31,409],[31,390,31,391],[31,392,31,393],[31,394,31,395],[31,396,31,397],[31,398,31,399],[31,460,31,461],[31,462,31,463],[31,464,31,465],[31,466,31,467],[31,468,31,469],[31,450,31,451],[31,452,31,453],[31,454,31,455],[31,456,31,457],[31,458,31,459],[31,440,31,441],[31,442,31,443],[31,444,31,445],[31,446,31,447],[31,448,31,449],[31,430,31,431],[31,432,31,433],[31,434,31,435],[31,436,31,437],[31,438,31,439],[31,500,31,501],[31,502,31,503],[31,504,31,505],[31,506,31,507],[31,508,31,509],[31,490,31,491],[31,492,31,493],[31,494,31,495],[31,496,31,497],[31,498,31,499],[31,480,31,481],[31,482,31,483],[31,484,31,485],[31,486,31,487],[31,488,31,489],[31,470,31,471],[31,472,31,473],[31,474,31,475],[31,476,31,477],[31,478,31,479],[31,540,31,541],[31,542,31,543],[31,544,31,545],[31,546,31,547],[31,548,31,549],[31,530,31,531],[31,532,31,533],[31,534,31,535],[31,536,31,537],[31,538,31,539],[31,520,31,521],[31,522,31,523],[31,524,31,525],[31,526,31,527],[31,528,31,529],[31,510,31,511],[31,512,31,513],[31,514,31,515],[31,516,31,517],[31,518,31,519],[31,580,31,581],[31,582,31,583],[31,584,31,585],[31,586,31,587],[31,588,31,589],[31,570,31,571],[31,572,31,573],[31,574,31,575],[31,576,31,577],[31,578,31,579],[31,560,31,561],[31,562,31,563],[31,564,31,565],[31,566,31,567],[31,568,31,569],[31,550,31,551],[31,552,31,553],[31,554,31,555],[31,556,31,557],[31,558,31,559],[31,620,31,621],[31,622,31,623],[31,624,31,625],[31,626,31,627],[31,628,31,629],[31,610,31,611],[31,612,31,613],[31,614,31,615],[31,616,31,617],[31,618,31,619],[31,600,31,601],[31,602,31,603],[31,604,31,605],[31,606,31,607],[31,608,31,609],[31,590,31,591],[31,592,31,593],[31,594,31,595],[31,596,31,597],[31,598,31,599],[31,660,31,661],[31,662,31,663],[31,664,31,665],[31,666,31,667],[31,668,31,669],[31,650,31,651],[31,652,31,653],[31,654,31,655],[31,656,31,657],[31,658,31,659],[31,640,31,641],[31,642,31,643],[31,644,31,645],[31,646,31,647],[31,648,31,649],[31,630,31,631],[31,632,31,633],[31,634,31,635],[31,636,31,637],[31,638,31,639],[31,700,31,701],[31,702,31,703],[31,704,31,705],[31,706,31,707],[31,708,31,709],[31,690,31,691],[31,692,31,693],[31,694,31,695],[31,696,31,697],[31,698,31,699],[31,680,31,681],[31,682,31,683],[31,684,31,685],[31,686,31,687],[31,688,31,689],[31,670,31,671],[31,672,31,673],[31,674,31,675],[31,676,31,677],[31,678,31,679],[31,740,31,741],[31,742,31,743],[31,744,31,745],[31,746,31,747],[31,748,31,749],[31,730,31,731],[31,732,31,733],[31,734,31,735],[31,736,31,737],[31,738,31,739],[31,720,31,721],[31,722,31,723],[31,724,31,725],[31,726,31,727],[31,728,31,729],[31,710,31,711],[31,712,31,713],[31,714,31,715],[31,716,31,717],[31,718,31,719],[31,780,31,781],[31,782,31,783],[31,784,31,785],[31,786,31,787],[31,788,31,789],[31,770,31,771],[31,772,31,773],[31,774,31,775],[31,776,31,777],[31,778,31,779],[31,760,31,761],[31,762,31,763],[31,764,31,765],[31,766,31,767],[31,768,31,769],[31,750,31,751],[31,752,31,753],[31,754,31,755],[31,756,31,757],[31,758,31,759],[31,820,31,821],[31,822,31,823],[31,824,31,825],[31,826,31,827],[31,828,31,829],[31,810,31,811],[31,812,31,813],[31,814,31,815],[31,816,31,817],[31,818,31,819],[31,800,31,801],[31,802,31,803],[31,804,31,805],[31,806,31,807],[31,808,31,809],[31,790,31,791],[31,792,31,793],[31,794,31,795],[31,796,31,797],[31,798,31,799],[31,860,31,861],[31,862,31,863],[31,864,31,865],[31,866,31,867],[31,868,31,869],[31,850,31,851],[31,852,31,853],[31,854,31,855],[31,856,31,857],[31,858,31,859],[31,840,31,841],[31,842,31,843],[31,844,31,845],[31,846,31,847],[31,848,31,849],[31,830,31,831],[31,832,31,833],[31,834,31,835],[31,836,31,837],[31,838,31,839],[31,900,31,901],[31,902,31,903],[31,904,31,905],[31,906,31,907],[31,908,31,909],[31,890,31,891],[31,892,31,893],[31,894,31,895],[31,896,31,897],[31,898,31,899],[31,880,31,881],[31,882,31,883],[31,884,31,885],[31,886,31,887],[31,888,31,889],[31,870,31,871],[31,872,31,873],[31,874,31,875],[31,876,31,877],[31,878,31,879],[31,940,31,941],[31,942,31,943],[31,944,31,945],[31,946,31,947],[31,948,31,949],[31,930,31,931],[31,932,31,933],[31,934,31,935],[31,936,31,937],[31,938,31,939],[31,920,31,921],[31,922,31,923],[31,924,31,925],[31,926,31,927],[31,928,31,929],[31,910,31,911],[31,912,31,913],[31,914,31,915],[31,916,31,917],[31,918,31,919],[31,980,31,981],[31,982,31,983],[31,984,31,985],[31,986,31,987],[31,988,31,989],[31,970,31,971],[31,972,31,973],[31,974,31,975],[31,976,31,977],[31,978,31,979],[31,960,31,961],[31,962,31,963],[31,964,31,965],[31,966,31,967],[31,968,31,969],[31,950,31,951],[31,952,31,953],[31,954,31,955],[31,956,31,957],[31,958,31,959],[31,1020,31,1021],[31,1022,31,1023],[31,1024,31,1025],[31,1026,31,1027],[31,1028,31,1029],[31,1010,31,1011],[31,1012,31,1013],[31,1014,31,1015],[31,1016,31,1017],[31,1018,31,1019],[31,1000,31,1001],[31,1002,31,1003],[31,1004,31,1005],[31,1006,31,1007],[31,1008,31,1009],[31,990,31,991],[31,992,31,993],[31,994,31,995],[31,996,31,997],[31,998,31,999],[31,1060,31,1061],[31,1062,31,1063],[31,1064,31,1065],[31,1066,31,1067],[31,1068,31,1069],[31,1050,31,1051],[31,1052,31,1053],[31,1054,31,1055],[31,1056,31,1057],[31,1058,31,1059],[31,1040,31,1041],[31,1042,31,1043],[31,1044,31,1045],[31,1046,31,1047],[31,1048,31,1049],[31,1030,31,1031],[31,1032,31,1033],[31,1034,31,1035],[31,1036,31,1037],[31,1038,31,1039],[31,1100,31,1101],[31,1102,31,1103],[31,1104,31,1105],[31,1106,31,1107],[31,1108,31,1109],[31,1090,31,1091],[31,1092,31,1093],[31,1094,31,1095],[31,1096,31,1097],[31,1098,31,1099],[31,1080,31,1081],[31,1082,31,1083],[31,1084,31,1085],[31,1086,31,1087],[31,1088,31,1089],[31,1070,31,1071],[31,1072,31,1073],[31,1074,31,1075],[31,1076,31,1077],[31,1078,31,1079],[31,1140,31,1141],[31,1142,31,1143],[31,1144,31,1145],[31,1146,31,1147],[31,1148,31,1149],[31,1130,31,1131],[31,1132,31,1133],[31,1134,31,1135],[31,1136,31,1137],[31,1138,31,1139],[31,1120,31,1121],[31,1122,31,1123],[31,1124,31,1125],[31,1126,31,1127],[31,1128,31,1129],[31,1110,31,1111],[31,1112,31,1113],[31,1114,31,1115],[31,1116,31,1117],[31,1118,31,1119],[31,1180,31,1181],[31,1182,31,1183],[31,1184,31,1185],[31,1186,31,1187],[31,1188,31,1189],[31,1170,31,1171],[31,1172,31,1173],[31,1174,31,1175],[31,1176,31,1177],[31,1178,31,1179],[31,1160,31,1161],[31,1162,31,1163],[31,1164,31,1165],[31,1166,31,1167],[31,1168,31,1169],[31,1150,31,1151],[31,1152,31,1153],[31,1154,31,1155],[31,1156,31,1157],[31,1158,31,1159],[31,1220,31,1221],[31,1222,31,1223],[31,1224,31,1225],[31,1226,31,1227],[31,1228,31,1229],[31,1210,31,1211],[31,1212,31,1213],[31,1214,31,1215],[31,1216,31,1217],[31,1218,31,1219],[31,1200,31,1201],[31,1202,31,1203],[31,1204,31,1205],[31,1206,31,1207],[31,1208,31,1209],[31,1190,31,1191],[31,1192,31,1193],[31,1194,31,1195],[31,1196,31,1197],[31,1198,31,1199],[31,1260,31,1261],[31,1262,31,1263],[31,1264,31,1265],[31,1266,31,1267],[31,1268,31,1269],[31,1250,31,1251],[31,1252,31,1253],[31,1254,31,1255],[31,1256,31,1257],[31,1258,31,1259],[31,1240,31,1241],[31,1242,31,1243],[31,1244,31,1245],[31,1246,31,1247],[31,1248,31,1249],[31,1230,31,1231],[31,1232,31,1233],[31,1234,31,1235],[31,1236,31,1237],[31,1238,31,1239],[31,1300,31,1301],[31,1302,31,1303],[31,1304,31,1305],[31,1306,31,1307],[31,1308,31,1309],[31,1290,31,1291],[31,1292,31,1293],[31,1294,31,1295],[31,1296,31,1297],[31,1298,31,1299],[31,1280,31,1281],[31,1282,31,1283],[31,1284,31,1285],[31,1286,31,1287],[31,1288,31,1289],[31,1270,31,1271],[31,1272,31,1273],[31,1274,31,1275],[31,1276,31,1277],[31,1278,31,1279],[31,1340,31,1341],[31,1342,31,1343],[31,1344,31,1345],[31,1346,31,1347],[31,1348,31,1349],[31,1330,31,1331],[31,1332,31,1333],[31,1334,31,1335],[31,1336,31,1337],[31,1338,31,1339],[31,1320,31,1321],[31,1322,31,1323],[31,1324,31,1325],[31,1326,31,1327],[31,1328,31,1329],[31,1310,31,1311],[31,1312,31,1313],[31,1314,31,1315],[31,1316,31,1317],[31,1318,31,1319],[31,1380,31,1381],[31,1382,31,1383],[31,1384,31,1385],[31,1386,31,1387],[31,1388,31,1389],[31,1370,31,1371],[31,1372,31,1373],[31,1374,31,1375],[31,1376,31,1377],[31,1378,31,1379],[31,1360,31,1361],[31,1362,31,1363],[31,1364,31,1365],[31,1366,31,1367],[31,1368,31,1369],[31,1350,31,1351],[31,1352,31,1353],[31,1354,31,1355],[31,1356,31,1357],[31,1358,31,1359],[31,1420,31,1421],[31,1422,31,1423],[31,1424,31,1425],[31,1426,31,1427],[31,1428,31,1429],[31,1410,31,1411],[31,1412,31,1413],[31,1414,31,1415],[31,1416,31,1417],[31,1418,31,1419],[31,1400,31,1401],[31,1402,31,1403],[31,1404,31,1405],[31,1406,31,1407],[31,1408,31,1409],[31,1390,31,1391],[31,1392,31,1393],[31,1394,31,1395],[31,1396,31,1397],[31,1398,31,1399],[31,1460,31,1461],[31,1462,31,1463],[31,1464,31,1465],[31,1466,31,1467],[31,1468,31,1469],[31,1450,31,1451],[31,1452,31,1453],[31,1454,31,1455],[31,1456,31,1457],[31,1458,31,1459],[31,1440,31,1441],[31,1442,31,1443],[31,1444,31,1445],[31,1446,31,1447],[31,1448,31,1449],[31,1430,31,1431],[31,1432,31,1433],[31,1434,31,1435],[31,1436,31,1437],[31,1438,31,1439],[31,1500,31,1501],[31,1502,31,1503],[31,1504,31,1505],[31,1506,31,1507],[31,1508,31,1509],[31,1490,31,1491],[31,1492,31,1493],[31,1494,31,1495],[31,1496,31,1497],[31,1498,31,1499],[31,1480,31,1481],[31,1482,31,1483],[31,1484,31,1485],[31,1486,31,1487],[31,1488,31,1489],[31,1470,31,1471],[31,1472,31,1473],[31,1474,31,1475],[31,1476,31,1477],[31,1478,31,1479],[31,1540,31,1541],[31,1542,31,1543],[31,1544,31,1545],[31,1546,31,1547],[31,1548,31,1549],[31,1530,31,1531],[31,1532,31,1533],[31,1534,31,1535],[31,1536,31,1537],[31,1538,31,1539],[31,1520,31,1521],[31,1522,31,1523],[31,1524,31,1525],[31,1526,31,1527],[31,1528,31,1529],[31,1510,31,1511],[31,1512,31,1513],[31,1514,31,1515],[31,1516,31,1517],[31,1518,31,1519],[31,1580,31,1581],[31,1582,31,1583],[31,1584,31,1585],[31,1586,31,1587],[31,1588,31,1589],[31,1570,31,1571],[31,1572,31,1573],[31,1574,31,1575],[31,1576,31,1577],[31,1578,31,1579],[31,1560,31,1561],[31,1562,31,1563],[31,1564,31,1565],[31,1566,31,1567],[31,1568,31,1569],[31,1550,31,1551],[31,1552,31,1553],[31,1554,31,1555],[31,1556,31,1557],[31,1558,31,1559],[31,1620,31,1621],[31,1622,31,1623],[31,1624,31,1625],[31,1626,31,1627],[31,1628,31,1629],[31,1610,31,1611],[31,1612,31,1613],[31,1614,31,1615],[31,1616,31,1617],[31,1618,31,1619],[31,1600,31,1601],[31,1602,31,1603],[31,1604,31,1605],[31,1606,31,1607],[31,1608,31,1609],[31,1590,31,1591],[31,1592,31,1593],[31,1594,31,1595],[31,1596,31,1597],[31,1598,31,1599],[31,1660,31,1661],[31,1662,31,1663],[31,1664,31,1665],[31,1666,31,1667],[31,1668,31,1669],[31,1650,31,1651],[31,1652,31,1653],[31,1654,31,1655],[31,1656,31,1657],[31,1658,31,1659],[31,1640,31,1641],[31,1642,31,1643],[31,1644,31,1645],[31,1646,31,1647],[31,1648,31,1649],[31,1630,31,1631],[31,1632,31,1633],[31,1634,31,1635],[31,1636,31,1637],[31,1638,31,1639],[31,1700,31,1701],[31,1702,31,1703],[31,1704,31,1705],[31,1706,31,1707],[31,1708,31,1709],[31,1690,31,1691],[31,1692,31,1693],[31,1694,31,1695],[31,1696,31,1697],[31,1698,31,1699],[31,1680,31,1681],[31,1682,31,1683],[31,1684,31,1685],[31,1686,31,1687],[31,1688,31,1689],[31,1670,31,1671],[31,1672,31,1673],[31,1674,31,1675],[31,1676,31,1677],[31,1678,31,1679],[31,1740,31,1741],[31,1742,31,1743],[31,1744,31,1745],[31,1746,31,1747],[31,1748,31,1749],[31,1730,31,1731],[31,1732,31,1733],[31,1734,31,1735],[31,1736,31,1737],[31,1738,31,1739],[31,1720,31,1721],[31,1722,31,1723],[31,1724,31,1725],[31,1726,31,1727],[31,1728,31,1729],[31,1710,31,1711],[31,1712,31,1713],[31,1714,31,1715],[31,1716,31,1717],[31,1718,31,1719],[31,1780,31,1781],[31,1782,31,1783],[31,1784,31,1785],[31,1786,31,1787],[31,1788,31,1789],[31,1770,31,1771],[31,1772,31,1773],[31,1774,31,1775],[31,1776,31,1777],[31,1778,31,1779],[31,1760,31,1761],[31,1762,31,1763],[31,1764,31,1765],[31,1766,31,1767],[31,1768,31,1769],[31,1750,31,1751],[31,1752,31,1753],[31,1754,31,1755],[31,1756,31,1757],[31,1758,31,1759],[31,1820,31,1821],[31,1822,31,1823],[31,1824,31,1825],[31,1826,31,1827],[31,1828,31,1829],[31,1810,31,1811],[31,1812,31,1813],[31,1814,31,1815],[31,1816,31,1817],[31,1818,31,1819],[31,1800,31,1801],[31,1802,31,1803],[31,1804,31,1805],[31,1806,31,1807],[31,1808,31,1809],[31,1790,31,1791],[31,1792,31,1793],[31,1794,31,1795],[31,1796,31,1797],[31,1798,31,1799],[31,1860,31,1861],[31,1862,31,1863],[31,1864,31,1865],[31,1866,31,1867],[31,1868,31,1869],[31,1850,31,1851],[31,1852,31,1853],[31,1854,31,1855],[31,1856,31,1857],[31,1858,31,1859],[31,1840,31,1841],[31,1842,31,1843],[31,1844,31,1845],[31,1846,31,1847],[31,1848,31,1849],[31,1830,31,1831],[31,1832,31,1833],[31,1834,31,1835],[31,1836,31,1837],[31,1838,31,1839],[31,1900,31,1901],[31,1902,31,1903],[31,1904,31,1905],[31,1906,31,1907],[31,1908,31,1909],[31,1890,31,1891],[31,1892,31,1893],[31,1894,31,1895],[31,1896,31,1897],[31,1898,31,1899],[31,1880,31,1881],[31,1882,31,1883],[31,1884,31,1885],[31,1886,31,1887],[31,1888,31,1889],[31,1870,31,1871],[31,1872,31,1873],[31,1874,31,1875],[31,1876,31,1877],[31,1878,31,1879],[31,1940,31,1941],[31,1942,31,1943],[31,1944,31,1945],[31,1946,31,1947],[31,1948,31,1949],[31,1930,31,1931],[31,1932,31,1933],[31,1934,31,1935],[31,1936,31,1937],[31,1938,31,1939],[31,1920,31,1921],[31,1922,31,1923],[31,1924,31,1925],[31,1926,31,1927],[31,1928,31,1929],[31,1910,31,1911],[31,1912,31,1913],[31,1914,31,1915],[31,1916,31,1917],[31,1918,31,1919],[31,1980,31,1981],[31,1982,31,1983],[31,1984,31,1985],[31,1986,31,1987],[31,1988,31,1989],[31,1970,31,1971],[31,1972,31,1973],[31,1974,31,1975],[31,1976,31,1977],[31,1978,31,1979],[31,1960,31,1961],[31,1962,31,1963],[31,1964,31,1965],[31,1966,31,1967],[31,1968,31,1969],[31,1950,31,1951],[31,1952,31,1953],[31,1954,31,1955],[31,1956,31,1957],[31,1958,31,1959],[31,2020,31,2021]],"merged_total":8196,"flags":["merged_cut"]}
["Resource Management"]
[]
[]
["Barcode Generation"]
[]
["Generation Routine","Prefix","Sequence Start"]
["Prefix+Sequence","alma",10001]
[]
[]
["Any Local 9XX fields used that should be indexed."]
["List any 9XX fields that you use that should be indexed, and the name of the index. You may insert additional rows as necessary."]
[]
["9XX Field Tag","Index Name"]
[903,"Digitized Version"]
[940,"Local Collection"]
[980,"Vendor EOD"]
[999,"Course Restricted"]
[]
[]
[]
[]
[]
["Call Number Parsing"]
["Define how call number labels will be parsed. See the online help for a description of the parsing routines."]
[]
["Call Number Type","Parsing Routine"]
["0 - Library of Congress classification","Parse Routine 6"]
["1 - Dewey Decimal classification","Parse Routine 2"]
["3 - Superintendent of Documents classification","Parse Routine 10"]
[]
["Active Metadata Registry"]
["Indicate the registries you use for your MARC bibliographic records and select the one preferred."]
["Registry Name","Activated","Preferred"]
["MARC21 Bibliographic","Y","Y"]
["UNIMARC Bibliographic","N","N"]
["KORMARC Bibliographic","N","N"]

{"sheet":"General","index":13,"n_rows":64,"n_cols":6,"rows_kept":64,"cut":false,"hidden":false,"merged":[[2,3,2,4]]}
[null,null,null,"General"]
[]
[null,null,null,"If your institution uses values different than the defaults provided below, update these as necessary. Note that in some cases, only specific values are valid."]
[]
["Table Name","parameter target_code/code","value source_code","General"]
[null,null,null,"Parameter","Value","Notes"]
["CustomerParameters","target_code","source_code_2","force_location_selection_on_login",false,"Should \"choose your current desk/department\" popup on each login for users with roles at more than one desk/department?"]
["PrimoWidgetConfiguration","code","description"]
[]
["CustomerParameters","target_code","source_code_2","retrieve_services_from_NZ",false,"Display e-resources from the Network Zone available for your institution (for consortium members)."]
["CustomerParameters","target_code","source_code_2","time_zone","US/Central","Choose one of the formats"]
[]
[null,null,null,"Acquisitions"]
["CustomerParameters","target_code","source_code_2","acquisition_accrual_mode",true,"Set this parameter to True, if you need to distribute expenditures in invoice lines for more than one fiscal period. Alma will automatically calculate the relative amount for each active fiscal period (applied to continuous orders only)."]
["CustomerParameters","target_code","source_code_2","assertion_over_po_line_price",10000,"If the price in a PO line is larger than this value in the default currency, the REVIEW_RULES parameter is set to Y in the Purchasing Configuration Workflow mapping table, and a Purchasing Review Rule that uses the price assertion is enabled, a PO line created from an EOD record will be sent to review."]
["ReceivingDepartmentValidations","target_code","source_code_2","Barcode",true,"Check if item has a barcode"]
["ReceivingDepartmentValidations","target_code","source_code_2","Brief",true,"Check if Bibliographic record is brief"]
["CustomerParameters","target_code","source_code_2","invoice_allow_vat_in_line_level",false,"If you need the ability to enter a VAT on the invoice line, select True."]
["CustomerParameters","target_code","source_code_2","invoice_high_total_price",2500,"To be used within the invoice review rules and/or the invoice approval rules. If the price in an invoice is larger than this value in the default currency it can be sent to review or approval."]
["CustomerParameters","target_code","source_code_2","invoice_not_unique",false,"Allow non-unique/duplicate invoice numbers from a given vendor."]
["CustomerParameters","target_code","source_code_2","invoice_skip_erp",false,"If you do not export invoices to your ERP for payment, select TRUE."]
[null,null,null,"invoice_use_pro_rata",false,"Set this parameter to TRUE if you permanently create invoices with pro rata amount"]
["CustomerParameters","target_code","source_code_2","po_line_prefix","POL-","Prefix to sequential PO Line number.  Default is POL-"]
["CustomerParameters","target_code","source_code_2","po_prefix","PO-","Prefix to sequential PO number.  Default is PO-"]
["CustomerParameters","target_code","source_code_2","release_remaining_encumbrance_for_edi",true,"Release remaining encumbrances (EDI)"]
[]
[null,null,null,"Resource Management"]
["CustomerParameters","target_code","source_code_2","authority_usage_policy","Global","Do you prefer to use Global or Local authorities?"]
["CustomerParameters","target_code","source_code_2","brief_level",3,"Select a required brief level. Selecting a particular brief level means that all records with the same or lower brief level will be considered as “brief”. "]
["CustomerParameters","target_code","source_code_2","authority_names","LCNAMES","Select one of the authority names vocabularies, which allow you to manage global authorities within Alma."]
["CustomerParameters","target_code","source_code_2","authority_usage_policy","Global","Do you prefer to use Global or Local authorities?"]
["CustomerParameters","target_code","source_code_2","call_number_type",null,"Values are from MARC21 852, indicator 1.  Default is 0 (Library of Congress Classification). Please refer to the documentation for a complete list."]
["CustomerParameters","target_code","source_code_2","cataloging_level_available",false,"This parameter allows you to manage cataloger level hierarchy for better control of the privilege to edit bibliographic and authority records."]
["CustomerParameters","target_code","source_code_2","course_restricted_field","959$$a","For Voyager and Aleph customers, this field will be automatically populated via the configuration form populator tool. \nAll customers: Enter a field in the bibliographic MARC record that indicates whether a bibliographic record is restricted for use by a course. Note that it is possible in Alma to use defined subfield separators, such as dollar dollar $$ or double dagger ‡. The type that is defined as the subfield separator must also be stipulated in this field."]
["CustomerParameters","target_code","source_code_2","non_serial_match_profile","com.exlibris.repository.mms.match.CDLMatchingProfile","Default match profile; specific match profile can be set in import profile."]
["CustomerParameters","target_code","source_code_2","serial_match_profile","com.exlibris.repository.mms.match.CDLSeMatchingProfile","Default match profile; specific match profile can be set in import profile."]
["CustomerParameters","target_code","source_code_2","normalize_decomposed_characters",true,"This parameter controls how certain characters with accents are normalized when a record (bib or authority) is saved in Alma.  characters in a decompsed form will be normalized to the equivalent precomposed form. Default Is True"]
["CustomerParameters","target_code","source_code_2","subfield_separator","$$","Enter the character for use as the subfield delimiter. Default is $$"]
["CustomerParameters","target_code","source_code_2","system_date_format","MM/dd/yyyy","Select one of the date formats."]
["CustomerParameters","target_code","source_code_2","use_holdings_form",false,"If true, holdings records opened in the Metadata Editor will be edited in a form. If false, they will be edited in the standard MARC field editor."]
["Enable_SRU_Target","target_code","source_code_2","Enable SRU Target Functionaility",false,"Alma gives institutions the ability to be an SRU target for other institutions.Select 'True' in order to become an SRU target"]
["CustomerParameters","target_code","source_code_2","working_copy_lock_timeout",1,"After the time specified a user can unlock a bibliographic record currently locked by another user. Enter a whole number up to 9999 (not including 0). Unit of measurement is hours."]
[]
[null,null,null,"Fulfillment"]
["CustomerParameters","target_code","source_code_2","auto_renew_loan_days",2,"Define how many days before due date a Courtesy Notice should be sent."]
["CustomerParameters","target_code","source_code_2","enable_request_during_loan_for_different_policy",false,"When user has an active loan, enable him/her to request another copy of the resource with a different due date policy."]
["CustomerParameters","target_code","source_code_2","generate_resource_sharing_temp_barcode",false,"If true, the external request ID, prefixed by RS-, will be used as the temporary barcode for the borrowed item."]
["CustomerParameters","target_code","source_code_2","overdue_at_claim_return_loan",false,"Create overdue charges when item is claimed to have been returned."]
["CustomerParameters","target_code","source_code_2","overdue_at_lost_loan",true,"Create overdue charges when item is declared as lost"]
["CustomerParameters","target_code","source_code_2","remember_last_loan_display",false,"Determine if the loan workbench should open according to the last operator choice (this session/all mode) or always on this session."]
["CustomerParameters","target_code","source_code_2","results_best_location_enable",true,"If true, the holdings locations in the discovery system search results will be displayed according to proximity of available items to the end user."]
["CustomerParameters","target_code","source_code_2","return_lost_loan_from_self_check",true,"Set this parameter to \"FALSE\", if you would not allow returning lost items via self-check machines."]
["CustomerParameters","target_code","source_code_2","rs_allow_actions_on_scan_in",false,"If you select \"False\" an overridable error message will be displayed when a borrowing or lending request is scanned in from the Scan In Interface at a desk of a resource sharing library or when a loan is executed from the Patron Services workbench but the item has not yet been received."]
["CustomerParameters","target_code","source_code_2","shortened_due_date_notifications","EMAIL","Defines whether and in which of the available ways the notification will be sent to user if the item due date is shortened."]
["CustomerParameters","target_code","source_code_2","should_anonymize_borrowing_request",false,"Select 'True' to remove patron identification information from closed (completed, rejected or cancelled) resource sharing borrowing requests."]
["CustomerParameters","target_code","source_code_2","should_anonymize_item_loan",false,"Select 'False' to maintain patron loan history. Select 'True' to remove patron identification information from closed loans."]
["CustomerParameters","target_code","source_code_2","should_anonymize_fines_fees",{"$f":"should_anonymize_item_loan","v":false},"Select 'False' to maintain patron fines and fees history. Select 'True' to remove patron identification information from closed loans and related fines and fees. Should be identical to the should_anonymize_item_loan parameter value."]
["CustomerParameters","target_code","source_code_2","record_last_patron_activity_date_DO_NOT_TOUCH",true,"This action determines whether a \"last patron activity date\" is recorded for users, and updated upon future patron activities. To enable this option, select 'TRUE'"]
["CustomerParameters","target_code","source_code_2","view_historical_loans_in_primo",false,"Select 'True' to allow a patron to see their historical loans in Primo My Account. Loans will only be seen until anonymization occurs."]
["CustomerParameters","target_code","source_code_2","limit_fulfillment_data_by_library_scope","NONE","Select  'FULL', for Library independence so staff users' access to patrons' fulfillment activity will require a relevant user/fulfillment role at the owning library (or the institution). When set to 'PARTIAL', active loans will be visible with a role at either the owning library, the managing library or the institution (rest behaves as FULL). Otherwise keep as ‘NONE’ to not use this feature."]
[]
[null,null,null,"Analytics"]
["ANALYTICS_PROFILE_DEF","target_code","source_code_2","Benchmark Analytics",true,"Benchmark Analytics allows you to create analytics reports comparing the performance of your institution to similar institutions. To do this, Alma collects the anonymized data from your institution. To enable Benchmark analytics you must select True to the Benchmark Analytics question."]
["CustomerParameters","target_code","source_code_2","enable_usage_tracking",true,"When set to true, Alma collects usage of Alma Analytics in the institution. This is then reflected in the Analytics Usage Tracking subject area. "]

{"sheet":"Emails","index":14,"n_rows":1,"n_cols":3,"rows_kept":1,"cut":false,"hidden":true,"merged":[]}
["Enabled","Target Code Text [Email / Email Domain]","Source1 Text [Include list description]"]

{"sheet":"Primo VE - Configuration","index":15,"n_rows":109,"n_cols":11,"rows_kept":109,"cut":false,"hidden":false,"merged":[[102,1,102,3],[29,1,29,3],[35,1,35,3],[43,1,43,3],[79,1,79,3],[96,1,96,3]]}
[null,"If you are Primo VE customer (not other delivery system such as Primo or Summon) , fill in this tab"]
[null,"Home Page - Customization ","Response"]
[null,"If you would like to add a logo, send Implementation team the logo "]
[null,"Side bar position (facets)","On the left"]
[]
[null,"Basic and Advanced Search","Response","Value (if required)"]
[null,"Search Box","We would like to have one Slot (searching everything)"]
[null,"Restricted Search for Course Reserves","We don't need Restricted Search for Course Reserves"]
[]
[null,"Ebsco Search - Credentials"]
[null,"User Name","Password","Databases"]
[null,"sXXXXXXX.main.eitws","ebs7XXX","a9h,aqh,apn\n \n"]
[]
[null,"WorldCat Search - Credentials"]
[null,"WorldCat API Key  "]
[null,"abCdeFgHijkLMnoD"]
[]
[null,"Search Results - Facets","Response"]
[null,"Configuration Option","Response","Value (if required)","Order (1-9, 1 is the first, 9 is the last)"]
["facets.facet.facet_topic","Search Results - Facets - Subject","Rename facet","Topic",1]
["facets.facet.facet_creator","Search Results - Facets - Author/Creator","Keep facet as is",null,2]
["facets.facet.facet_location_code","Search Results - Facets - Location","Keep facet as is",null,3]
["facets.facet.facet_library","Search Results - Facets - Library","Keep facet as is",null,4]
["facets.facet.facet_rtype","Search Results - Facets - Resource Type","Keep facet as is",null,5]
["facets.facet.facet_domain","Search Results - Facets - Collections","Keep facet as is",null,6]
["facets.facet.facet_creationdate","Search Results - Facets - Creation Date","Hide facet",null,7]
["facets.facet.facet_jtitle","Search Results - Facets - Journal Title","Keep facet as is",null,8]
["facets.facet.facet_lang","Search Results - Facets - Language","Keep facet as is",null,9]
[]
[null,"Full Record View – Labels Section"]
[null,"View Online","Response","Value (if required)"]
["nui.getit.service_viewit","Full Record View - Section Labels - View Online","Rename section ","Online Access"]
["nui.getit.service_getit","Full Record View - Section Labels - Get It","Keep section name as is"]
["brief.results.tabs.details","Full Record View - Section Labels - Details","Keep section name as is"]
[]
[null,"Full Record View - Details Section - Additional Fields"]
[null,"Field Numbers","Field Name","Order (1-5, 1 is the first, 5 is the last)"]
[null,"901-905","Local Note",1]
[null,"500-512","Donated By",2]
[null,"906,904","Faculty Reference",3]
[]
[]
[]
[null,"Main Menu Links "]
[null,"Link","Enabled","Order"]
["LibrarySearch","Library Search","Yes",1]
["JournalSearch","Journal Search","Yes",2]
["tags","Tags","Yes"]
["BlankIll","ILL Request","Yes",3]
["citationlinker","Fetch Item","Yes"]
["BrowseSearch","Browse Search","Yes",4]
["DatabaseSearch","Database Search","Yes",5]
["CollectionDiscovery","Collection Discovery","Yes",6]
["NewspaperSearch","Newspapers","Yes"]
[]
[null,"Customized links"]
[null,"Label","URL","Tool Tip Description","Order"]
[null,"LibGuides","http://guides.lib.xxx.ac.za","LibGuides",1]
[]
[]
[]
[null,"Browse List Options "]
[null,"Description","Enabled","Vocabulary  (for Subject browse types only)"]
["author","Authors Browse List","Yes"]
["title","Titles Browse List","Yes"]
["series","Series Browse List","No"]
["callnumber.0","LC call number","No"]
["callnumber.1","Dewey call number","Yes"]
["callnumber.2","NLM call number","Yes"]
["callnumber.3","SUDOC call number","Yes"]
["callnumber.4","Shelving control number call number"]
["callnumber.UDC","UDC call number","Yes"]
["callnumber","Other call number","Yes"]
["subject.1","Subjects Browse List 1","Yes","U.S. National Library of Medicine, Medical Subject Headings 2013"]
["subject.2","Subjects Browse List 2","No","Library of Congress Subject Headings"]
["subject.3","Subjects Browse List 3",null,"REO"]
["subject.4","Subjects Browse List 4",null,"RAMEAU 21"]
["subject.5","Subjects Browse List 5",null,"Nuovo Soggettario"]
[]
[null,"Record Actions"]
[null,"Actions","Enabled ","Up-Front Action (Up to 3)","Order"]
["e-shelf","Add/Remove record to Favorites","Yes",null,1]
["E-mail","Send record via Email","Yes",null,2]
["Permalink","Create a Permalink for the record","Yes","Yes",4]
["Citation","Create a citation for the record","No",null,5]
["Print","Print the record","Yes","Yes",6]
["RefWorks","Push record to RefWorks","Yes",null,7]
["EndNote","Push record to EndNote","No",null,8]
["EasyBib","Push record to EasyBib","Yes","Yes",9]
["RISPushTo","Create RIS export","No",null,10]
["BibTeXPushTo","Push record to Bibtex","No",null,3]
["Mendeley","Push record to Mendeley","No",null,11]
["Excel","Push record to Excel","No",null,12]
["Leganto","Push record to Leganto","No",null,13]
["QR","QR","No",null,14]
[]
[null,"General Attrubites"]
[null,"Languages"]
[null,"Default Language","Additional Language 1","Additional Language 2","Additional Language 3","Additional Language 4"]
[null,"English","Spanish"]
[]
[]
[null,"Local Resource Types"]
[null,null,"Singular Label","Plural Label","RIS Type","Genre","Metadata Format","MARC field and subfield","Value in MARC Field","Dublin Core Tag ","Value in Dublin Core"]
[null,"Resource Type 1","Ebook","Ebooks","Case","Book","Book","999$a","EBOOK","dc.type","ebook"]
[null,"Resource Type 2","Kit","Kits","Generic","Unkown","Book","999$a","KIT","dc.type","kit"]
[null,"Resource Type 3"]
[null,"Resource Type 4"]
[null,"Resource Type 5"]

{"sheet":"Primo VE - Digital Repository","index":16,"n_rows":43,"n_cols":2,"rows_kept":43,"cut":false,"hidden":false,"merged":[]}
["If you are Primo VE customer (not other discovery system such as Primo or Summon) , fill in this tab"]
["Digital Repository","Response"]
["Are you planning on upgrading this repository before, during, or just after your Primo implementation?  \nIf so, indicate when the upgrade will happen."]
["What is the name of the repository?"]
["What format is the data in?"]
["Select your repository’s software system (i.e. CONTENTdm, DSpace, BePress, Fedora, etc)."]
["How many records does this repository contain?"]
["Provide the OAI URL of the repository."]
["Provide the URL of an item level record."]
["Provide login credentials for this repository. Enter N/A if not applicable.\nNote that you can also provide us with login credentials over the phone."]
[]
["Map your DC resource types to Primo resource types: \nSource from dc:type / dcterms:type  ||   Mapping to Primo Types \n \n \n \n"]
["From DC Resource Type (dc:type / dcterms:type)","To Primo Resource Type "]
[null,"Database"]
[null,"Audio"]
[null,"Newspaper"]
[null,"Manuscript"]
[null,"Conference Proceeding"]
[null,"Dissertation"]
[null,"Kit"]
[null,"Other"]
[null,"Archival Material"]
[null,"Realia"]
[null,"Book"]
[null,"Book Chapter"]
[null,"Collection"]
[null,"Legal Document"]
[null,"Patent"]
[null,"Reference Entry"]
[null,"Research Dataset"]
[null,"Review"]
[null,"Statistical Data Set"]
[null,"Technical Report"]
[null,"Journal"]
[null,"Newspaper Article"]
[null,"Article"]
[null,"Text Resource"]
[null,"Government Document"]
[null,"Image"]
[null,"Map"]
[null,"Video"]
[null,"Score"]
[null,"Website"]

{"sheet":"Data Validity Checks","index":17,"n_rows":12,"n_cols":7,"rows_kept":12,"cut":false,"hidden":false,"merged":[[0,0,1,7],[2,2,3,5],[3,6,3,7]]}
["Configuration Form Validation"]
[]
[]
[null,null,null,null,null,null," Click To Validate Form"]
[]
[]
[]
[]
[null,null,"Number of sheets with errors:",{"$f":"ROUND(SUMPRODUCT((C14:C230<>\"\")/COUNTIF(C14:C230,C14:C230&\"\")),2)& \" sheets with errors\"","v":"0 sheets with errors"}]
[null,null,"Number of fields with errors:",{"$f":"COUNTA(D14:D415)& \" errors\"","v":"0 errors"}]
[]
[null,null,"Sheet","Error Description","Go to Error Range:"]

{"sheet":"Booking","index":18,"n_rows":34,"n_cols":14,"rows_kept":34,"cut":false,"hidden":false,"merged":[[2,0,2,1],[31,0,31,1],[1,0,1,2]]}
[]
["Please enter your Booking policies below"]
["Booking Policy Default Values"]
[null,null,"IsBookable","BookingReleaseTime","BookingReleaseTime","MaxBookingLength","MaxBookingLength","PreviewPeriod","PreviewPeriod","PickupLocations","FutureLimit","FutureLimit","BackToBackBookingPolicy","BackToBackBookingPolicy"]
[null,null,"Is item bookable","Booking release time length","Booking release time period","Maximum allowed booking length","Maximum allowed booking period","Preview length","Preview period","Pickup Locations","Future limit length","Future limit period","Back to back booking length","Back to back booking period"]
[null,null,"N",20,"Minute",2,"Hours",15,"Minute","In Library",6,"Week",0,"Days"]
[]
["Booking Policies"]
["LocationType","PatronType","IsBookable","BookingReleaseTime","BookingReleaseTime","MaxBookingLength","MaxBookingLength","PreviewPeriod","PreviewPeriod","PickupLocations","FutureLimit","FutureLimit","BackToBackBookingPolicy","BackToBackBookingPolicy"]
["Location Type","Patron Type","Is item bookable","Booking release time length","Booking release time period","Maximum allowed booking length","Maximum allowed booking period","Preview length","Preview period","Pickup Locations","Future limit length","Future limit period","Back to back booking length","Back to back booking period"]
["General","Faculty",null,null,null,null,null,null,null,"In Institution"]
["General","Staff"]
["General","Graduate Students"]
["General","Undergraduate Students"]
["Limited","Faculty",null,null,null,null,null,null,null,"In Campus"]
["Limited","Staff"]
["Limited","Graduate Students"]
["Limited","Undergraduate Students","Y",30,null,1,"Week"]
["Short Loan/Reserve","Faculty","Y"]
["Short Loan/Reserve","Staff","Y"]
["Short Loan/Reserve","Graduate Students","Y",10]
["Short Loan/Reserve","Undergraduate Students","Y"]
["Media","Faculty"]
["Media","Staff"]
["Media","Graduate Students"]
["Media","Undergraduate Students"]
["Closed","Faculty"]
["Closed","Staff"]
["Closed","Graduate Students","Y",10,null,null,null,null,null,null,3,"Days",1,"Days"]
["Closed","Undergraduate Students"]
[]
["Item Policy Exceptions - Booking"]
["LocationType","OverridePolicy","IsBookable","BookingReleaseTime","BookingReleaseTime","MaxBookingLength","MaxBookingLength","PreviewPeriod","PreviewPeriod","PickupLocations","FutureLimit","FutureLimit","BackToBackBookingPolicy","BackToBackBookingPolicy"]
["Location Type","Item Exception Type","Is item bookable","Booking release time length","Booking release time period","Maximum allowed booking length","Maximum allowed booking period","Preview length","Preview period","Pickup Locations","Future limit length","Future limit period","Back to back booking length","Back to back booking period"]

{"sheet":"Additional ResShare Libraries","index":19,"n_rows":35,"n_cols":42,"rows_kept":35,"cut":false,"hidden":false,"merged":[[1,0,1,2],[32,0,32,2],[3,0,3,2],[9,0,9,2],[25,0,25,2]]}
[]
["Please enter your policies below"]
["Add policies below, if there is more than one resource sharing library in your institution."]
["Resource Sharing Default Values"]
["Column1","Column2","Column3","Column4","Column5","Column6","Column7","Column8","Column9","Column10","Column11","Column12","Column13","Column14","Column15","Column16","Column17","Column18","Column19","Column20","Column21","Column22","Column23","Column24","Column25","Column26","Column27","Column28","Column29","Column30","Column31","Column32","Column33","Column34","Column35","Column36","Column37","Column38","Column39","Column40","Column41","Column42"]
[null,"ResourceSharingFee","PickupLocationsRs","ResourceSharingRequesting","ResourceSharingReqLimit","Loanability","Recallability","RegularDueDate","RegularDueDate","RequestedItemDueDate","RequestedItemDueDate","RecallDueDate","RecallDueDate","RenewFee","LostItemFine","LostItemReplacementFee","LostItemReplacementRefund","MaximumFine","OverdueFine","OverdueFine","RecalledOverdueFine","RecalledOverdueFine","Grace","Grace","IsRenewable","MaximumRenewalPeriod","MaximumRenewalPeriod","ClosedLibraryDueDateMng","Requestability","CancelledRecallDueDate","PickupLocations","HoldShelfPeriod","Digitizeable","RequestabilityForRS","RequestPriority","OnShelfRequestPolicy","End"]
[null,null,"Resource Sharing Fee","Pickup Locations for Resource Sharing","Is Requestable for physical resource sharing","Is Requestable for digital resource sharing","Resource Sharing Request Limit","Circulatable?","Recallable?","Loan Length","Loan Period","Requested Item Length","Requested Item Period","Recall Length","Recall Period","Renew Fee","Lost Item Fine","Lost Item Replacement fee","Lost Item Replacement Refund Ratio","Maximum Fine","Overdue Fine Amount","Overdue Fine Period","Recalled Overdue Fine Amount","Recalled Overdue Fine Period","Grace Length","Grace Period","Renewable?","Max Renew Length","Max Renew Period","Closed Library Due Date Management","Requestable?","Cancelled Recall Due Date","Pickup Locations","Hold Shelf Period","Digitizable?","Is Requestable for Resource Sharing","Request Priority","On Shelf Request Policy","Resource Sharing Request Fee","Yearly resource sharing requests limit","Reloan Limit Length","Reloan Limit Period"]
[null,null,0,"In Library","Y","Y",3,"Y","Y",28,"Days",0,"Week",28,"Days",0,35,100,100,2,null,"Open Days",2,"All Days",3,"Days","Y",12,"Month","FORWARD_END_DAY","N","Attempt Automatic Renewal","In Library",7,"Y",null,"Medium","Use fulfillment unit definition",10,5]
[]
["Outgoing Requests to Other Institutions\n(Resource Sharing/ILL)"]
["Code","PatronType","ResourceSharingFee","PickupLocationsRs","ResourceSharingRequesting",null,"ResourceSharingReqLimit","Loanability","Recallability","RegularDueDate","RegularDueDate","RequestedItemDueDate","RequestedItemDueDate","RecallDueDate","RecallDueDate","RenewFee","LostItemFine","LostItemReplacementFee","LostItemReplacementRefund","MaximumFine","OverdueFine","OverdueFine","RecalledOverdueFine","RecalledOverdueFine","Grace","Grace","IsRenewable","MaximumRenewalPeriod","MaximumRenewalPeriod","ClosedLibraryDueDateMng","Requestability","CancelledRecallDueDate","PickupLocations","HoldShelfPeriod","Digitizeable","RequestabilityForRS","RequestPriority","OnShelfRequestPolicy"]
["Library Code","Patron Type","Resource Sharing Fee","Pickup Locations for Resource Sharing","Is Requestable for physical resource sharing","Is Requestable for digital resource sharing","Resource Sharing Request Limit","Circulatable?","Recallable?","Loan Length","Loan Period","Requested Item Length","Requested Item Period","Recall Length","Recall Period","Renew Fee","Lost Item Fine","Lost Item Replacement fee","Lost Item Replacement Refund Ratio","Maximum Fine","Overdue Fine Amount","Overdue Fine Period","Recalled Overdue Fine Amount","Recalled Overdue Fine Period","Grace Length","Grace Period","Renewable?","Max Renew Length","Max Renew Period","Closed Library Due Date Management","Requestable?","Cancelled Recall Due Date","Pickup Locations","Hold Shelf Period","Digitizable?","Is Requestable for Resource Sharing","Request Priority","On Shelf Request Policy","Resource Sharing Request Fee","Yearly resource sharing requests limit","Reloan Limit Length","Reloan Limit Period"]
["LAW","Faculty",null,null,null,null,10,null,null,6,"Month",null,null,6,"Month",null,null,null,null,null,0,null,0,null,28,"Days",null,null,null,null,null,null,null,null,null,null,"Highest",null,"None","None"]
["LAW","Staff",null,null,null,null,5,null,null,3,"Month",null,null,3,"Month",null,null,null,null,null,null,null,null,null,null,null,null,null,null,null,null,null,null,null,null,null,"High",null,"None","None"]
["LAW","Graduate Students"]
["LAW","Undergraduate Students"]
["LAW","Community"]
[]
[]
[]
[]
[]
[]
[]
[]
["Incoming Requests from Other Institutions\n(Resource Sharing/ILL)"]
["Library Code","Loan Length","Loan Period","Maximum Renew Date Length","Maximum Renew Date","Resource Sharing\n Recall Length","Resource Sharing Recall Period"]
["LAW",10,"Week",10,"Days",null,"None"]
[]
[]
[]
[]
["Resource Sharing Library Locations"]
["Library Code","Borrowing Location","Lending Location"]
["LAW","LAW_RS_OUT","LAW_RS_IN"]

{"sheet":"Policies, TOU & Rules (book (2","index":20,"n_rows":111,"n_cols":27,"rows_kept":111,"cut":false,"hidden":true,"merged":[[69,0,69,1],[78,0,78,1],[107,0,107,1],[1,0,1,3],[2,0,2,1],[4,0,5,1],[31,0,31,1],[40,0,40,1],[42,0,43,1]]}
[]
["Please enter your policies below"]
["1. Loan Policy Default Values"]
[null,null,"Loanability","Recallability","RegularDueDate","RegularDueDate","RequestedItemDueDate","RequestedItemDueDate","RecallDueDate","RecallDueDate","RenewFee","LostItemFine","LostItemReplacementFee","LostItemReplacementRefund","MaximumFine","OverdueFine","OverdueFine","RecalledOverdueFine","RecalledOverdueFine","Grace","Grace","IsRenewable","MaximumRenewalPeriod","MaximumRenewalPeriod","ClosedLibraryDueDateMng","CancelledRecallDueDate","End"]
[null,null,"Circulatable?","Recallable?","Loan Length","Loan Period","Requested Item Length","Requested Item Period","Recall Length","Recall Period","Renew Fee","Lost Item Fine","Lost Item Replacement fee","Lost Item Replacement Refund Ratio","Maximum Fine","Overdue Fine Amount","Overdue Fine Period","Recalled Overdue Fine Amount","Recalled Overdue Fine Period","Grace Length","Grace Period","Renewable?","Max Renew Length","Max Renew Period","Closed Hour Management","Cancelled Recall Due Date","Internal Use"]
[null,null,"Y","Y",3,"Month",2,"Week",2,"Week",0,10,75,100,25,2.5,"Open Days",3.5,"All Days",1,"Days","Y",365,"Days","FORWARD_END_DAY","Attempt Automatic Renewal"]
[]
["2. Loan Policies"]
["LocationType","PatronType","Loanability","Recallability","RegularDueDate","RegularDueDate","RequestedItemDueDate","RequestedItemDueDate","RecallDueDate","RecallDueDate","RenewFee","LostItemFine","LostItemReplacementFee","LostItemReplacementRefund","MaximumFine","OverdueFine","OverdueFine","RecalledOverdueFine","RecalledOverdueFine","Grace","Grace","IsRenewable","MaximumRenewalPeriod","MaximumRenewalPeriod","ClosedLibraryDueDateMng","CancelledRecallDueDate"]
["Location Type","Patron Type","Circulatable?","Recallable?","Loan Length","Loan Period","Requested Item Length","Requested Item Period","Recall Length","Recall Period","Renew Fee","Lost Item Fine","Lost Item Replacement fee","Lost Item Replacement Refund Ratio","Maximum Fine","Overdue Fine Amount","Overdue Fine Period","Recalled Overdue Fine Amount","Recalled Overdue Fine Period","Grace Length","Grace Period","Renewable?","Max Renew Length","Max Renew Period","Closed Hour Management","Cancelled Recall Due Date"]
[{"$f":"#REF!","v":{"$error":"#REF!"}},{"$f":"#REF!","v":{"$error":"#REF!"}},null,null,6,"Month",null,null,null,null,null,0]
[{"$f":"#REF!","v":{"$error":"#REF!"}},{"$f":"#REF!","v":{"$error":"#REF!"}},null,"N",null,null,null,null,null,null,null,0]
[{"$f":"#REF!","v":{"$error":"#REF!"}},{"$f":"#REF!","v":{"$error":"#REF!"}},null,null,1,"Month"]
[{"$f":"#REF!","v":{"$error":"#REF!"}},{"$f":"#REF!","v":{"$error":"#REF!"}},null,null,2,"Week"]
[{"$f":"#REF!","v":{"$error":"#REF!"}},{"$f":"#REF!","v":{"$error":"#REF!"}},null,null,1,"Days"]
[{"$f":"#REF!","v":{"$error":"#REF!"}},{"$f":"#REF!","v":{"$error":"#REF!"}},null,null,2,"Hours"]
[{"$f":"#REF!","v":{"$error":"#REF!"}},{"$f":"#REF!","v":{"$error":"#REF!"}},"N",null,1,"Hours"]
[{"$f":"#REF!","v":{"$error":"#REF!"}},{"$f":"#REF!","v":{"$error":"#REF!"}},"N",null,1,"Hours"]
[{"$f":"#REF!","v":{"$error":"#REF!"}},{"$f":"#REF!","v":{"$error":"#REF!"}},"N","N",4,"Hours",null,null,null,null,null,0,null,null,null,null,"All Hours",null,"All Hours",10,"Minute","N",24,"Hours","BACK"]
[{"$f":"#REF!","v":{"$error":"#REF!"}},{"$f":"#REF!","v":{"$error":"#REF!"}},"N","N",4,"Hours",null,null,null,null,null,0,null,null,null,null,"All Hours",null,"All Hours",10,"Minute","N",24,"Hours","BACK"]
[{"$f":"#REF!","v":{"$error":"#REF!"}},{"$f":"#REF!","v":{"$error":"#REF!"}},null,"N",4,"Hours",null,null,null,null,null,null,null,null,null,null,"All Hours",null,"All Hours",10,"Minute","N",8,"Hours","BACK"]
[{"$f":"#REF!","v":{"$error":"#REF!"}},{"$f":"#REF!","v":{"$error":"#REF!"}},null,"N",2,"Hours",null,null,null,null,null,null,null,null,null,null,"All Hours",null,"All Hours",10,"Minute","N",8,"Hours","BACK"]
[{"$f":"#REF!","v":{"$error":"#REF!"}},{"$f":"#REF!","v":{"$error":"#REF!"}},null,null,6,"Month"]
[{"$f":"#REF!","v":{"$error":"#REF!"}},{"$f":"#REF!","v":{"$error":"#REF!"}}]
[{"$f":"#REF!","v":{"$error":"#REF!"}},{"$f":"#REF!","v":{"$error":"#REF!"}}]
[{"$f":"#REF!","v":{"$error":"#REF!"}},{"$f":"#REF!","v":{"$error":"#REF!"}},null,null,1,"Month"]
[{"$f":"#REF!","v":{"$error":"#REF!"}},{"$f":"#REF!","v":{"$error":"#REF!"}},null,null,7,"Days",null,null,null,null,null,null,150,null,null,5,null,null,null,null,null,null,6,"Week"]
[{"$f":"#REF!","v":{"$error":"#REF!"}},{"$f":"#REF!","v":{"$error":"#REF!"}},null,null,7,"Days",null,null,null,null,null,null,150,null,null,5,null,null,null,null,null,null,6,"Week"]
[{"$f":"#REF!","v":{"$error":"#REF!"}},{"$f":"#REF!","v":{"$error":"#REF!"}},null,null,7,"Days",null,null,null,null,null,null,150,null,null,5,null,null,null,null,null,null,4,"Week"]
[{"$f":"#REF!","v":{"$error":"#REF!"}},{"$f":"#REF!","v":{"$error":"#REF!"}},"N",null,3,"Days",null,null,null,null,null,null,150,null,null,5,null,null,null,null,null,null,2,"Week"]
[]
["3. Item Policy Exceptions - Loans"]
["LocationType","OverridePolicy","Loanability","Recallability","RegularDueDate","RegularDueDate","RequestedItemDueDate","RequestedItemDueDate","RecallDueDate","RecallDueDate","RenewFee","LostItemFine","LostItemReplacementFee","LostItemReplacementRefund","MaximumFine","OverdueFine","OverdueFine","RecalledOverdueFine","RecalledOverdueFine","Grace","Grace","IsRenewable","MaximumRenewalPeriod","MaximumRenewalPeriod","ClosedLibraryDueDateMng","CancelledRecallDueDate"]
["Location Type","Item Exception Type","Circulatable?","Recallable?","Loan Length","Loan Period","Requested Item Length","Requested Item Period","Recall Length","Recall Period","Renew Fee","Lost Item Fine","Lost Item Replacement fee","Lost Item Replacement Refund Ratio","Maximum Fine","Overdue Fine Amount","Overdue Fine Period","Recalled Overdue Fine Amount","Recalled Overdue Fine Period","Grace Length","Grace Period","Renewable?","Max Renew Length","Max Renew Period","Closed Hour Management","Cancelled Recall Due Date"]
["General",1,"N","Y",24,"Hours",null,null,null,null,null,null,250,null,50,null,"All Hours",2.5,"All Hours",null,"Hours","N",48,"Hours","BACK","Restore Original Due Date"]
[]
[]
[]
[]
[]
["4. Request Policy Default Values"]
[null,null,"Requestability","PickupLocations","HoldShelfPeriod","Digitizeable","RequestabilityForRS","RequestPriority","OnShelfRequestPolicy"]
[null,null,"Requestable?","Pickup Locations","Hold Shelf Period","Digitizable?","Requestable for Resource Sharing","Request Priority","On Shelf Request Policy"]
[null,null,"Y","In Library",7,"Y","Y","Medium","Use fulfillment unit definition"]
[]
["5. Request Policies"]
["LocationType","PatronType","Requestability","PickupLocations","HoldShelfPeriod","Digitizeable","RequestabilityForRS","RequestPriority","OnShelfRequestPolicy"]
["Location Type","Patron Type","Requestable?","Pickup Locations","Hold Shelf Period","Digitizable?","Requestable for Resource Sharing","Request Priority","On Shelf Request Policy"]
[{"$f":"#REF!","v":{"$error":"#REF!"}},{"$f":"#REF!","v":{"$error":"#REF!"}},null,"In Institution"]
[{"$f":"#REF!","v":{"$error":"#REF!"}},{"$f":"#REF!","v":{"$error":"#REF!"}},null,"In Institution"]
[{"$f":"#REF!","v":{"$error":"#REF!"}},{"$f":"#REF!","v":{"$error":"#REF!"}},null,"In Institution"]
[{"$f":"#REF!","v":{"$error":"#REF!"}},{"$f":"#REF!","v":{"$error":"#REF!"}},null,"In Institution"]
[{"$f":"#REF!","v":{"$error":"#REF!"}},{"$f":"#REF!","v":{"$error":"#REF!"}},"N"]
[{"$f":"#REF!","v":{"$error":"#REF!"}},{"$f":"#REF!","v":{"$error":"#REF!"}},"N"]
[{"$f":"#REF!","v":{"$error":"#REF!"}},{"$f":"#REF!","v":{"$error":"#REF!"}},"N"]
[{"$f":"#REF!","v":{"$error":"#REF!"}},{"$f":"#REF!","v":{"$error":"#REF!"}},"N"]
[{"$f":"#REF!","v":{"$error":"#REF!"}},{"$f":"#REF!","v":{"$error":"#REF!"}},null,null,1,null,"N"]
[{"$f":"#REF!","v":{"$error":"#REF!"}},{"$f":"#REF!","v":{"$error":"#REF!"}},null,null,1,null,"N"]
[{"$f":"#REF!","v":{"$error":"#REF!"}},{"$f":"#REF!","v":{"$error":"#REF!"}},null,null,1,null,"N"]
[{"$f":"#REF!","v":{"$error":"#REF!"}},{"$f":"#REF!","v":{"$error":"#REF!"}},null,null,1,null,"N"]
[{"$f":"#REF!","v":{"$error":"#REF!"}},{"$f":"#REF!","v":{"$error":"#REF!"}},null,"In Institution"]
[{"$f":"#REF!","v":{"$error":"#REF!"}},{"$f":"#REF!","v":{"$error":"#REF!"}},null,"In Institution"]
[{"$f":"#REF!","v":{"$error":"#REF!"}},{"$f":"#REF!","v":{"$error":"#REF!"}},null,"In Institution"]
[{"$f":"#REF!","v":{"$error":"#REF!"}},{"$f":"#REF!","v":{"$error":"#REF!"}},null,"In Institution"]
[{"$f":"#REF!","v":{"$error":"#REF!"}},{"$f":"#REF!","v":{"$error":"#REF!"}},null,null,1,null,"N"]
[{"$f":"#REF!","v":{"$error":"#REF!"}},{"$f":"#REF!","v":{"$error":"#REF!"}},null,null,1,null,"N"]
[{"$f":"#REF!","v":{"$error":"#REF!"}},{"$f":"#REF!","v":{"$error":"#REF!"}},null,null,1,null,"N"]
[{"$f":"#REF!","v":{"$error":"#REF!"}},{"$f":"#REF!","v":{"$error":"#REF!"}},null,null,1,null,"N"]
[]
["6. Item Policy Exceptions - Requests"]
["LocationType","OverridePolicy","Requestability","PickupLocations","HoldShelfPeriod","Digitizeable","RequestabilityForRS","RequestPriority","OnShelfRequestPolicy"]
["Location Type","Item Exception Type","Requestable?","Pickup Locations","Hold Shelf Period","Digitizable?","Requestable for Resource Sharing","Request Priority","On Shelf Request Policy"]
["General",1,"N",null,1,"N","N","Lowest"]
[]
[]
[]
[]
[]
["7. Booking Policy Default Values"]
[null,null,"IsBookable","BookingReleaseTime","BookingReleaseTime","MaxBookingLength","MaxBookingLength","PreviewPeriod","PreviewPeriod","PickupLocations","FutureLimit","FutureLimit","BackToBackBookingPolicy","BackToBackBookingPolicy"]
[null,null,"Is item bookable","Booking release time length","Booking release time period","Maximum allowed booking length","Maximum allowed booking period","Preview length","Preview period","Pickup Locations","Future limit length","Future limit period","Back to back booking length","Back to back booking period"]
[null,null,"Y"]
[]
["8. Booking Policies"]
["LocationType","PatronType","IsBookable","BookingReleaseTime","BookingReleaseTime","MaxBookingLength","MaxBookingLength","PreviewPeriod","PreviewPeriod","PickupLocations","FutureLimit","FutureLimit","BackToBackBookingPolicy","BackToBackBookingPolicy"]
["Location Type","Patron Type","Is item bookable","Booking release time length","Booking release time period","Maximum allowed booking length","Maximum allowed booking period","Preview length","Preview period","Pickup Locations","Future limit length","Future limit period","Back to back booking length","Back to back booking period"]
[{"$f":"#REF!","v":{"$error":"#REF!"}},{"$f":"#REF!","v":{"$error":"#REF!"}},"Y"]
[{"$f":"#REF!","v":{"$error":"#REF!"}},{"$f":"#REF!","v":{"$error":"#REF!"}}]
[{"$f":"#REF!","v":{"$error":"#REF!"}},{"$f":"#REF!","v":{"$error":"#REF!"}}]
[{"$f":"#REF!","v":{"$error":"#REF!"}},{"$f":"#REF!","v":{"$error":"#REF!"}}]
[{"$f":"#REF!","v":{"$error":"#REF!"}},{"$f":"#REF!","v":{"$error":"#REF!"}}]
[{"$f":"#REF!","v":{"$error":"#REF!"}},{"$f":"#REF!","v":{"$error":"#REF!"}}]
[{"$f":"#REF!","v":{"$error":"#REF!"}},{"$f":"#REF!","v":{"$error":"#REF!"}}]
[{"$f":"#REF!","v":{"$error":"#REF!"}},{"$f":"#REF!","v":{"$error":"#REF!"}}]
[{"$f":"#REF!","v":{"$error":"#REF!"}},{"$f":"#REF!","v":{"$error":"#REF!"}}]
[{"$f":"#REF!","v":{"$error":"#REF!"}},{"$f":"#REF!","v":{"$error":"#REF!"}}]
[{"$f":"#REF!","v":{"$error":"#REF!"}},{"$f":"#REF!","v":{"$error":"#REF!"}}]
[{"$f":"#REF!","v":{"$error":"#REF!"}},{"$f":"#REF!","v":{"$error":"#REF!"}}]
[{"$f":"#REF!","v":{"$error":"#REF!"}},{"$f":"#REF!","v":{"$error":"#REF!"}}]
[{"$f":"#REF!","v":{"$error":"#REF!"}},{"$f":"#REF!","v":{"$error":"#REF!"}}]
[{"$f":"#REF!","v":{"$error":"#REF!"}},{"$f":"#REF!","v":{"$error":"#REF!"}}]
[{"$f":"#REF!","v":{"$error":"#REF!"}},{"$f":"#REF!","v":{"$error":"#REF!"}}]
[{"$f":"#REF!","v":{"$error":"#REF!"}},{"$f":"#REF!","v":{"$error":"#REF!"}}]
[{"$f":"#REF!","v":{"$error":"#REF!"}},{"$f":"#REF!","v":{"$error":"#REF!"}}]
[{"$f":"#REF!","v":{"$error":"#REF!"}},{"$f":"#REF!","v":{"$error":"#REF!"}}]
[{"$f":"#REF!","v":{"$error":"#REF!"}},{"$f":"#REF!","v":{"$error":"#REF!"}}]
[]
["9. Item Policy Exceptions - Booking"]
["LocationType","OverridePolicy","IsBookable","BookingReleaseTime","BookingReleaseTime","MaxBookingLength","MaxBookingLength","PreviewPeriod","PreviewPeriod","PickupLocations","FutureLimit","FutureLimit","BackToBackBookingPolicy","BackToBackBookingPolicy"]
["Location Type","Item Exception Type","Is item bookable","Booking release time length","Booking release time period","Maximum allowed booking length","Maximum allowed booking period","Preview length","Preview period","Pickup Locations","Future limit length","Future limit period","Back to back booking length","Back to back booking period"]
["General",1]

{"sheet":"E-Resources","index":21,"n_rows":5,"n_cols":3,"rows_kept":5,"cut":false,"hidden":true,"merged":[[3,0,3,2]]}
["E-Resources"]
[]
["Inventory Network Groups"]
["Define groups that you can use to manage access to electronic resources"]
["Group Name","Campus","Library"]

{"sheet":"E-Resources_old","index":22,"n_rows":237,"n_cols":14,"rows_kept":237,"cut":false,"hidden":true,"merged":[[73,4,74,5],[60,4,61,5],[100,4,103,6],[18,0,18,2],[13,4,13,6],[53,0,53,2]]}
["E-Resources"]
[]
["Library IP Definitions",null,null,null,"Campus IP Definitions"]
[]
["Library Code","IP Version","IP Match Criteria",null,"Campus Code","IP Version","IP Match Criteria"]
[null,"IPv4",null,null,null,"IPv4"]
[null,"IPv4",null,null,null,"IPv4"]
[null,"IPv4",null,null,null,"IPv4"]
[null,"IPv4",null,null,null,"IPv4"]
[null,"IPv4",null,null,null,"IPv4"]
[null,"IPv4"]
[null,"IPv4"]
[null,"IPv4",null,null,"Display Logic Rules"]
[null,"IPv4",null,null,"Define the circumstances under which the sections in the Primo Get It and View It tabs are displayed or hidden"]
[null,"IPv4",null,null,"Patron Type","Hide Service","If Service Exists"]
[]
[]
["Inventory Network Groups"]
["Define groups that you can use to manage access to electronic resources"]
["Group Name","Campus","Library"]
[]
[]
[]
[]
[]
[]
[]
[]
[]
[]
[]
[]
[]
[]
[]
[]
[]
[]
[]
[]
[]
[]
[]
[]
[]
[]
[]
[null,null,null,null,"Related Records"]
[null,null,null,null,"Allows you to configure the electronic services for related titles that display in the Primo View It tab or Services page"]
[null,null,null,null,"Parameter","Value"]
[null,null,null,null,"Enable related record services","No"]
[null,null,null,null,"Display related services if full text is available","Yes"]
["Labels",null,null,null,"Display related services for serials","Yes"]
["Configure predefined labels that appear on the Get It and View It tabs in Primo",null,null,null,"Display related services for monographs","Yes"]
["Code","Description",null,null,"De-duplicate package services","Yes"]
["c.uresolver.locate","Locate",null,null,"Enable direct link for related services","Yes"]
["c.uresolver.request","Request",null,null,"Display closely related records services","As part of the original services"]
["c.uresolver.request.submitSuccessfully","Request placed"]
["c.uresolver.request.submitFailed","Failed to place a request on the resource. Please contact the library."]
["c.uresolver.request.description","Description:",null,null,"Direct Linking"]
["c.uresolver.request.title","Details of title you requested:",null,null,"Allows you to configure Alma so that a user is automatically directed to an electronic service via Alma UResolver in the Primo View It tab or on the Alma UResolver Screen page."]
["c.uresolver.request.materialType","Material Type:"]
["c.uresolver.request.pickupLocation","Pickup Location:",null,null,"Parameter","Value"]
["c.uresolver.request.pickupLocation.noAvailability","Pickup Location:",null,null,"Enable direct linking","No"]
["c.uresolver.request.termsOfUse","Terms of Use:",null,null,"Enable direct linking when multiple services are available","Yes"]
["c.uresolver.request.notNeededAfter","Not Needed After:",null,null,"Disable direct link when additional information is available:"]
["c.uresolver.request.Partial","Partial:",null,null,"               Authentication note:","Yes"]
["c.uresolver.request.Partial.madatoty_comment","Please add the part to digitize in the comment field",null,null,"               Public Note:","Yes"]
["c.uresolver.request.madatoty_pickup_location","Please select a pickup location",null,null,"Disable direct linking for databases","Yes"]
["c.uresolver.request.madatoty_manual_description","Please input a description of the requested item",null,null,"Disable direct linking for digital resources","Yes"]
["c.uresolver.request.comment","Comment:"]
["c.uresolver.request.manualDescription","Manual Description:"]
["c.uresolver.request.request_type","Request Type:",null,null,"General Electronic Services"]
["c.uresolver.request.request_type.hold","Hold",null,null,"Allows you to define general electronic services (such as Search in ProQuest Dissertations, Ask a Librarian, and so forth) that may be presented to patrons in Primo View It and Get It tabs."]
["c.uresolver.request.request_type.booking","Booking"]
["c.uresolver.request.booking.startTime","Start Time:",null,null,"Service Details"]
["c.uresolver.request.booking.endTime","End Time:",null,null,"Service Code","Service Name","Service Description","Public Name","Public Note","Display Location","URL Template","Enable without login","Display Location","Display Order"]
["c.uresolver.getit2.request.booking.availability","Check availability",null,null,"ProQuest","ProQuest","ProQuest dissertation service","ProQuest dissertation",null,"None","http://gateway.proquest.com/openurl?res_dat=xri%3Apqm&title={rft.atitle}&rft_val_fmt=info%3Aofi%2Ffmt%3Akev%3Amtx%3Adissertation&url_ver=Z39.88-2004&genre=dissertation","No"]
["c.uresolver.request.submitRequest","Request",null,null,null,null,null,null,null,null,null,"No"]
["c.uresolver.request.cancel","Cancel",null,null,null,null,null,null,null,null,null,"No"]
["c.uresolver.request.refresh","Refresh Services List",null,null,null,null,null,null,null,null,null,"No"]
["c.search.htmlCreator.copy","copy",null,null,null,null,null,null,null,null,null,"No"]
["c.search.htmlCreator.copies","copies",null,null,null,null,null,null,null,null,null,"No"]
["c.search.htmlCreator.available","available",null,null,null,null,null,null,null,null,null,"No"]
["c.search.htmlCreator.from","from:"]
["c.search.htmlCreator.until","until:",null,null,"Service Availability Rules"]
["c.search.htmlCreator.more","and others",null,null,"Service Code","Rule Name","Parameter Name","Operator","Value","Display"]
["c.uresolver.ServicesForThisTitle","Services For This Title"]
["c.uresolver.GeneralElectronicServices","Additional services"]
["c.uresolver.ServicesForRelatedTitles","Services For Related Titles"]
["c.uresolver.availableOnline","Available Online Resources"]
["c.uresolver.availableOnline.full_text_prefix","Full text available at: "]
["c.uresolver.availableOnline.selected_full_text_prefix","Selected full text available at: "]
["c.search.availability.available","Available"]
["c.search.availability.from","from"]
["c.search.availability.volume","volume:"]
["c.search.availability.issue","issue:"]
["c.search.availability.until","until"]
["c.search.availability.most_recent","Most recent"]
["c.search.availability.years","year(s)",null,null,"E Task Statuses"]
["c.search.availability.available2","available",null,null,"After an electronic resource has been added to the inventory, there are other tasks that may need to be completed prior to making the resource visible to patrons. For example, you may want to test access to the e-resource to confirm that the access is working properly. In Alma, these tasks are handled through the options provided by Manage Electronic Resource Activation. In the table below, enter any statuses you would like to use to help you manage these tasks."]
["c.search.availability.not_available","not available"]
["c.search.availability.months","month(s)"]
["c.uresolver.availableDigital","Available Digital Resources"]
["c.uresolver.title","Title:",null,null,"Code","Description"]
["c.uresolver.resolution","Resolution",null,null,"CheckAccess","Check Access"]
["c.search.htmlCreator.files","file/s",null,null,"NotYetOnline","Not Yet Online"]
["ui.set_member.deliver","Deliver",null,null,"AccessConfirmed","Access Confirmed"]
["ui.set_member.remoteDeliverySystem","Remote Delivery System"]
["c.uresolver.emptyList","No services were found."]
["c.uresolver.error","Some error occurred while retrieving services"]
["c.uresolver.request.ill","Resource Sharing Request:"]
["c.uresolver.request.ill.citatioType","Citation type:"]
["c.uresolver.request.ill.citationType.book","Book"]
["c.uresolver.request.ill.citationType.article","Article"]
["c.uresolver.request.ill.format","Format:"]
["c.uresolver.request.ill.format.physical","Physical"]
["c.uresolver.request.ill.format.digital","Digital"]
["c.uresolver.request.ill.deliveryLocation","Delivery Location:"]
["c.uresolver.request.ill.delivery.library","Deliver to library"]
["c.uresolver.request.ill.delivery.alternative","Alternative address"]
["c.uresolver.request.ill.delivery.alternative.email","Email Address"]
["c.uresolver.request.ill.delivery.alternative.postal.line1","Line 1:"]
["c.uresolver.request.ill.delivery.alternative.postal.line2","Line 2:"]
["c.uresolver.request.ill.delivery.alternative.postal.line3","Line 3:"]
["c.uresolver.request.ill.delivery.alternative.postal.line4","Line 4:"]
["c.uresolver.request.ill.pickupLocation","Pickup/delivery location:"]
["c.uresolver.request.ill.authors","Author(s) (Last name, first name):"]
["c.uresolver.request.ill.title","Title:"]
["c.uresolver.request.ill.articleTitle","Article title:"]
["c.uresolver.request.ill.chapter","Chapter:"]
["c.uresolver.request.ill.place_of_publication","Place of publication:"]
["c.uresolver.request.ill.year","Year:"]
["c.uresolver.request.ill.volume","Volume:"]
["c.uresolver.request.ill.issue","Issue:"]
["c.uresolver.request.ill.isbn","ISBN:"]
["c.uresolver.request.ill.issn","ISSN:"]
["c.uresolver.request.ill.publisher","Publisher:"]
["c.uresolver.request.ill.journalTitle","Journal Title:"]
["c.uresolver.request.ill.additionalAuthor","Additional Author (Last name, first name):"]
["c.uresolver.request.ill.pages","Pages to photocopy:"]
["c.uresolver.request.ill.maximumFee","Maximum fee:"]
["c.uresolver.request.ill.copyrights","Copyrights:"]
["c.uresolver.request.ill.copyrights.accept","I have read the above statement and agree to abide by its restrictions"]
["c.uresolver.request.ill.resource_information","Resource Information:"]
["c.uresolver.request.ill.delivery_information","Delivery Information:"]
["c.uresolver.availableOnline.db_text_prefix","DB available at: "]
["c.uresolver.availableOnline.service_is_temporary_unavailable_due_to","Service temporarily unavailable due to "]
["c.uresolver.availableOnline.service_is_temporary_unavailable","Service temporarily unavailable"]
["c.uresolver.getit2.request.request_options","Request Options:"]
["c.uresolver.getit2.request.monograph","Request"]
["c.uresolver.getit2.request.serial","Request"]
["c.uresolver.getit2.request.noItems","Don't see what you need? Request Anyway"]
["c.uresolver.getit.related_title_display","Inventory of related \"{0}\" is listed below"]
["c.uresolver.getit2.holding_list.location","Location"]
["c.uresolver.getit2.holding_list.availability","Availability"]
["c.uresolver.getit2.holding_list.holdings","Holdings"]
["c.uresolver.getit2.holding_list.location_map","Location Map"]
["c.uresolver.getit2.holding.show_details","Show Details"]
["c.uresolver.getit2.holding.hide_details","Hide Details"]
["c.uresolver.getit2.holding_list.accession_number","Accession"]
["c.uresolver.getit2.public_notes","Public notes"]
["c.uresolver.getit2.ill_request.monograph","Resource sharing request"]
["c.uresolver.getit2.ill_request.serial","Resource sharing request"]
["c.uresolver.getit2.digitization_request.monograph","Digitization"]
["c.uresolver.getit2.digitization_request.serial","Digitization"]
["c.uresolver.getit2.issue_level_data.year","Year"]
["c.uresolver.getit2.issue_level_data.volume","Volume"]
["c.uresolver.getit2.issue_level_data.description","Description"]
["c.uresolver.getit2.issue_level_data.filter","Filter"]
["c.uresolver.getit2.issue_level_data.all","All"]
["c.uresolver.getit2.item_list.pagination.records","Records"]
["c.uresolver.getit2.item_list.barcode","Barcode"]
["c.uresolver.getit2.item_list.type","Type"]
["c.uresolver.getit2.item_list.policy","Policy"]
["c.uresolver.getit2.item_list.description","Description"]
["c.uresolver.getit2.item_list.status","Status"]
["c.uresolver.getit2.item_list.options","Options"]
["c.uresolver.getit2.item_list.empty","No items exist. Please refer to the request options above"]
["c.uresolver.getit2.back","Back"]
["c.uresolver.getit2.request_different","Request a different issue"]
["c.uresolver.getit2.digitize_different","Digitize a different issue"]
["c.uresolver.request.booking.invalid_hour_format","Please insert a valid hour"]
["c.uresolver.request.booking.invalid_dates","End time can't be before start time"]
["c.uresolver.request.booking.madatoty_start_time","Start time is mandatory"]
["c.uresolver.request.booking.madatoty_end_time","End time is mandatory"]
["c.uresolver.request.ill.mandatory_title","Title is mandatory. Please enter a title"]
["c.uresolver.getit2.holding_list.empty","No holdings were found"]
["c.uresolver.getit2.holding_list.empty.top","Your search did not match any physical resource in the library"]
["c.uresolver.getit2.holding_list.empty.signed_in_user","Use the link/s below in order to request the resource from other libraries"]
["c.uresolver.getit2.holding_list.empty.signed_in_user.no_services","There are no services available"]
["c.uresolver.getit2.holding_list.empty.bottom","Having problems? Please contact the staff"]
["c.uresolver.getit2.holding_list.empty.guest_user","In order to receive options to request the resource from other libraries, please sign in"]
["c.uresolver.getit2.item_list.pagination.next","Next"]
["c.uresolver.getit2.item_list.pagination.prev","Previous"]
["c.uresolver.getit2.item_list.pagination.of","of"]
["c.uresolver.getit2.item_list.non_circulating","Not loanable"]
["c.uresolver.getit2.item_list.circulating","Loanable"]
["c.uresolver.getit2.item_list.alt_call_number_prefix","Additional location information: "]
["c.uresolver.getit2.item_list.status.ITEM_NOT_IN_PLACE","Item not in place"]
["c.uresolver.getit2.item_list.status.ITEM_IN_PLACE","Item in place"]
["c.uresolver.getit2.item_list.status.INACTIVE","Inactive"]
["c.uresolver.getit2.item_list.status.ACTIVE","Active"]
["c.uresolver.getit2.item_list.status.ACQ.with_expected_date","On order until {0}"]
["c.uresolver.getit2.item_list.status.HOLDSHELF.with_expected_date","On hold shelf until {0}"]
["c.uresolver.getit2.item_list.status.TRANSIT.with_expected_date","In transit until {0}"]
["c.uresolver.getit2.item_list.status.NOPROCESS.with_no_expected_date","On shelf"]
["c.uresolver.getit2.item_list.status.WORK_ORDER_DEPARTMENT.with_expected_date","In process of {0} until {1}"]
["c.uresolver.getit2.item_list.status.LOST_LOAN.with_expected_date","Lost since {0}"]
["c.uresolver.getit2.item_list.status.CLAIM_RETURNED_LOAN.with_expected_date","Claimed returned. Due on {0}"]
["c.uresolver.getit2.item_list.status.ACQ.with_no_expected_date","On order"]
["c.uresolver.getit2.item_list.status.LOAN.with_expected_date","On loan until {0}"]
["c.uresolver.getit2.item_list.status.OVERDUE.with_expected_date","On loan - overdue since {0}"]
["c.uresolver.getit2.item_list.status.TRANSIT.with_no_expected_date","In transit"]
["c.uresolver.getit2.item_list.status.MISSING.with_no_expected_date","Missing"]
["c.uresolver.getit2.item_list.status.WORK_ORDER_DEPARTMENT.with_no_expected_date","In process of {0}"]
["c.uresolver.getit2.item_list.status.ILL.with_expected_date","On ILL process until {0}"]
["c.uresolver.getit2.item_list.status.ILL.with_no_expected_date","On ILL process"]
["c.uresolver.getit2.item_list.status.TECHNICAL.with_no_expected_date","Technical"]
["c.uresolver.viewit.relatedTemplate","@TITLE (@RelationType)"]
["c.uresolver.viewit.related_type_list.ADDITIONAL_FORM","Additional form"]
["c.uresolver.viewit.related_type_list.REPLACES","Replaces"]
["c.uresolver.viewit.related_type_list.REPLACED_BY","Replaced By"]
["c.uresolver.viewit.related_type_list.LINKS_TO","Links To"]
["c.uresolver.viewit.related_type_list.MAIN_SERIES","Main Series"]
["c.uresolver.viewit.related_type_list.SUBSERIES","Subseries"]
["c.uresolver.viewit.related_type_list.ORIGINAL_LANGUAGE","Original Language"]
["c.uresolver.viewit.related_type_list.TRANSLATION","Translation"]
["c.uresolver.viewit.related_type_list.SUPPLEMENT","Supplement"]
["c.uresolver.viewit.related_type_list.SUPPLEMENT_PARENT","Supplement Parent"]
["c.uresolver.viewit.related_type_list.CONTAINS","Contains"]
["c.uresolver.viewit.related_type_list.PRECEDES","Precedes"]
["c.uresolver.viewit.related_type_list.PART_OF","Part Of"]
["c.uresolver.viewit.related_type_list.OTHER_EDITION","Other Edition"]
["c.uresolver.viewit.related_type_list.ISSUED_WITH","Issued With"]
["c.uresolver.viewit.related_type_list.SUCCEEDS","Succeeds"]
["c.uresolver.viewit.related_type_list.OTHER_RELATIONSHIP","Other Relationship"]

{"sheet":"Licensing","index":23,"n_rows":101,"n_cols":4,"rows_kept":101,"cut":false,"hidden":false,"merged":[[6,0,6,4],[16,0,16,3],[18,0,18,4],[0,0,0,2],[2,0,2,4]]}
["Licensing"]
[]
["Note:  If your institution does not intend to begin using Alma to manage licenses for electronic resources immediately, you do not need to fill out this worksheet."]
[]
["License Sections Order"]
[]
["Define the order in which sections of the License will appear in the UI by selecting a number for each term."]
[]
["Section ","Order"]
["Terms of Use",1]
["Restrictions",2]
["Perpetual Rights",3]
["Obligations",4]
["Termination Obligations",5]
["Authorized User",6]
[]
["License Terms"]
[]
["For each license section, select relevant terms of use.  Select one of the predefined values from the drop down list. Use one line for each term, and list terms in the order in which you want them to appear in the dropdown for the section. Choose whether the license sections will be displayed to public or not.\nIf a new term is required, enter it manually starting from the first blank row at the end of the table."]
[]
["Section","Term","Display to Public"]
["Terms of Use","All rights reserved","N"]
["Terms of Use","Citation requirement detail","Y"]
["Terms of Use","Course Pack Electronic","Y"]
["Terms of Use","Course Pack Print","Y"]
["Terms of Use","Course Pack Note","Y","           "]
["Terms of Use","Course Reserve Electronic Copy","Y"]
["Terms of Use","Course Reserve Print","Y"]
["Terms of Use","Course Reserve Note","Y"]
["Terms of Use","Database protection override clause","N"]
["Terms of Use","Digitally copy","Y"]
["Terms of Use","Digital copy note","Y"]
["Terms of Use","Distance education","Y"]
["Terms of Use","Distance education note","Y"]
["Terms of Use","Electronic Link","Y"]
["Terms of Use","Electronic Link Note","Y"]
["Terms of Use","Fair use clause","Y"]
["Terms of Use","Interlibrary loan electronic","Y"]
["Terms of Use","Interlibrary loan print or fax","Y"]
["Terms of Use","Interlibrary loan secure electronic transmission","Y"]
["Terms of Use","Interlibrary loan note","Y"]
["Terms of Use","Interlibrary loan record keeping required indicator","Y"]
["Terms of Use","Print copy","Y"]
["Terms of Use","Print copy note","Y"]
["Terms of Use","Remote Access","Y"]
["Terms of Use","Scholarly sharing","Y"]
["Terms of Use","Scholarly sharing note","Y"]
["Terms of Use","Walk in User Note","Y"]
["Restrictions","Concurrent User","Y"]
["Restrictions","Concurrent Users Note","Y"]
["Restrictions","Pooled Concurrent Users","N"]
["Restrictions","Other Use restriction note","N"]
["Restrictions","Other User restriction note","N"]
["Perpetual Rights","Archiving right","Y"]
["Perpetual Rights","Archiving format","Y"]
["Perpetual Rights","Archiving note","Y"]
["Perpetual Rights","Perpetual Access Holdings","N"]
["Perpetual Rights","Perpetual Access Right","N"]
["Perpetual Rights","Perpetual Access note","N"]
["Obligations","Accessibility compliance indicator","N"]
["Obligations","Applicable Copyright Law","N"]
["Obligations","Clickwrap modification clause indicator","N"]
["Obligations","Completeness of Content clause indicator","N"]
["Obligations","Concurrency with print version clause indicator","N"]
["Obligations","Confidentiality of agreement","N"]
["Obligations","Confidentiality of agreement note","N"]
["Obligations","Confidentiality of user information indicator","N"]
["Obligations","Content Warranty","N"]
["Obligations","Cure Period For Breach","N"]
["Obligations","Cure Period For Breach Unit Of Measure","N"]
["Obligations","Governing Jurisdiction","N"]
["Obligations","Governing law","N"]
["Obligations","Indemnification by licensee clause","N"]
["Obligations","Indemnification by licensor clause","N"]
["Obligations","Indemnification note","N"]
["Obligations","Intellectual property warranty indicator","N"]
["Obligations","Maintenance Window","N"]
["Obligations","Non-Renewal Notice Period","N"]
["Obligations","Non-Renewal Notice Period Unit Of Measure","N"]
["Obligations","Performance Warranty Indicator","N"]
["Obligations","Performance Warranty Uptime Guarantee","N"]
["Obligations","Renewal Type","N"]
["Obligations","UCITA Override Clause Indicator","N"]
["Termination Obligations","Licensee Notice Period For Termination","N"]
["Termination Obligations","Licensee Notice Period For Termination Unit Of Measure","N"]
["Termination Obligations","Licensee Termination Condition","N"]
["Termination Obligations","Licensee Termination Right Indicator","N"]
["Termination Obligations","Licensor Notice Period For Termination","N"]
["Termination Obligations","Licensor Notice Period For Termination Unit Of Measure","N"]
["Termination Obligations","Licensor Termination Condition","N"]
["Termination Obligations","Licensor Termination Right Indicator","N"]
["Termination Obligations","Termination Requirements","N"]
["Termination Obligations","Termination Requirements Note","N"]
["Termination Obligations","Termination Right Note","N"]
["None","License End Date Tickler","N"]
["None","License Replaced By","N"]
["None","License Replaces","N"]
["None","License Reviewer Note","N"]
["None","Usage Data Set Up Status","N"]
["None","Authorized User Definition","N"]
["None","Local Authorized User Definition","N"]

{"sheet":"WorkOrders","index":24,"n_rows":11,"n_cols":15,"rows_kept":11,"cut":false,"hidden":false,"merged":[[4,0,4,5],[5,0,5,5],[0,0,0,2]]}
["Work Order Types and Statuses"]
[]
["1)  Yes is automatically selected in the first column to indicate that the Institutional-level Work Order Type, Department, and Statuses described in that row will be created in Alma."]
["2)  Ensure to add a printer, which is configured on the insitutional level in Printers Tab."]
["3)  The values contained in the first row are a suggestion. You may modify these. Additional Work Order Types, Departments and Statuses can be described in the rows provided. Note that Codes and Names must be unique."]
["4)  Each Work Order Status consists of a numbered pair: Code and Name. You may configure a maximum of 4 Statuses for each Work Order. If you require additional statuses, contact your Ex Libris Implementation Team."]
[]
["Create?","Work Order Type Code","Work Order Type Name","Recalls Loans?","Department Code","Department Name","Printer Code","Work Order Status\nCode 1","Work Order Status\nName 1","Work Order Status\nCode 2","Work Order Status\nName 2","Work Order Status\nCode 3","Work Order Status\nName 3","Work Order Status\nCode 4","Work Order Status\nName 4"]
[]
["Yes","PRESERV","Presevation","Y","PRESRVDEPT","Institutional Preservation Dept",null,"ANALYSIS","Analysis","BINDING","Binding","REPAIRIN","Repair In-House","REPAIREXT","Repair Externally"]
["Yes","TechServ","Technical Services","N",null,null,null,"BIND","Bindery","CopyCat","Cop Cataloging","LABELS","Barcode, Call number, etc.","MISIC","Miscellaneous Physical Handling"]

{"sheet":"Create Controlled Vocabularies","index":25,"n_rows":19,"n_cols":3,"rows_kept":19,"cut":false,"hidden":false,"merged":[[1,0,1,2]]}
["Controlled Vocabularies - Create"]
["Define any fixed values you would like to use in any particular MARC fields. You may add additional rows as needed."]
["CV Name","Code","Description"]
["046A","r","Reissue and original date"]
["046A","s","Single date"]
["046A","p","Distribution and production dates"]
["046A","t","Publication and copyright dates"]
["046A","x","Incorrect dates"]
["046A","q","Questionable date"]
["046A","n","Unknown date"]
["502B","MA","MA"]
["502B","MBA","MBA"]
["502B","MED","MEd"]
["502B","MSC","MSc"]
["502B","MLIS","MLiS"]
["502B","PHD","PhD"]
["842A","binder","binder"]
["842A","computer file","computer file"]
["842A","model","model"]

{"sheet":"Assign Controlled Vocabularies","index":26,"n_rows":6,"n_cols":4,"rows_kept":6,"cut":false,"hidden":false,"merged":[[1,0,1,5]]}
["Controlled Vocabularies - Assign"]
["Assign controlled vocabularies to the desired subfield in the desired metadata schema.\nEnsure that the selected profile is activated in the Resource Management Tab> Active Metadata Registry."]
["Metadata Profile","Field","Subfield","CV Name"]
["MARC21 Bibliographic","046","a","046A"]
["MARC21 Bibliographic","502","b","502B"]
["MARC21 Holdings","842","a","842A"]

{"sheet":"Multi-Campus & Networks","index":27,"n_rows":6,"n_cols":3,"rows_kept":6,"cut":false,"hidden":true,"merged":[[4,0,4,2]]}
["Multi-Campus & Networks"]
[]
[]
["Inventory Network Groups"]
["Define groups that you can use to manage access to electronic resources"]
["Group Name","Campus","Library"]

{"sheet":"Translations","index":28,"n_rows":38,"n_cols":5,"rows_kept":38,"cut":false,"hidden":false,"merged":[]}
["Institution Languages"]
[null,null,"Language 1","Language 2","Language 3"]
[null,null,"French - fr","Spanish - es"]
[]
["Name of Institution"]
[null,null,{"$f":"IF(C3=\"\",\"\",C3)","v":"French - fr"},{"$f":"IF(D3=\"\",\"\",D3)","v":"Spanish - es"},{"$f":"IF(E3=\"\",\"\",E3)","v":""}]
[]
[]
["Name of Physical Library"]
["Library Code",null,{"$f":"IF(C3=\"\",\"\",C3)","v":"French - fr"},{"$f":"IF(D3=\"\",\"\",D3)","v":"Spanish - es"},""]
["MAIN",null,"Bibliothèque principale","Hauptbibliothek"]
["SCI",null,"Bibliothèque des sciences","Wissenschaftliche Bibliothek"]
["MUS",null,"Bibliothèque de musique","Musikbibliothek"]
["LAW",null,"Bibliothèque de droit","Juristische Bibliothek"]
["GRAD",null,"Bibliothèque d'études supérieures","Graduierten-Bibliothek"]
[]
[]
["Name of Location"]
["Library Code","Location Code",{"$f":"IF(C3=\"\",\"\",C3)","v":"French - fr"},{"$f":"IF(D3=\"\",\"\",D3)","v":"Spanish - es"},""]
["MAIN","MEDIA","Média","Medien"]
[]
[]
[]
[]
[]
[]
["External Name of Location"]
["Library Code","Location Code",{"$f":"IF(C3=\"\",\"\",C3)","v":"French - fr"},{"$f":"IF(D3=\"\",\"\",D3)","v":"Spanish - es"},""]
[]
[]
[]
[]
[]
[]
[]
["Circulation Desk Name"]
["Library Code","Circulation Desk Code",{"$f":"IF(C3=\"\",\"\",C3)","v":"French - fr"},{"$f":"IF(D3=\"\",\"\",D3)","v":"Spanish - es"},""]
["LAW","LAWRR_CIRC","Salle de lecture"]

{"sheet":"drop down","index":29,"n_rows":16,"n_cols":3,"rows_kept":16,"cut":false,"hidden":true,"merged":[]}
[1,{"$f":"IF(COUNTIF('Primo VE - Configuration'!$E$20:$E$28,A1)>=1,\"\",ROW())","v":""},{"$f":"IF(ROW(A1)-ROW(A$1)+1>COUNT(B$1:B$11),\"\",INDEX(A:A,SMALL(B$1:B$11,1+ROW(A1)-ROW(A$1))))","v":""}]
[2,{"$f":"IF(COUNTIF('Primo VE - Configuration'!$E$20:$E$28,A2)>=1,\"\",ROW())","v":""},""]
[3,{"$f":"IF(COUNTIF('Primo VE - Configuration'!$E$20:$E$28,A3)>=1,\"\",ROW())","v":""},""]
[4,{"$f":"IF(COUNTIF('Primo VE - Configuration'!$E$20:$E$28,A4)>=1,\"\",ROW())","v":""},""]
[5,{"$f":"IF(COUNTIF('Primo VE - Configuration'!$E$20:$E$28,A5)>=1,\"\",ROW())","v":""},""]
[6,{"$f":"IF(COUNTIF('Primo VE - Configuration'!$E$20:$E$28,A6)>=1,\"\",ROW())","v":""},""]
[7,{"$f":"IF(COUNTIF('Primo VE - Configuration'!$E$20:$E$28,A7)>=1,\"\",ROW())","v":""},""]
[8,{"$f":"IF(COUNTIF('Primo VE - Configuration'!$E$20:$E$28,A8)>=1,\"\",ROW())","v":""},""]
[9,{"$f":"IF(COUNTIF('Primo VE - Configuration'!$E$20:$E$28,A9)>=1,\"\",ROW())","v":""},""]
[]
[]
[1,{"$f":"IF(COUNTIF('Primo VE - Configuration'!$D$38:$D$42,A12)>=1,\"\",ROW())","v":""},{"$f":"IF(ROW(A12)-ROW(A$12)+1>COUNT(B$12:B$16),\"\",INDEX(A:A,SMALL(B$12:B$16,1+ROW(A12)-ROW(A$12))))","v":4}]
[2,{"$f":"IF(COUNTIF('Primo VE - Configuration'!$D$38:$D$42,A13)>=1,\"\",ROW())","v":""},{"$f":"IF(ROW(A13)-ROW(A$12)+1>COUNT(B$12:B$16),\"\",INDEX(A:A,SMALL(B$12:B$16,1+ROW(A13)-ROW(A$12))))","v":5}]
[3,{"$f":"IF(COUNTIF('Primo VE - Configuration'!$D$38:$D$42,A14)>=1,\"\",ROW())","v":""},""]
[4,{"$f":"IF(COUNTIF('Primo VE - Configuration'!$D$38:$D$42,A15)>=1,\"\",ROW())","v":15},""]
[5,{"$f":"IF(COUNTIF('Primo VE - Configuration'!$D$38:$D$42,A16)>=1,\"\",ROW())","v":16},""]